Workbook

Sheet 1ERPA
A1: CONTROL DE ASISTENCIA Y EVALUACIONES
Q2: CICLO ESCOLAR | W2: 2018-2019
A3: PRIMER PARCIAL
L5: LICENCIATURA EN: | M5: Ingeniería en Sistemas Computacionales | AC5: ASIGNATURA: | AD5: SEGURIDAD INFORMÁTICA Y DE REDES
J7: CUATRIMESTRE: | K7: QUINTO | P7: GRUPO: | Q7: A | U7: PERIODO: | V7: A
A9: No. | F9: NOMBRE DEL ALUMNO | H9: SIMBOLOGIA: | L9: A: | M9: ASISTENCIA | AK9: CLASES IMPARTIDAS | AL9: TOTAL FALTAS | AM9: % ASISTENCIA | AN9: EVALUACIÓN
L10: F: | M10: FALTA | X10: ALDO ORTEGA PACHECO | AN10: CALIFICACIÓN | AP10: CALIF. CON LETRA | AQ10: % PARCIAL
L11: J: | M11: JUSTIFICACIÓN | X11: NOMBRE Y FIRMA DEL CATEDRÁTICO
G12: PRIMER PARCIAL
G13: MARZO | U13: - | W13: MAYO
G14: Ma | H14: Mi | I14: Ma | J14: Mi | K14: Ma | L14: Mi | M14: Ma | N14: Mi | O14: Ma | P14: Mi | Q14: Ma | R14: Mi | T14: Ma | U14: Mi | V14: Ma | W14: Mi
G15: 29 | H15: 30 | I15: 5 | J15: =I15+1 -> 6 | K15: =J15+6 -> 12 | L15: =K15+1 -> 13 | M15: =L15+6 -> 19 | N15: =M15+1 -> 20 | O15: =N15+6 -> 26 | P15: =O15+1 -> 27 | Q15: 3 | R15: =Q15+1 -> 4 | T15: 29 | U15: 30 | V15: 5 | W15: 6 | AK15: =COUNT(G15:AJ15) -> 16 | AL15: =SUM(AL17:AL24) -> 1 | AM15: =100/AK15 -> 6.25 | AN15: % | AO15: T | AQ15: 25
C16: =COUNTIF(C17:C66,"=1") -> 0 | D16: =COUNTIF(D17:D66,"=1") -> 0 | E16: =C16+D16 -> 0 | G16: 2 | H16: 1 | I16: 2 | J16: 1 | K16: 2 | L16: 1 | M16: 2 | N16: 1 | O16: 2 | P16: 1 | Q16: 2 | R16: 1 | T16: 2 | U16: 1 | V16: 2 | W16: 1
A17: =IF(F17="","",1) -> 1 | B17: =AO17 -> 9 | C17: =IF(B17="SD/F",1,0) -> 0 | D17: =IF(B17<6,1,0) -> 0 | E17: =IF(B17="SD/F",1,IF(B17<6,1,0)) -> 0 | F17: GUZMAN SANTOS ALAN | G17: A | H17: A | I17: A | J17: A | K17: A | L17: A | M17: A | N17: A | O17: A | P17: A | Q17: A | R17: A | T17: A | AK17: =IF(G17="","",COUNTIF(G17:AJ17,"A")+COUNTIF(G17:AJ17,"J")) -> 13 | AL17: =IF(AK17="","",COUNTIF(G17:AJ17,"F")) -> 0 | AM17: =IF(AK17="","",($AK$15-AL17)*$AM$15) -> 100 | AN17: =IF('1ERPM'!W20="","",IF('1ERPM'!W20=0,0,('1ERPM'!W20)*100)) -> 94 | AO17: =IF(AM17<80,"SD/F",IF(AN17="","",IF(AN17>=96,10,IF(AN17>=86,9,IF(AN17>=76,8,IF(AN17>=66,7,IF(AN17>=56,6,IF(AN17>=46,5,IF(AN17>=36,4,IF(AN17>=26,3,IF(AN17>=16,2,IF(AN17>=6,1,IF(AN17>=0,0,""))))))))))))) -> 9 | AP17: =IF(AM17<80,"SD/F",IF(AO17="","",IF(AO17>=9.6,"DIEZ",IF(AO17>=8.6,"NUEVE",IF(AO17>=7.6,"OCHO",IF(AO17>=6.6,"SIETE",IF(AO17>=5.6,"SEIS",IF(AO17>=4.6,"CINCO",IF(AO17>=3.6,"CUATRO",IF(AO17>=2.6,"TRES",IF(AO17>=1.6,"DOS",IF(AO17>=0.6,"UNO",IF(AO17>=0,"CERO",""))))))))))))) -> NUEVE | AQ17: =IF(AP17="","",IF(AP17="SD/F",0,($AQ$15/10)*AO17)) -> 22.5
A18: =IF(F18="","",A17+1) -> 2 | B18: 9 | C18: =IF(B18="SD/F",1,0) -> 0 | D18: =IF(B18<6,1,0) -> 0 | E18: =IF(B18="SD/F",E17+1,IF(B18<6,E17+1,E17)) -> 0 | F18: ILLAN MONJARDIN JOSE LUIS | G18: A | H18: A | I18: A | J18: A | K18: A | L18: A | M18: A | N18: A | O18: A | P18: A | Q18: A | R18: A | AK18: =IF(G18="","",COUNTIF(G18:AJ18,"A")+COUNTIF(G18:AJ18,"J")) -> 12 | AL18: =IF(AK18="","",COUNTIF(G18:AJ18,"F")) -> 0 | AM18: =IF(AK18="","",($AK$15-AL18)*$AM$15) -> 100 | AN18: =IF('1ERPM'!W21="","",IF('1ERPM'!W21=0,0,('1ERPM'!W21)*100)) -> 94 | AO18: =IF(AM18<80,"SD/F",IF(AN18="","",IF(AN18>=96,10,IF(AN18>=86,9,IF(AN18>=76,8,IF(AN18>=66,7,IF(AN18>=56,6,IF(AN18>=46,5,IF(AN18>=36,4,IF(AN18>=26,3,IF(AN18>=16,2,IF(AN18>=6,1,IF(AN18>=0,0,""))))))))))))) -> 9 | AP18: =IF(AM18<80,"SD/F",IF(AO18="","",IF(AO18>=9.6,"DIEZ",IF(AO18>=8.6,"NUEVE",IF(AO18>=7.6,"OCHO",IF(AO18>=6.6,"SIETE",IF(AO18>=5.6,"SEIS",IF(AO18>=4.6,"CINCO",IF(AO18>=3.6,"CUATRO",IF(AO18>=2.6,"TRES",IF(AO18>=1.6,"DOS",IF(AO18>=0.6,"UNO",IF(AO18>=0,"CERO",""))))))))))))) -> NUEVE | AQ18: =IF(AP18="","",IF(AP18="SD/F",0,($AQ$15/10)*AO18)) -> 22.5
A19: =IF(F19="","",A18+1) -> 3 | B19: 8 | C19: 0 | D19: 0 | E19: =IF(B19="SD/F",E18+1,IF(B19<6,E18+1,E18)) -> 0 | F19: LA MADRID GONZALEZ FERNANDA ISABEL | G19: A | H19: A | I19: A | J19: A | K19: A | L19: A | M19: A | N19: A | O19: A | P19: A | Q19: A | R19: A | AK19: 12 | AL19: 0 | AM19: 100 | AN19: =IF('1ERPM'!W22="","",IF('1ERPM'!W22=0,0,('1ERPM'!W22)*100)) -> 77.33333333 | AO19: 8 | AP19: OCHO | AQ19: 20
A20: 4 | F20: LOPEZ CASTRO GLORIA KARINA | G20: A | H20: A | I20: A | J20: A | K20: A | L20: A | M20: A | N20: A | O20: A | P20: A | Q20: A | R20: A | AK20: 12 | AL20: 0 | AM20: 100 | AN20: =IF('1ERPM'!W23="","",IF('1ERPM'!W23=0,0,('1ERPM'!W23)*100)) -> 94 | AO20: 9 | AP20: NUEVE | AQ20: 22.5
A21: 5 | B21: 9 | C21: 0 | D21: 0 | E21: =IF(B21="SD/F",E19+1,IF(B21<6,E19+1,E19)) -> 0 | F21: GUZMAN SANTOS ALAN | G21: A | H21: A | I21: A | J21: A | K21: A | L21: A | M21: A | N21: A | O21: A | P21: A | Q21: A | R21: A | AK21: 12 | AL21: 0 | AM21: 100 | AN21: =IF('1ERPM'!W24="","",IF('1ERPM'!W24=0,0,('1ERPM'!W24)*100)) -> 94 | AO21: 9 | AP21: NUEVE | AQ21: 22.5
A22: 6 | B22: 9 | C22: 0 | D22: 0 | E22: 0 | F22: Y | G22: A | H22: A | I22: A | J22: A | K22: A | L22: A | M22: A | N22: A | O22: A | P22: A | Q22: A | R22: A | AK22: 12 | AL22: 0 | AM22: 100 | AN22: =IF('1ERPM'!W25="","",IF('1ERPM'!W25=0,0,('1ERPM'!W25)*100)) -> 94 | AO22: 9 | AP22: NUEVE | AQ22: 22.5
A23: 7 | B23: 9 | C23: 0 | D23: 0 | E23: 0 | F23: U | G23: A | H23: A | I23: A | J23: A | K23: A | L23: A | M23: A | N23: A | O23: A | P23: A | Q23: A | R23: A | AK23: =IF(G23="","",COUNTIF(G23:AJ23,"A")+COUNTIF(G23:AJ23,"J")) -> 12 | AL23: =IF(AK23="","",COUNTIF(G23:AJ23,"F")) -> 0 | AM23: =IF(AK23="","",($AK$15-AL23)*$AM$15) -> 100 | AN23: =IF('1ERPM'!W26="","",IF('1ERPM'!W26=0,0,('1ERPM'!W26)*100)) -> 94 | AO23: =IF(AM23<80,"SD/F",IF(AN23="","",IF(AN23>=96,10,IF(AN23>=86,9,IF(AN23>=76,8,IF(AN23>=66,7,IF(AN23>=56,6,IF(AN23>=46,5,IF(AN23>=36,4,IF(AN23>=26,3,IF(AN23>=16,2,IF(AN23>=6,1,IF(AN23>=0,0,""))))))))))))) -> 9 | AP23: =IF(AM23<80,"SD/F",IF(AO23="","",IF(AO23>=9.6,"DIEZ",IF(AO23>=8.6,"NUEVE",IF(AO23>=7.6,"OCHO",IF(AO23>=6.6,"SIETE",IF(AO23>=5.6,"SEIS",IF(AO23>=4.6,"CINCO",IF(AO23>=3.6,"CUATRO",IF(AO23>=2.6,"TRES",IF(AO23>=1.6,"DOS",IF(AO23>=0.6,"UNO",IF(AO23>=0,"CERO",""))))))))))))) -> NUEVE | AQ23: =IF(AP23="","",IF(AP23="SD/F",0,($AQ$15/10)*AO23)) -> 22.5
A24: 8 | B24: 9 | C24: 0 | D24: 0 | E24: 0 | F24: ILLAN MONJARDIN JOSE LUIS | G24: A | H24: A | I24: A | J24: F | K24: A | L24: A | M24: A | N24: A | O24: A | P24: A | Q24: A | R24: A | AK24: 11 | AL24: 1 | AM24: 93.75 | AN24: =IF('1ERPM'!W27="","",IF('1ERPM'!W27=0,0,('1ERPM'!W27)*100)) -> 94 | AO24: 9 | AP24: NUEVE | AQ24: 22.5
A25: =IF(F25="","",A24+1) -> 9 | B25: =AO25 -> 9 | C25: =IF(B25="SD/F",1,0) -> 0 | D25: =IF(B25<6,1,0) -> 0 | E25: =IF(B25="SD/F",E24+1,IF(B25<6,E24+1,E24)) -> 0 | F25: e | G25: A | H25: A | I25: A | J25: F | K25: A | L25: A | M25: A | N25: A | O25: A | P25: A | Q25: A | R25: A | AK25: 11 | AL25: 1 | AM25: 93.75 | AN25: =IF('1ERPM'!W28="","",IF('1ERPM'!W28=0,0,('1ERPM'!W28)*100)) -> 94 | AO25: 9 | AP25: NUEVE | AQ25: 22.5
A26: 10 | B26: 9 | C26: 0 | D26: 0 | E26: 0 | F26: f | G26: A | H26: A | I26: A | J26: F | K26: A | L26: A | M26: A | N26: A | O26: A | P26: A | Q26: A | R26: A | AK26: 11 | AL26: 1 | AM26: 93.75 | AN26: =IF('1ERPM'!W29="","",IF('1ERPM'!W29=0,0,('1ERPM'!W29)*100)) -> 94 | AO26: 9 | AP26: NUEVE | AQ26: 22.5
A27: 11 | B27: 9 | C27: 0 | D27: 0 | E27: 0 | F27: GUZMAN SANTOS ALAN | G27: A | H27: A | I27: A | J27: F | K27: A | L27: A | M27: A | N27: A | O27: A | P27: A | Q27: A | R27: A | AK27: 11 | AL27: 1 | AM27: 93.75 | AN27: =IF('1ERPM'!W30="","",IF('1ERPM'!W30=0,0,('1ERPM'!W30)*100)) -> 94 | AO27: 9 | AP27: NUEVE | AQ27: 22.5
A28: 12 | B28: 9 | C28: 0 | D28: 0 | E28: 0 | F28: h | G28: A | H28: A | I28: A | J28: F | K28: A | L28: A | M28: A | N28: A | O28: A | P28: A | Q28: A | R28: A | AK28: 11 | AL28: 1 | AM28: 93.75 | AN28: =IF('1ERPM'!W31="","",IF('1ERPM'!W31=0,0,('1ERPM'!W31)*100)) -> 94 | AO28: 9 | AP28: NUEVE | AQ28: 22.5
A29: 13 | B29: 9 | C29: 0 | D29: 0 | E29: 0 | F29: ILLAN MONJARDIN JOSE LUIS | G29: A | H29: A | I29: A | J29: F | K29: F | L29: F | M29: A | N29: A | O29: A | P29: A | Q29: A | R29: A | AK29: 9 | AL29: 3 | AM29: 81.25 | AN29: =IF('1ERPM'!W32="","",IF('1ERPM'!W32=0,0,('1ERPM'!W32)*100)) -> 94 | AO29: 9 | AP29: NUEVE | AQ29: 22.5
A30: 14 | B30: 9 | C30: 0 | D30: 0 | E30: 0 | F30: T | G30: A | H30: A | I30: A | J30: A | K30: A | L30: A | M30: A | N30: A | O30: A | P30: A | Q30: A | R30: A | AK30: =IF(G30="","",COUNTIF(G30:AJ30,"A")+COUNTIF(G30:AJ30,"J")) -> 12 | AL30: =IF(AK30="","",COUNTIF(G30:AJ30,"F")) -> 0 | AM30: =IF(AK30="","",($AK$15-AL30)*$AM$15) -> 100 | AN30: =IF('1ERPM'!W33="","",IF('1ERPM'!W33=0,0,('1ERPM'!W33)*100)) -> 94 | AO30: =IF(AM30<80,"SD/F",IF(AN30="","",IF(AN30>=96,10,IF(AN30>=86,9,IF(AN30>=76,8,IF(AN30>=66,7,IF(AN30>=56,6,IF(AN30>=46,5,IF(AN30>=36,4,IF(AN30>=26,3,IF(AN30>=16,2,IF(AN30>=6,1,IF(AN30>=0,0,""))))))))))))) -> 9 | AP30: =IF(AM30<80,"SD/F",IF(AO30="","",IF(AO30>=9.6,"DIEZ",IF(AO30>=8.6,"NUEVE",IF(AO30>=7.6,"OCHO",IF(AO30>=6.6,"SIETE",IF(AO30>=5.6,"SEIS",IF(AO30>=4.6,"CINCO",IF(AO30>=3.6,"CUATRO",IF(AO30>=2.6,"TRES",IF(AO30>=1.6,"DOS",IF(AO30>=0.6,"UNO",IF(AO30>=0,"CERO",""))))))))))))) -> NUEVE | AQ30: =IF(AP30="","",IF(AP30="SD/F",0,($AQ$15/10)*AO30)) -> 22.5
C31: 0 | D31: 0 | E31: 0 | AN31: =IF('1ERPM'!W34="","",IF('1ERPM'!W34=0,0,('1ERPM'!W34)*100)) -> 
C32: 0 | D32: 0 | E32: 0 | AN32: =IF('1ERPM'!W35="","",IF('1ERPM'!W35=0,0,('1ERPM'!W35)*100)) -> 
C33: 0 | D33: 0 | E33: 0 | AN33: =IF('1ERPM'!W36="","",IF('1ERPM'!W36=0,0,('1ERPM'!W36)*100)) -> 
C34: 0 | D34: 0 | E34: 0 | AN34: =IF('1ERPM'!W37="","",IF('1ERPM'!W37=0,0,('1ERPM'!W37)*100)) -> 
C35: 0 | D35: 0 | E35: 0 | AN35: =IF('1ERPM'!W38="","",IF('1ERPM'!W38=0,0,('1ERPM'!W38)*100)) -> 
C36: 0 | D36: 0 | E36: 0 | AN36: =IF('1ERPM'!W39="","",IF('1ERPM'!W39=0,0,('1ERPM'!W39)*100)) -> 
C37: 0 | D37: 0 | E37: 0 | AN37: =IF('1ERPM'!W40="","",IF('1ERPM'!W40=0,0,('1ERPM'!W40)*100)) -> 
C38: 0 | D38: 0 | E38: 0 | AN38: =IF('1ERPM'!W41="","",IF('1ERPM'!W41=0,0,('1ERPM'!W41)*100)) -> 
C39: 0 | D39: 0 | E39: 0 | AN39: =IF('1ERPM'!W42="","",IF('1ERPM'!W42=0,0,('1ERPM'!W42)*100)) -> 
C40: 0 | D40: 0 | E40: 0 | AN40: =IF('1ERPM'!W43="","",IF('1ERPM'!W43=0,0,('1ERPM'!W43)*100)) -> 
C41: 0 | D41: 0 | E41: 0 | AN41: =IF('1ERPM'!W44="","",IF('1ERPM'!W44=0,0,('1ERPM'!W44)*100)) -> 
C42: 0 | D42: 0 | E42: 0 | AN42: =IF('1ERPM'!W45="","",IF('1ERPM'!W45=0,0,('1ERPM'!W45)*100)) -> 
C43: 0 | D43: 0 | E43: 0 | AN43: =IF('1ERPM'!W46="","",IF('1ERPM'!W46=0,0,('1ERPM'!W46)*100)) -> 
C44: 0 | D44: 0 | E44: 0 | AN44: =IF('1ERPM'!W47="","",IF('1ERPM'!W47=0,0,('1ERPM'!W47)*100)) -> 
C45: 0 | D45: 0 | E45: 0 | AN45: =IF('1ERPM'!W48="","",IF('1ERPM'!W48=0,0,('1ERPM'!W48)*100)) -> 
C46: 0 | D46: 0 | E46: 0 | AN46: =IF('1ERPM'!W49="","",IF('1ERPM'!W49=0,0,('1ERPM'!W49)*100)) -> 
C47: 0 | D47: 0 | E47: 0 | AN47: =IF('1ERPM'!W50="","",IF('1ERPM'!W50=0,0,('1ERPM'!W50)*100)) -> 
A48: =IF(F48="","",A47+1) ->  | C48: 0 | D48: 0 | E48: 0 | AN48: =IF('1ERPM'!W51="","",IF('1ERPM'!W51=0,0,('1ERPM'!W51)*100)) -> 
C49: 0 | D49: 0 | E49: 0 | AN49: =IF('1ERPM'!W52="","",IF('1ERPM'!W52=0,0,('1ERPM'!W52)*100)) -> 
C50: 0 | D50: 0 | E50: 0 | AN50: =IF('1ERPM'!W53="","",IF('1ERPM'!W53=0,0,('1ERPM'!W53)*100)) -> 
C51: 0 | D51: 0 | E51: 0 | AN51: =IF('1ERPM'!W54="","",IF('1ERPM'!W54=0,0,('1ERPM'!W54)*100)) -> 
C52: 0 | D52: 0 | E52: 0 | AN52: =IF('1ERPM'!W55="","",IF('1ERPM'!W55=0,0,('1ERPM'!W55)*100)) -> 
C53: 0 | D53: 0 | E53: 0 | AN53: =IF('1ERPM'!W56="","",IF('1ERPM'!W56=0,0,('1ERPM'!W56)*100)) -> 
C54: 0 | D54: 0 | E54: 0 | AN54: =IF('1ERPM'!W57="","",IF('1ERPM'!W57=0,0,('1ERPM'!W57)*100)) -> 
C55: 0 | D55: 0 | E55: 0 | AN55: =IF('1ERPM'!W58="","",IF('1ERPM'!W58=0,0,('1ERPM'!W58)*100)) -> 
C56: 0 | D56: 0 | E56: 0 | AN56: =IF('1ERPM'!W59="","",IF('1ERPM'!W59=0,0,('1ERPM'!W59)*100)) -> 
C57: 0 | D57: 0 | E57: 0 | AN57: =IF('1ERPM'!W60="","",IF('1ERPM'!W60=0,0,('1ERPM'!W60)*100)) -> 
C58: 0 | D58: 0 | E58: 0 | AN58: =IF('1ERPM'!W61="","",IF('1ERPM'!W61=0,0,('1ERPM'!W61)*100)) -> 
C59: 0 | D59: 0 | E59: 0 | AN59: =IF('1ERPM'!W62="","",IF('1ERPM'!W62=0,0,('1ERPM'!W62)*100)) -> 
C60: 0 | D60: 0 | E60: 0 | AN60: =IF('1ERPM'!W63="","",IF('1ERPM'!W63=0,0,('1ERPM'!W63)*100)) -> 
C61: 0 | D61: 0 | E61: 0 | AN61: =IF('1ERPM'!W64="","",IF('1ERPM'!W64=0,0,('1ERPM'!W64)*100)) -> 
C62: 0 | D62: 0 | E62: 0 | AN62: =IF('1ERPM'!W65="","",IF('1ERPM'!W65=0,0,('1ERPM'!W65)*100)) -> 
C63: 0 | D63: 0 | E63: 0 | AN63: =IF('1ERPM'!W66="","",IF('1ERPM'!W66=0,0,('1ERPM'!W66)*100)) -> 
C64: 0 | D64: 0 | E64: 0 | AN64: =IF('1ERPM'!W67="","",IF('1ERPM'!W67=0,0,('1ERPM'!W67)*100)) -> 
C65: 0 | D65: 0 | E65: 0 | AN65: =IF('1ERPM'!W68="","",IF('1ERPM'!W68=0,0,('1ERPM'!W68)*100)) -> 
C66: 0 | D66: 0 | E66: 0 | AN66: =IF('1ERPM'!W69="","",IF('1ERPM'!W69=0,0,('1ERPM'!W69)*100)) -> 

Sheet 1ERPM
E1: MATRIZ DE EVALUACIÓN
U4: CICLO ESCOLAR | W4: =IF('1ERPA'!W2="","",'1ERPA'!W2) -> 2018-2019
V5: =IF('1ERPA'!A3="","",'1ERPA'!A3) -> PRIMER PARCIAL
B7: LICENCIATURA EN: | C7: =IF('1ERPA'!M5="","",'1ERPA'!M5) -> Ingeniería en Sistemas Computacionales
B8: ASIGNATURA: | C8: =IF('1ERPA'!AD5="","",'1ERPA'!AD5) -> SEGURIDAD INFORMÁTICA Y DE REDES
B9: ='1ERPA'!J7 -> CUATRIMESTRE: | C9: =IF('1ERPA'!K7="","",'1ERPA'!K7) -> QUINTO
B10: GRUPO: | C10: =IF('1ERPA'!Q7="","",'1ERPA'!Q7) -> A
B11: PERIODO: | C11: =IF('1ERPA'!V7="","",'1ERPA'!V7) -> A | P11: =IF('1ERPA'!X10="","",'1ERPA'!X10) -> ALDO ORTEGA PACHECO
B12: COMPETENCIA: | C12: Aplicar procedimientos, estrategias y herramientas que permitan garantizar la integridad, la disponibilidad y la confidencialidad de la información de una entidad. | P12: NOMBRE Y FIRMA DEL CATEDRÁTICO
C13: Investigar los tipos de ataques que se pueden presentar en un sistema informático para prevenir y corregir cada uno de ellos.
A14: No. | B14: Alumnos | C14: Indicadores de desempeño | I14: =IF(H15>S14,"POR ENCIMA DEL PORCENTAJE",IF(H15<S14,"POR DEBAJO DEL PORCENTAJE"," Evaluación de evidencias de aprendizaje")) -> Evaluación de evidencias de aprendizaje | S14: 0.5 | U14: Fines Formativos | W14: SUMA TOTAL
C15: =SUM(C19:H19) -> 0.5 | D15: =IF(C15>G15,"POR ENCIMA DEL PORCENTAJE",IF(C15<G15,"POR DEBAJO DEL PORCENTAJE","(Niveles de dominio)")) -> (Niveles de dominio) | G15: 0.5 | H15: =SUM(J19,L19,N19,P19,R19,T19) -> 0.5
C16: ID1. Sin nivel Identifica un Login Pre-formal Elige un lenguaje para la construcción de un Login Receptivo Construye un Login algoritmicamente Estratégico Realiza un Login, mostrando la identificación y autentificación | D16: ID1. Sin nivel Identifica un Login Pre-formal Elige un lenguaje para la construcción de un Login Receptivo Construye un Login algoritmicamente Estratégico Realiza un Login, mostrando la identificación y autentificación | I16: EA1: Realiza una presentación en PowerPoint mostrando los conocimientos adquiridos. | U16: Autoevaluación | V16: Coevaluación
I18: C | J18: P | K18: C | L18: P | M18: C | N18: P | O18: C | P18: P | Q18: C | R18: P | S18: C | T18: P
C19: 0.3 | D19: 0.2 | I19: 9 | J19: 0.5
A20: =IF(B20="","",1) -> 1 | B20: =IF('1ERPA'!F17="","",'1ERPA'!F17) -> GUZMAN SANTOS ALAN | C20: Estratégico | D20: Receptivo | I20: 9 | J20: =IF(I20="","",($J$19/$I$19)*I20) -> 0.5 | L20: =IF(K20="","",($L$19/$K$19)*K20) ->  | N20: =IF(M20="","",($N$19/$M$19)*M20) ->  | P20: =IF(O20="","",($P$19/$O$19)*O20) ->  | R20: =IF(Q20="","",($R$19/$Q$19)*Q20) ->  | T20: =IF(S20="","",($T$19/$S$19)*S20) ->  | W20: =IF(B20="","",(IF(B20="",0,IF(C20="Sin Nivel",($C$19)*0,IF(C20="Pre-Formal",($C$19)*60%,IF(C20="Receptivo",($C$19)*70%,IF(C20="Resolutivo",($C$19)*80%,IF(C20="Autónomo",($C$19)*90%,IF(C20="Estratégico",($C$19)*100%,0)))))))+IF(D20="",0,IF(D20="Sin Nivel",($D$19)*0,IF(D20="Pre-Formal",($D$19)*60%,IF(D20="Receptivo",($D$19)*70%,IF(D20="Resolutivo",($D$19)*80%,IF(D20="Autónomo",($D$19)*90%,IF(D20="Estratégico",($D$19)*100%,0)))))))+IF(E20="",0,IF(E20="Sin Nivel",($E$19)*0,IF(E20="Pre-Formal",($E$19)*60%,IF(E20="Receptivo",($E$19)*70%,IF(E20="Resolutivo",($E$19)*80%,IF(E20="Autónomo",($E$19)*90%,IF(E20="Estratégico",($E$19)*100%,0)))))))+IF(F20="",0,IF(F20="Sin Nivel",($F$19)*0,IF(F20="Pre-Formal",($F$19)*60%,IF(F20="Receptivo",($F$19)*70%,IF(F20="Resolutivo",($F$19)*80%,IF(F20="Autónomo",($F$19)*90%,IF(F20="Estratégico",($F$19)*100%,0)))))))+IF(G20="",0,IF(G20="Sin Nivel",($G$19)*0,IF(G20="Pre-Formal",($G$19)*60%,IF(G20="Receptivo",($G$19)*70%,IF(G20="Resolutivo",($G$19)*80%,IF(G20="Autónomo",($G$19)*90%,IF(G20="Estratégico",($G$19)*100%,0)))))))+IF(H20="",0,IF(H20="Sin Nivel",($H$19)*0,IF(H20="Pre-Formal",($H$19)*60%,IF(H20="Receptivo",($H$19)*70%,IF(H20="Resolutivo",($H$19)*80%,IF(H20="Autónomo",($H$19)*90%,IF(H20="Estratégico",($H$19)*100%,0))))))))+SUM(J20,L20,N20,P20,R20,T20)) -> 0.94 | X20: =IF(C20="","",(IF(C20="",0,IF(C20="Sin Nivel",($C$19/5)*0,IF(C20="Pre-Formal",($C$19/5)*1,IF(C20="Receptivo",($C$19/5)*2,IF(C20="Resolutivo",($C$19/5)*3,IF(C20="Autónomo",($C$19/5)*4,IF(C20="Estratégico",($C$19/5)*5,0)))))))+IF(D20="",0,IF(D20="Sin Nivel",($D$19/5)*0,IF(D20="Pre-Formal",($D$19/5)*1,IF(D20="Receptivo",($D$19/5)*2,IF(D20="Resolutivo",($D$19/5)*3,IF(D20="Autónomo",($D$19/5)*4,IF(D20="Estratégico",($D$19/5)*5,0)))))))+IF(E20="",0,IF(E20="Sin Nivel",($E$19/5)*0,IF(E20="Pre-Formal",($E$19/5)*1,IF(E20="Receptivo",($E$19/5)*2,IF(E20="Resolutivo",($E$19/5)*3,IF(E20="Autónomo",($E$19/5)*4,IF(E20="Estratégico",($E$19/5)*5,0)))))))+IF(F20="",0,IF(F20="Sin Nivel",($F$19/5)*0,IF(F20="Pre-Formal",($F$19/5)*1,IF(F20="Receptivo",($F$19/5)*2,IF(F20="Resolutivo",($F$19/5)*3,IF(F20="Autónomo",($F$19/5)*4,IF(F20="Estratégico",($F$19/5)*5,0)))))))+IF(G20="",0,IF(G20="Sin Nivel",($G$19/5)*0,IF(G20="Pre-Formal",($G$19/5)*1,IF(G20="Receptivo",($G$19/5)*2,IF(G20="Resolutivo",($G$19/5)*3,IF(G20="Autónomo",($G$19/5)*4,IF(G20="Estratégico",($G$19/5)*5,0)))))))+IF(H20="",0,IF(H20="Sin Nivel",($H$19/5)*0,IF(H20="Pre-Formal",($H$19/5)*1,IF(H20="Receptivo",($H$19/5)*2,IF(H20="Resolutivo",($H$19/5)*3,IF(H20="Autónomo",($H$19/5)*4,IF(H20="Estratégico",($H$19/5)*5,0))))))))) -> 0.38 | Y20: =SUM(J20,L20,N20,P20,R20,T20) -> 0.5
A21: =IF(B21="","",A20+1) -> 2 | B21: =IF('1ERPA'!F18="","",'1ERPA'!F18) -> ILLAN MONJARDIN JOSE LUIS | C21: Estratégico | D21: Receptivo | I21: 9 | J21: 0.5 | R21: =IF(Q21="","",($R$19/$Q$19)*Q21) ->  | T21: =IF(S21="","",($T$19/$S$19)*S21) ->  | W21: =IF(B21="","",(IF(B21="",0,IF(C21="Sin Nivel",($C$19)*0,IF(C21="Pre-Formal",($C$19)*60%,IF(C21="Receptivo",($C$19)*70%,IF(C21="Resolutivo",($C$19)*80%,IF(C21="Autónomo",($C$19)*90%,IF(C21="Estratégico",($C$19)*100%,0)))))))+IF(D21="",0,IF(D21="Sin Nivel",($D$19)*0,IF(D21="Pre-Formal",($D$19)*60%,IF(D21="Receptivo",($D$19)*70%,IF(D21="Resolutivo",($D$19)*80%,IF(D21="Autónomo",($D$19)*90%,IF(D21="Estratégico",($D$19)*100%,0)))))))+IF(E21="",0,IF(E21="Sin Nivel",($E$19)*0,IF(E21="Pre-Formal",($E$19)*60%,IF(E21="Receptivo",($E$19)*70%,IF(E21="Resolutivo",($E$19)*80%,IF(E21="Autónomo",($E$19)*90%,IF(E21="Estratégico",($E$19)*100%,0)))))))+IF(F21="",0,IF(F21="Sin Nivel",($F$19)*0,IF(F21="Pre-Formal",($F$19)*60%,IF(F21="Receptivo",($F$19)*70%,IF(F21="Resolutivo",($F$19)*80%,IF(F21="Autónomo",($F$19)*90%,IF(F21="Estratégico",($F$19)*100%,0)))))))+IF(G21="",0,IF(G21="Sin Nivel",($G$19)*0,IF(G21="Pre-Formal",($G$19)*60%,IF(G21="Receptivo",($G$19)*70%,IF(G21="Resolutivo",($G$19)*80%,IF(G21="Autónomo",($G$19)*90%,IF(G21="Estratégico",($G$19)*100%,0)))))))+IF(H21="",0,IF(H21="Sin Nivel",($H$19)*0,IF(H21="Pre-Formal",($H$19)*60%,IF(H21="Receptivo",($H$19)*70%,IF(H21="Resolutivo",($H$19)*80%,IF(H21="Autónomo",($H$19)*90%,IF(H21="Estratégico",($H$19)*100%,0))))))))+SUM(J21,L21,N21,P21,R21,T21)) -> 0.94 | X21: =IF(C21="","",(IF(C21="",0,IF(C21="Sin Nivel",($C$19/5)*0,IF(C21="Pre-Formal",($C$19/5)*1,IF(C21="Receptivo",($C$19/5)*2,IF(C21="Resolutivo",($C$19/5)*3,IF(C21="Autónomo",($C$19/5)*4,IF(C21="Estratégico",($C$19/5)*5,0)))))))+IF(D21="",0,IF(D21="Sin Nivel",($D$19/5)*0,IF(D21="Pre-Formal",($D$19/5)*1,IF(D21="Receptivo",($D$19/5)*2,IF(D21="Resolutivo",($D$19/5)*3,IF(D21="Autónomo",($D$19/5)*4,IF(D21="Estratégico",($D$19/5)*5,0)))))))+IF(E21="",0,IF(E21="Sin Nivel",($E$19/5)*0,IF(E21="Pre-Formal",($E$19/5)*1,IF(E21="Receptivo",($E$19/5)*2,IF(E21="Resolutivo",($E$19/5)*3,IF(E21="Autónomo",($E$19/5)*4,IF(E21="Estratégico",($E$19/5)*5,0)))))))+IF(F21="",0,IF(F21="Sin Nivel",($F$19/5)*0,IF(F21="Pre-Formal",($F$19/5)*1,IF(F21="Receptivo",($F$19/5)*2,IF(F21="Resolutivo",($F$19/5)*3,IF(F21="Autónomo",($F$19/5)*4,IF(F21="Estratégico",($F$19/5)*5,0)))))))+IF(G21="",0,IF(G21="Sin Nivel",($G$19/5)*0,IF(G21="Pre-Formal",($G$19/5)*1,IF(G21="Receptivo",($G$19/5)*2,IF(G21="Resolutivo",($G$19/5)*3,IF(G21="Autónomo",($G$19/5)*4,IF(G21="Estratégico",($G$19/5)*5,0)))))))+IF(H21="",0,IF(H21="Sin Nivel",($H$19/5)*0,IF(H21="Pre-Formal",($H$19/5)*1,IF(H21="Receptivo",($H$19/5)*2,IF(H21="Resolutivo",($H$19/5)*3,IF(H21="Autónomo",($H$19/5)*4,IF(H21="Estratégico",($H$19/5)*5,0))))))))) -> 0.38 | Y21: =SUM(J21,L21,N21,P21,R21,T21) -> 0.5
A22: =IF(B22="","",A21+1) -> 3 | B22: =IF('1ERPA'!F19="","",'1ERPA'!F19) -> LA MADRID GONZALEZ FERNANDA ISABEL | C22: Estratégico | D22: Receptivo | I22: 6 | J22: 0.3333333333 | R22: =IF(Q22="","",($R$19/$Q$19)*Q22) ->  | T22: =IF(S22="","",($T$19/$S$19)*S22) ->  | W22: 0.7733333333 | X22: 0.38 | Y22: 0.3333333333
A23: =IF(B23="","",A22+1) -> 4 | B23: =IF('1ERPA'!F20="","",'1ERPA'!F20) -> LOPEZ CASTRO GLORIA KARINA | C23: Estratégico | D23: Receptivo | I23: 9 | J23: =IF(I23="","",($J$19/$I$19)*I23) -> 0.5 | L23: =IF(K23="","",($L$19/$K$19)*K23) ->  | T23: =IF(S23="","",($T$19/$S$19)*S23) ->  | W23: 0.94
A24: 5 | B24: =IF('1ERPA'!F21="","",'1ERPA'!F21) -> GUZMAN SANTOS ALAN | C24: Estratégico | D24: Receptivo | I24: 9 | J24: 0.5 | W24: 0.94 | X24: 0.38 | Y24: 0.5
A25: 6 | B25: =IF('1ERPA'!F22="","",'1ERPA'!F22) -> Y | C25: Estratégico | D25: Receptivo | I25: 9 | J25: 0.5 | R25: =IF(Q25="","",($R$19/$Q$19)*Q25) ->  | T25: =IF(S25="","",($T$19/$S$19)*S25) ->  | W25: 0.94 | X25: 0.38 | Y25: 0.5
A26: 7 | B26: =IF('1ERPA'!F23="","",'1ERPA'!F23) -> U | C26: Estratégico | D26: Receptivo | I26: 9 | J26: 0.5 | N26: =IF(M26="","",($N$19/$M$19)*M26) ->  | P26: =IF(O26="","",($P$19/$O$19)*O26) ->  | R26: =IF(Q26="","",($R$19/$Q$19)*Q26) ->  | W26: 0.94 | X26: 0.38 | Y26: 0.5
A27: 8 | B27: =IF('1ERPA'!F24="","",'1ERPA'!F24) -> ILLAN MONJARDIN JOSE LUIS | C27: Estratégico | D27: Receptivo | I27: 9 | J27: 0.5 | W27: 0.94 | X27: 0.38 | Y27: 0.5
A28: =IF(B28="","",A27+1) -> 9 | B28: =IF('1ERPA'!F25="","",'1ERPA'!F25) -> e | C28: Estratégico | D28: Receptivo | I28: 9 | J28: =IF(I28="","",($J$19/$I$19)*I28) -> 0.5 | L28: =IF(K28="","",($L$19/$K$19)*K28) ->  | N28: =IF(M28="","",($N$19/$M$19)*M28) ->  | P28: =IF(O28="","",($P$19/$O$19)*O28) ->  | R28: =IF(Q28="","",($R$19/$Q$19)*Q28) ->  | T28: =IF(S28="","",($T$19/$S$19)*S28) ->  | W28: =IF(B28="","",(IF(B28="",0,IF(C28="Sin Nivel",($C$19)*0,IF(C28="Pre-Formal",($C$19)*60%,IF(C28="Receptivo",($C$19)*70%,IF(C28="Resolutivo",($C$19)*80%,IF(C28="Autónomo",($C$19)*90%,IF(C28="Estratégico",($C$19)*100%,0)))))))+IF(D28="",0,IF(D28="Sin Nivel",($D$19)*0,IF(D28="Pre-Formal",($D$19)*60%,IF(D28="Receptivo",($D$19)*70%,IF(D28="Resolutivo",($D$19)*80%,IF(D28="Autónomo",($D$19)*90%,IF(D28="Estratégico",($D$19)*100%,0)))))))+IF(E28="",0,IF(E28="Sin Nivel",($E$19)*0,IF(E28="Pre-Formal",($E$19)*60%,IF(E28="Receptivo",($E$19)*70%,IF(E28="Resolutivo",($E$19)*80%,IF(E28="Autónomo",($E$19)*90%,IF(E28="Estratégico",($E$19)*100%,0)))))))+IF(F28="",0,IF(F28="Sin Nivel",($F$19)*0,IF(F28="Pre-Formal",($F$19)*60%,IF(F28="Receptivo",($F$19)*70%,IF(F28="Resolutivo",($F$19)*80%,IF(F28="Autónomo",($F$19)*90%,IF(F28="Estratégico",($F$19)*100%,0)))))))+IF(G28="",0,IF(G28="Sin Nivel",($G$19)*0,IF(G28="Pre-Formal",($G$19)*60%,IF(G28="Receptivo",($G$19)*70%,IF(G28="Resolutivo",($G$19)*80%,IF(G28="Autónomo",($G$19)*90%,IF(G28="Estratégico",($G$19)*100%,0)))))))+IF(H28="",0,IF(H28="Sin Nivel",($H$19)*0,IF(H28="Pre-Formal",($H$19)*60%,IF(H28="Receptivo",($H$19)*70%,IF(H28="Resolutivo",($H$19)*80%,IF(H28="Autónomo",($H$19)*90%,IF(H28="Estratégico",($H$19)*100%,0))))))))+SUM(J28,L28,N28,P28,R28,T28)) -> 0.94
A29: 10 | B29: =IF('1ERPA'!F26="","",'1ERPA'!F26) -> f | C29: Estratégico | D29: Receptivo | I29: 9 | J29: 0.5 | W29: 0.94
A30: 11 | B30: =IF('1ERPA'!F27="","",'1ERPA'!F27) -> GUZMAN SANTOS ALAN | C30: Estratégico | D30: Receptivo | I30: 9 | J30: 0.5 | W30: 0.94
A31: 12 | B31: =IF('1ERPA'!F28="","",'1ERPA'!F28) -> h | C31: Estratégico | D31: Receptivo | I31: 9 | J31: 0.5 | W31: 0.94
A32: 13 | B32: =IF('1ERPA'!F29="","",'1ERPA'!F29) -> ILLAN MONJARDIN JOSE LUIS | C32: Estratégico | D32: Receptivo | I32: 9 | J32: 0.5 | W32: 0.94
A33: 14 | B33: =IF('1ERPA'!F30="","",'1ERPA'!F30) -> T | C33: Estratégico | D33: Receptivo | I33: 9 | J33: 0.5 | W33: 0.94
B34: =IF('1ERPA'!F31="","",'1ERPA'!F31) ->  | C34: Estratégico | D34: Receptivo | I34: 9 | J34: 0.5
B35: =IF('1ERPA'!F32="","",'1ERPA'!F32) ->  | C35: Estratégico | D35: Receptivo | I35: 9 | J35: 0.5
B36: =IF('1ERPA'!F33="","",'1ERPA'!F33) ->  | C36: Estratégico | D36: Receptivo | I36: 9 | J36: 0.5
B37: =IF('1ERPA'!F34="","",'1ERPA'!F34) ->  | C37: Estratégico | D37: Receptivo | I37: 9 | J37: 0.5
B38: =IF('1ERPA'!F35="","",'1ERPA'!F35) ->  | C38: Estratégico | D38: Receptivo | I38: 9 | J38: 0.5
B39: =IF('1ERPA'!F36="","",'1ERPA'!F36) ->  | C39: Estratégico | D39: Receptivo | I39: 9 | J39: 0.5
B40: =IF('1ERPA'!F37="","",'1ERPA'!F37) ->  | C40: Estratégico | D40: Receptivo | I40: 9 | J40: 0.5
B41: =IF('1ERPA'!F38="","",'1ERPA'!F38) ->  | C41: Estratégico | D41: Receptivo | I41: 9 | J41: 0.5
B42: =IF('1ERPA'!F39="","",'1ERPA'!F39) ->  | C42: Estratégico | D42: Receptivo | I42: 9 | J42: 0.5
B43: =IF('1ERPA'!F40="","",'1ERPA'!F40) ->  | C43: Estratégico | D43: Receptivo | I43: 9 | J43: 0.5
B44: =IF('1ERPA'!F41="","",'1ERPA'!F41) ->  | C44: Estratégico | D44: Receptivo | I44: 9 | J44: 0.5
B45: =IF('1ERPA'!F42="","",'1ERPA'!F42) ->  | C45: Estratégico | D45: Receptivo | I45: 9 | J45: 0.5
B46: =IF('1ERPA'!F43="","",'1ERPA'!F43) ->  | C46: Estratégico | D46: Receptivo | I46: 9 | J46: 0.5
B47: =IF('1ERPA'!F44="","",'1ERPA'!F44) ->  | Y47: 0
B48: =IF('1ERPA'!F45="","",'1ERPA'!F45) ->  | Y48: 0
B49: =IF('1ERPA'!F46="","",'1ERPA'!F46) ->  | N49: =IF(M49="","",($N$19/$M$19)*M49) ->  | P49: =IF(O49="","",($P$19/$O$19)*O49) ->  | R49: =IF(Q49="","",($R$19/$Q$19)*Q49) ->  | T49: =IF(S49="","",($T$19/$S$19)*S49) ->  | Y49: 0
B50: =IF('1ERPA'!F47="","",'1ERPA'!F47) ->  | J50: =IF(I50="","",($J$19/$I$19)*I50) ->  | L50: =IF(K50="","",($L$19/$K$19)*K50) ->  | Y50: 0
B51: =IF('1ERPA'!F48="","",'1ERPA'!F48) ->  | J51: =IF(I51="","",($J$19/$I$19)*I51) ->  | L51: =IF(K51="","",($L$19/$K$19)*K51) ->  | N51: =IF(M51="","",($N$19/$M$19)*M51) ->  | P51: =IF(O51="","",($P$19/$O$19)*O51) ->  | Y51: 0
B52: =IF('1ERPA'!F49="","",'1ERPA'!F49) ->  | Y52: 0
B53: =IF('1ERPA'!F50="","",'1ERPA'!F50) ->  | Y53: 0
B54: =IF('1ERPA'!F51="","",'1ERPA'!F51) ->  | Y54: 0
B55: =IF('1ERPA'!F52="","",'1ERPA'!F52) ->  | Y55: 0
B56: =IF('1ERPA'!F53="","",'1ERPA'!F53) ->  | Y56: 0
B57: =IF('1ERPA'!F54="","",'1ERPA'!F54) ->  | Y57: 0
B58: =IF('1ERPA'!F55="","",'1ERPA'!F55) ->  | Y58: 0
B59: =IF('1ERPA'!F56="","",'1ERPA'!F56) ->  | Y59: 0
B60: =IF('1ERPA'!F57="","",'1ERPA'!F57) ->  | Y60: 0
B61: =IF('1ERPA'!F58="","",'1ERPA'!F58) ->  | Y61: 0
B62: =IF('1ERPA'!F59="","",'1ERPA'!F59) ->  | Y62: 0
B63: =IF('1ERPA'!F60="","",'1ERPA'!F60) ->  | Y63: 0
B64: =IF('1ERPA'!F61="","",'1ERPA'!F61) ->  | Y64: 0
B65: =IF('1ERPA'!F62="","",'1ERPA'!F62) ->  | Y65: 0
B66: =IF('1ERPA'!F63="","",'1ERPA'!F63) ->  | Y66: 0
B67: =IF('1ERPA'!F64="","",'1ERPA'!F64) ->  | Y67: 0
B68: =IF('1ERPA'!F65="","",'1ERPA'!F65) ->  | Y68: 0
B69: =IF('1ERPA'!F66="","",'1ERPA'!F66) ->  | Y69: 0

Sheet 1ERPRE
AD1: =IF('1ERPA'!M5="","",'1ERPA'!M5) -> Ingeniería en Sistemas Computacionales
AF3: =IF(MAX('1ERPA'!A17:A66)=0,"",MAX('1ERPA'!A17:A66)) -> 14
AA6: 1er. | AD6: ='1ERPA'!K7 -> QUINTO | AG6: =IF('1ERPA'!Q7="","",'1ERPA'!Q7) -> A | AI6: =IF('1ERPA'!AD5="","",'1ERPA'!AD5) -> SEGURIDAD INFORMÁTICA Y DE REDES
C10: PROMEDIO MENSUAL ASISTENCIA | L10: SUSTITUCIÓN | Y10: PORCENTAJE DE APROBACIÓN | AH10: SUSTITUCÓN
D14: AR | E14: * | F14: CI | G14: - | H14: F | N14: =AF3 -> 14 | O14: * | P14: ='1ERPA'!AK15 -> 16 | Q14: - | R14: ='1ERPA'!AL15 -> 1 | S14: = | T14: =IF(N15=0,0,((N14*P14)-R14)/N15) -> 13.9375 | AA14: AA | AB14: * | AC14: 100 | AI14: =COUNTIF('1ERPA'!AO17:AO66,">=6") -> 14 | AJ14: * | AK14: 100 | AL14: = | AM14: =IF(AI15="",0,(AI14*AK14)/AI15) -> 100
D15: CI | N15: ='1ERPA'!AK15:AK16 -> 16 | AA15: AR | AI15: =AF3 -> 14
C18: PROMEDIO DE EFICIENCIA | L18: SUSTITUCIÓN | Y18: PORCENTAJE DE AVANCE PROGRAMÁTICO | AH18: SUSTITUCÓN
E22: ∑Cal | P22: =IF(P23=0,0,SUM('1ERPA'!AN17:AN66)/10) -> 129.9333333 | Q22: = | R22: =IF(P23="",0,P22/P23) -> 9.280952381 | AA22: TI | AB22: * | AC22: 100 | AI22: 10 | AJ22: * | AK22: =AC22 -> 100 | AL22: = | AM22: =IF(AI23="",0,(AI22*AK22)/AI23) -> 83.33333333
E23: AR | P23: =AF3 -> 14 | AA23: TP | AI23: 12
C26: SIMBOLOGÍA | K26: CI: | L26: Número de clases impartidas
C27: AR: | D27: Cantidad de alumnos regulares | K27: AA: | L27: Cantidad de alumnos aprobados | AE27: PUEBLA, | AG27: 3 | AH27: DE | AI27: FEBRERO | AL27: DE | AM27: 2019
C28: F: | D28: Faltas de alumnos en el periodo | K28: TI: | L28: Temas impartidos | S28: =IF('1ERPA'!X10="","",'1ERPA'!X10) -> ALDO ORTEGA PACHECO
C29: Cal: | D29: Calificaciones | K29: TP: | L29: Temas programados | S29: NOMBRE Y FIRMA DEL CATEDRÁTICO | AE29: SD/F
B31: ALUMNOS REPROBADOS Y CAUSA DE LA REPROBACIÓN
B32: NOMBRE COMPLETO DEL ALUMNO | V32: CAUSA
A33: =A32+1 -> 1 | B33: =IFERROR(VLOOKUP(A33,'1ERPA'!$E$17:$F$66,2,FALSE),"") ->  | V33: =IF(B33="","",IF(IFERROR(VLOOKUP(B33,'1ERPA'!$F$17:$AO$66,36,FALSE),0)=$AE$29,"SIN DERECHO POR FALTAS",IF(VLOOKUP(B33,'1ERPM'!B20:Y69,22,FALSE)<0.3,IF(VLOOKUP(B33,'1ERPM'!B20:Y69,21,FALSE)<0.3,"NO ENTREGO, LOS INDICADORES DE DESEMPEÑO Y EVIDENCIAS DE APRENDIZAJE NECESARIAS PARA APROBAR","NO ENTREGO, LOS INDICADORES DE DESEMPEÑO NECESARIOS PARA APROBAR"),"NO ENTREGO, LAS EVIDENCIAS DE APRENDIZAJE NECESARIOS PARA APROBAR"))) -> 
A34: 2 | B34: =IFERROR(VLOOKUP(A34,'1ERPA'!$E$17:$F$66,2,FALSE),"") ->  | V34: =IF(B34="","",IF(IFERROR(VLOOKUP(B34,'1ERPA'!$F$17:$AO$66,36,FALSE),0)=$AE$29,"SIN DERECHO POR FALTAS",IF(VLOOKUP(B34,'1ERPM'!B21:Y70,22,FALSE)<0.3,IF(VLOOKUP(B34,'1ERPM'!B21:Y70,21,FALSE)<0.3,"NO ENTREGO, LOS INDICADORES DE DESEMPEÑO Y EVIDENCIAS DE APRENDIZAJE NECESARIAS PARA APROBAR","NO ENTREGO, LOS INDICADORES DE DESEMPEÑO NECESARIOS PARA APROBAR"),"NO ENTREGO, LAS EVIDENCIAS DE APRENDIZAJE NECESARIOS PARA APROBAR"))) -> 
A35: 3 | B35: =IFERROR(VLOOKUP(A35,'1ERPA'!$E$17:$F$66,2,FALSE),"") ->  | V35: =IF(B35="","",IF(IFERROR(VLOOKUP(B35,'1ERPA'!$F$17:$AO$66,36,FALSE),0)=$AE$29,"SIN DERECHO POR FALTAS",IF(VLOOKUP(B35,'1ERPM'!B22:Y71,22,FALSE)<0.3,IF(VLOOKUP(B35,'1ERPM'!B22:Y71,21,FALSE)<0.3,"NO ENTREGO, LOS INDICADORES DE DESEMPEÑO Y EVIDENCIAS DE APRENDIZAJE NECESARIAS PARA APROBAR","NO ENTREGO, LOS INDICADORES DE DESEMPEÑO NECESARIOS PARA APROBAR"),"NO ENTREGO, LAS EVIDENCIAS DE APRENDIZAJE NECESARIOS PARA APROBAR"))) -> 
A36: 4 | B36: =IFERROR(VLOOKUP(A36,'1ERPA'!$E$17:$F$66,2,FALSE),"") ->  | V36: =IF(B36="","",IF(IFERROR(VLOOKUP(B36,'1ERPA'!$F$17:$AO$66,36,FALSE),0)=$AE$29,"SIN DERECHO POR FALTAS",IF(VLOOKUP(B36,'1ERPM'!B24:Y72,22,FALSE)<0.3,IF(VLOOKUP(B36,'1ERPM'!B24:Y72,21,FALSE)<0.3,"NO ENTREGO, LOS INDICADORES DE DESEMPEÑO Y EVIDENCIAS DE APRENDIZAJE NECESARIAS PARA APROBAR","NO ENTREGO, LOS INDICADORES DE DESEMPEÑO NECESARIOS PARA APROBAR"),"NO ENTREGO, LAS EVIDENCIAS DE APRENDIZAJE NECESARIOS PARA APROBAR"))) -> 
A37: 5 | B37: =IFERROR(VLOOKUP(A37,'1ERPA'!$E$17:$F$66,2,FALSE),"") ->  | V37: =IF(B37="","",IF(IFERROR(VLOOKUP(B37,'1ERPA'!$F$17:$AO$66,36,FALSE),0)=$AE$29,"SIN DERECHO POR FALTAS",IF(VLOOKUP(B37,'1ERPM'!B25:Y73,22,FALSE)<0.3,IF(VLOOKUP(B37,'1ERPM'!B25:Y73,21,FALSE)<0.3,"NO ENTREGO, LOS INDICADORES DE DESEMPEÑO Y EVIDENCIAS DE APRENDIZAJE NECESARIAS PARA APROBAR","NO ENTREGO, LOS INDICADORES DE DESEMPEÑO NECESARIOS PARA APROBAR"),"NO ENTREGO, LAS EVIDENCIAS DE APRENDIZAJE NECESARIOS PARA APROBAR"))) -> 
A38: 6 | B38: =IF('1ERPA'!E16>6,"Y "&'1ERPA'!E16-5&" MÁS REPROBADOS",IFERROR(VLOOKUP(A38,'1ERPA'!$E$17:$F$66,2,FALSE),"")) ->  | V38: =IF(IFERROR(VLOOKUP(A38,'1ERPA'!$E$17:$F$66,2,FALSE),"")=B38,IF(B38="","",IF(IFERROR(VLOOKUP(B38,'1ERPA'!$F$17:$AO$66,36,FALSE),0)=$AE$29,"SIN DERECHO POR FALTAS",IF(VLOOKUP(B38,'1ERPM'!B26:Y74,22,FALSE)<0.3,IF(VLOOKUP(B38,'1ERPM'!B26:Y74,21,FALSE)<0.3,"NO ENTREGO, LOS INDICADORES DE DESEMPEÑO Y EVIDENCIAS DE APRENDIZAJE NECESARIAS PARA APROBAR","NO ENTREGO, LOS INDICADORES DE DESEMPEÑO NECESARIOS PARA APROBAR"),"NO ENTREGO, LAS EVIDENCIAS DE APRENDIZAJE NECESARIOS PARA APROBAR"))),"SIN DERECHO POR FALTAS Y/O POR NO ENTREGAR LAS EVIDENCIAS NECESARIAS") -> 
AC39: =IF('1ERPA'!$C$16<>0,"CONTACTAR A LOS ALUMNOS PARA SABER QUE SUCEDE",IF('1ERPA'!$D$16<>0,"ASESORIAS PARA QUE MEJORE SU CALIFICACIÓN","")) -> 
B40: PROPUESTA DE SOLUCIÓN PARA REDUCIR EL PORCENTAJE DE REPROBACIÓN
B41: =IF(AND('1ERPA'!C16>0,'1ERPA'!D16=0),"CONTACTAR A LOS ALUMNOS PARA SABER QUE SUCEDE CON SUS ASISTENCIAS",IF(AND('1ERPA'!C16=0,'1ERPA'!D16>0),"ASESORIAS PARA QUE MEJOREN SUS CALIFICACIONES",IF(AND('1ERPA'!C16>0,'1ERPA'!D16>0),"ASESORIAS PARA QUE MEJOREN SUS CALIFICACIONES Y CONTACTAR A LOS ALUMNOS PARA SABER QUE SUCEDE CON SUS ASISTENCIAS",""))) -> 
B46: TEMAS PENDIENTES DEL PERIODO QUE SE REPORTAN
B47: TEMA(S) | V47: MOTIVO(S)

Sheet 2DOPA
A1: CONTROL DE ASISTENCIA Y EVALUACIONES
U2: CICLO ESCOLAR | Z2: =IF('1ERPA'!W2="","",'1ERPA'!W2) -> 2018-2019
A3: SEGUNDO PARCIAL
L5: LICENCIATURA EN: | M5: =IF('1ERPA'!M5="","",'1ERPA'!M5) -> Ingeniería en Sistemas Computacionales | AC5: ASIGNATURA: | AD5: =IF('1ERPA'!AD5="","",'1ERPA'!AD5) -> SEGURIDAD INFORMÁTICA Y DE REDES
J7: ='1ERPA'!J7 -> CUATRIMESTRE: | K7: =IF('1ERPA'!K7="","",'1ERPA'!K7) -> QUINTO | P7: GRUPO: | Q7: =IF('1ERPA'!Q7="","",'1ERPA'!Q7) -> A | U7: PERIODO: | V7: =IF('1ERPA'!V7="","",'1ERPA'!V7) -> A
A9: No. | F9: NOMBRE DEL ALUMNO | H9: SIMBOLOGIA: | L9: A: | M9: ASISTENCIA | AK9: CLASES IMPARTIDAS | AL9: TOTAL FALTAS | AM9: % ASISTENCIA | AN9: EVALUACIÓN | AR9: PRIMER PARCIAL | AU9: PROMEDIO % ASISTENCIA | AV9: PROMEDIO DE CALIFICACIONES | AW9: SUMA DEL % PARCIALES
L10: F: | M10: FALTA | X10: =IF('1ERPA'!X10="","",'1ERPA'!X10) -> ALDO ORTEGA PACHECO | AN10: CALIFICACIÓN | AP10: CALIF. CON LETRA | AQ10: % PARCIAL
L11: J: | M11: JUSTIFICACIÓN | X11: NOMBRE Y FIRMA DEL CATEDRÁTICO | AR11: % ASISTENCIA | AS11: CALIFICACIÓN | AT11: % PARCIAL
G12: SEGUNDO PARCIAL
G13: MARZO | U13: - | W13: ABRIL
G14: Vi | H14: Lu | I14: Vi | J14: Lu | K14: Vi | L14: Lu | M14: Vi | N14: Lu | O14: Vi | P14: Lu
G15: 28 | H15: 1 | I15: =H15+4 -> 5 | J15: =I15+3 -> 8 | K15: =J15+4 -> 12 | L15: =K15+3 -> 15 | M15: =L15+4 -> 19 | N15: =M15+3 -> 22 | O15: =N15+4 -> 26 | P15: =O15+3 -> 29 | AK15: =COUNT(G15:AJ15) -> 10 | AL15: =SUM(AL17:AL24) -> 1 | AM15: =100/AK15 -> 10 | AN15: % | AO15: T | AQ15: 25
C16: =COUNTIF(C17:C66,"=1") -> 0 | D16: =COUNTIF(D17:D66,"=1") -> 0 | E16: =C16+D16 -> 0 | G16: 2 | H16: 1 | I16: 2 | J16: 1 | K16: 2 | L16: 1 | M16: 2 | N16: 1 | O16: 2 | P16: 1
A17: =IF(F17="","",1) -> 1 | B17: =AO17 -> 10 | C17: =IF(B17="SD/F",1,0) -> 0 | D17: =IF(B17<6,1,0) -> 0 | E17: =IF(B17="SD/F",1,IF(B17<6,1,0)) -> 0 | F17: =IF('1ERPA'!F17="","",'1ERPA'!F17) -> GUZMAN SANTOS ALAN | G17: A | H17: A | I17: A | J17: A | K17: A | L17: A | M17: A | N17: A | O17: A | P17: A | AK17: =IF(G17="","",COUNTIF(G17:AJ17,"A")+COUNTIF(G17:AJ17,"J")) -> 10 | AL17: =IF(AK17="","",COUNTIF(G17:AJ17,"F")) -> 0 | AM17: =IF(AK17="","",($AK$15-AL17)*$AM$15) -> 100 | AN17: =IF('2DOPM'!W20="","",IF('2DOPM'!W20=0,"",('2DOPM'!W20)*100)) -> 100 | AO17: =IF(AM17<80,"SD/F",IF(AN17="","",IF(AN17>=96,10,IF(AN17>=86,9,IF(AN17>=76,8,IF(AN17>=66,7,IF(AN17>=56,6,IF(AN17>=46,5,IF(AN17>=36,4,IF(AN17>=26,3,IF(AN17>=16,2,IF(AN17>=6,1,IF(AN17>=0,0,""))))))))))))) -> 10 | AP17: =IF(AM17<80,"SD/F",IF(AO17="","",IF(AO17>=9.6,"DIEZ",IF(AO17>=8.6,"NUEVE",IF(AO17>=7.6,"OCHO",IF(AO17>=6.6,"SIETE",IF(AO17>=5.6,"SEIS",IF(AO17>=4.6,"CINCO",IF(AO17>=3.6,"CUATRO",IF(AO17>=2.6,"TRES",IF(AO17>=1.6,"DOS",IF(AO17>=0.6,"UNO",IF(AO17>=0,"CERO",""))))))))))))) -> DIEZ | AQ17: =IF(AP17="","",IF(AP17="SD/F",0,($AQ$15/10)*AO17)) -> 25 | AR17: ='1ERPA'!AM17 -> 100 | AS17: ='1ERPA'!AO17 -> 9 | AT17: ='1ERPA'!AQ17 -> 22.5 | AU17: =IF(AM17="","",AVERAGE(AM17,AR17)) -> 100 | AV17: =IF(AO17="","",AVERAGE(AO17,AS17)) -> 9.5 | AW17: =IF(AQ17="","",SUM(AQ17,AT17)) -> 47.5
A18: =IF(F18="","",A17+1) -> 2 | B18: 10 | C18: =IF(B18="SD/F",1,0) -> 0 | D18: =IF(B18<6,1,0) -> 0 | E18: =IF(B18="SD/F",E17+1,IF(B18<6,E17+1,E17)) -> 0 | F18: =IF('1ERPA'!F18="","",'1ERPA'!F18) -> ILLAN MONJARDIN JOSE LUIS | G18: A | H18: A | I18: A | J18: A | K18: A | L18: A | M18: A | N18: A | O18: A | P18: A | AK18: =IF(G18="","",COUNTIF(G18:AJ18,"A")+COUNTIF(G18:AJ18,"J")) -> 10 | AL18: =IF(AK18="","",COUNTIF(G18:AJ18,"F")) -> 0 | AM18: =IF(AK18="","",($AK$15-AL18)*$AM$15) -> 100 | AN18: =IF('2DOPM'!W21="","",IF('2DOPM'!W21=0,"",('2DOPM'!W21)*100)) -> 100 | AO18: =IF(AM18<80,"SD/F",IF(AN18="","",IF(AN18>=96,10,IF(AN18>=86,9,IF(AN18>=76,8,IF(AN18>=66,7,IF(AN18>=56,6,IF(AN18>=46,5,IF(AN18>=36,4,IF(AN18>=26,3,IF(AN18>=16,2,IF(AN18>=6,1,IF(AN18>=0,0,""))))))))))))) -> 10 | AP18: =IF(AM18<80,"SD/F",IF(AO18="","",IF(AO18>=9.6,"DIEZ",IF(AO18>=8.6,"NUEVE",IF(AO18>=7.6,"OCHO",IF(AO18>=6.6,"SIETE",IF(AO18>=5.6,"SEIS",IF(AO18>=4.6,"CINCO",IF(AO18>=3.6,"CUATRO",IF(AO18>=2.6,"TRES",IF(AO18>=1.6,"DOS",IF(AO18>=0.6,"UNO",IF(AO18>=0,"CERO",""))))))))))))) -> DIEZ | AQ18: =IF(AP18="","",IF(AP18="SD/F",0,($AQ$15/10)*AO18)) -> 25 | AR18: ='1ERPA'!AM18 -> 100 | AS18: ='1ERPA'!AO18 -> 9 | AT18: ='1ERPA'!AQ18 -> 22.5 | AU18: =IF(AM18="","",AVERAGE(AM18,AR18)) -> 100 | AV18: =IF(AO18="","",AVERAGE(AO18,AS18)) -> 9.5 | AW18: =IF(AQ18="","",SUM(AQ18,AT18)) -> 47.5
A19: =IF(F19="","",A18+1) -> 3 | B19: 7 | C19: 0 | D19: 0 | E19: =IF(B19="SD/F",E18+1,IF(B19<6,E18+1,E18)) -> 0 | F19: =IF('1ERPA'!F19="","",'1ERPA'!F19) -> LA MADRID GONZALEZ FERNANDA ISABEL | G19: A | H19: A | I19: A | J19: A | K19: A | L19: A | M19: F | N19: A | O19: A | P19: A | AK19: 9 | AL19: 1 | AM19: 90 | AN19: =IF('2DOPM'!W22="","",IF('2DOPM'!W22=0,"",('2DOPM'!W22)*100)) -> 73.88888889 | AO19: 7 | AP19: SIETE | AQ19: 17.5 | AR19: ='1ERPA'!AM19 -> 100 | AS19: ='1ERPA'!AO19 -> 8 | AT19: ='1ERPA'!AQ19 -> 20 | AU19: 95 | AV19: 7.5 | AW19: 37.5
A20: =IF(F20="","",A19+1) -> 4 | B20: =AO20 -> 10 | C20: =IF(B20="SD/F",1,0) -> 0 | D20: =IF(B20<6,1,0) -> 0 | E20: =IF(B20="SD/F",E19+1,IF(B20<6,E19+1,E19)) -> 0 | F20: =IF('1ERPA'!F20="","",'1ERPA'!F20) -> LOPEZ CASTRO GLORIA KARINA | G20: A | H20: A | I20: A | J20: A | K20: A | L20: A | M20: A | N20: A | O20: A | P20: A | AK20: 10 | AL20: 0 | AM20: 100 | AN20: =IF('2DOPM'!W23="","",IF('2DOPM'!W23=0,"",('2DOPM'!W23)*100)) -> 100 | AO20: 10 | AP20: DIEZ | AQ20: 25 | AR20: ='1ERPA'!AM20 -> 100 | AS20: ='1ERPA'!AO20 -> 9 | AT20: ='1ERPA'!AQ20 -> 22.5 | AU20: 100 | AV20: 9.5 | AW20: 47.5
A21: =IF(F21="","",A20+1) -> 5 | B21: =AO21 -> 10 | C21: =IF(B21="SD/F",1,0) -> 0 | D21: =IF(B21<6,1,0) -> 0 | E21: =IF(B21="SD/F",E20+1,IF(B21<6,E20+1,E20)) -> 0 | F21: =IF('1ERPA'!F21="","",'1ERPA'!F21) -> GUZMAN SANTOS ALAN | G21: A | H21: A | I21: A | J21: A | K21: A | L21: A | M21: A | N21: A | O21: A | P21: A | AK21: =IF(G21="","",COUNTIF(G21:AJ21,"A")+COUNTIF(G21:AJ21,"J")) -> 10 | AL21: =IF(AK21="","",COUNTIF(G21:AJ21,"F")) -> 0 | AM21: =IF(AK21="","",($AK$15-AL21)*$AM$15) -> 100 | AN21: =IF('2DOPM'!W24="","",IF('2DOPM'!W24=0,"",('2DOPM'!W24)*100)) -> 105.5555556 | AO21: =IF(AM21<80,"SD/F",IF(AN21="","",IF(AN21>=96,10,IF(AN21>=86,9,IF(AN21>=76,8,IF(AN21>=66,7,IF(AN21>=56,6,IF(AN21>=46,5,IF(AN21>=36,4,IF(AN21>=26,3,IF(AN21>=16,2,IF(AN21>=6,1,IF(AN21>=0,0,""))))))))))))) -> 10 | AP21: =IF(AM21<80,"SD/F",IF(AO21="","",IF(AO21>=9.6,"DIEZ",IF(AO21>=8.6,"NUEVE",IF(AO21>=7.6,"OCHO",IF(AO21>=6.6,"SIETE",IF(AO21>=5.6,"SEIS",IF(AO21>=4.6,"CINCO",IF(AO21>=3.6,"CUATRO",IF(AO21>=2.6,"TRES",IF(AO21>=1.6,"DOS",IF(AO21>=0.6,"UNO",IF(AO21>=0,"CERO",""))))))))))))) -> DIEZ | AQ21: =IF(AP21="","",IF(AP21="SD/F",0,($AQ$15/10)*AO21)) -> 25 | AR21: ='1ERPA'!AM21 -> 100 | AS21: ='1ERPA'!AO21 -> 9 | AT21: ='1ERPA'!AQ21 -> 22.5 | AU21: =IF(AM21="","",AVERAGE(AM21,AR21)) -> 100 | AV21: =IF(AO21="","",AVERAGE(AO21,AS21)) -> 9.5 | AW21: =IF(AQ21="","",SUM(AQ21,AT21)) -> 47.5
A22: 6 | B22: 10 | C22: 0 | D22: 0 | E22: 0 | F22: =IF('1ERPA'!F22="","",'1ERPA'!F22) -> Y | G22: A | H22: A | I22: A | J22: A | K22: A | L22: A | M22: A | N22: A | O22: A | P22: A | AK22: 10 | AL22: 0 | AM22: 100 | AN22: =IF('2DOPM'!W25="","",IF('2DOPM'!W25=0,"",('2DOPM'!W25)*100)) -> 111.1111111 | AO22: 10 | AP22: DIEZ | AQ22: 25 | AR22: ='1ERPA'!AM22 -> 100 | AS22: ='1ERPA'!AO22 -> 9 | AT22: ='1ERPA'!AQ22 -> 22.5 | AU22: 100 | AV22: 9.5 | AW22: 47.5
A23: 7 | B23: 10 | C23: 0 | D23: 0 | E23: 0 | F23: =IF('1ERPA'!F23="","",'1ERPA'!F23) -> U | G23: A | H23: A | I23: A | J23: A | K23: A | L23: A | M23: A | N23: A | O23: A | P23: A | AK23: 10 | AL23: 0 | AM23: 100 | AN23: =IF('2DOPM'!W26="","",IF('2DOPM'!W26=0,"",('2DOPM'!W26)*100)) -> 116.6666667 | AO23: 10 | AP23: DIEZ | AQ23: 25 | AR23: ='1ERPA'!AM23 -> 100 | AS23: ='1ERPA'!AO23 -> 9 | AT23: ='1ERPA'!AQ23 -> 22.5 | AU23: 100 | AV23: 9.5 | AW23: 47.5
A24: 8 | B24: 10 | C24: 0 | D24: 0 | E24: 0 | F24: =IF('1ERPA'!F24="","",'1ERPA'!F24) -> ILLAN MONJARDIN JOSE LUIS | G24: A | H24: A | I24: A | J24: A | K24: A | L24: A | M24: A | N24: A | O24: A | P24: A | AK24: 10 | AL24: 0 | AM24: 100 | AN24: =IF('2DOPM'!W27="","",IF('2DOPM'!W27=0,"",('2DOPM'!W27)*100)) -> 122.2222222 | AO24: 10 | AP24: DIEZ | AQ24: 25 | AR24: ='1ERPA'!AM24 -> 93.75 | AS24: ='1ERPA'!AO24 -> 9 | AT24: ='1ERPA'!AQ24 -> 22.5 | AU24: 96.875 | AV24: 9.5 | AW24: 47.5
A25: =IF(F25="","",A24+1) -> 9 | B25: =AO25 -> 10 | C25: =IF(B25="SD/F",1,0) -> 0 | D25: =IF(B25<6,1,0) -> 0 | E25: =IF(B25="SD/F",E24+1,IF(B25<6,E24+1,E24)) -> 0 | F25: =IF('1ERPA'!F25="","",'1ERPA'!F25) -> e | G25: A | H25: A | I25: A | J25: A | K25: A | L25: A | M25: A | N25: A | O25: A | P25: A | AK25: 10 | AL25: 0 | AM25: 100 | AN25: =IF('2DOPM'!W28="","",IF('2DOPM'!W28=0,"",('2DOPM'!W28)*100)) -> 127.7777778 | AO25: 10 | AP25: DIEZ | AQ25: 25 | AR25: ='1ERPA'!AM25 -> 93.75 | AS25: ='1ERPA'!AO25 -> 9 | AT25: ='1ERPA'!AQ25 -> 22.5 | AU25: 96.875 | AV25: 9.5 | AW25: 47.5
A26: 10 | B26: 10 | C26: 0 | D26: 0 | E26: 0 | F26: =IF('1ERPA'!F26="","",'1ERPA'!F26) -> f | G26: A | H26: A | I26: A | J26: A | K26: A | L26: A | M26: A | N26: A | O26: A | P26: A | AK26: 10 | AL26: 0 | AM26: 100 | AN26: =IF('2DOPM'!W29="","",IF('2DOPM'!W29=0,"",('2DOPM'!W29)*100)) -> 133.3333333 | AO26: 10 | AP26: DIEZ | AQ26: 25 | AR26: ='1ERPA'!AM26 -> 93.75 | AS26: ='1ERPA'!AO26 -> 9 | AT26: ='1ERPA'!AQ26 -> 22.5 | AU26: 96.875 | AV26: 9.5 | AW26: 47.5
A27: 11 | B27: 10 | C27: 0 | D27: 0 | E27: 0 | F27: =IF('1ERPA'!F27="","",'1ERPA'!F27) -> GUZMAN SANTOS ALAN | G27: A | H27: A | I27: A | J27: A | K27: A | L27: A | M27: A | N27: A | O27: A | P27: A | AK27: 10 | AL27: 0 | AM27: 100 | AN27: =IF('2DOPM'!W30="","",IF('2DOPM'!W30=0,"",('2DOPM'!W30)*100)) -> 138.8888889 | AO27: 10 | AP27: DIEZ | AQ27: 25 | AR27: ='1ERPA'!AM27 -> 93.75 | AS27: ='1ERPA'!AO27 -> 9 | AT27: ='1ERPA'!AQ27 -> 22.5 | AU27: 96.875 | AV27: 9.5 | AW27: 47.5
A28: 12 | B28: 10 | C28: 0 | D28: 0 | E28: 0 | F28: =IF('1ERPA'!F28="","",'1ERPA'!F28) -> h | G28: A | H28: A | I28: A | J28: A | K28: A | L28: A | M28: A | N28: A | O28: A | P28: A | AK28: 10 | AL28: 0 | AM28: 100 | AN28: =IF('2DOPM'!W31="","",IF('2DOPM'!W31=0,"",('2DOPM'!W31)*100)) -> 144.4444444 | AO28: 10 | AP28: DIEZ | AQ28: 25 | AR28: ='1ERPA'!AM28 -> 93.75 | AS28: ='1ERPA'!AO28 -> 9 | AT28: ='1ERPA'!AQ28 -> 22.5 | AU28: 96.875 | AV28: 9.5 | AW28: 47.5
A29: 13 | B29: 10 | C29: 0 | D29: 0 | E29: 0 | F29: =IF('1ERPA'!F29="","",'1ERPA'!F29) -> ILLAN MONJARDIN JOSE LUIS | G29: A | H29: A | I29: A | J29: A | K29: A | L29: A | M29: A | N29: A | O29: A | P29: A | AK29: 10 | AL29: 0 | AM29: 100 | AN29: =IF('2DOPM'!W32="","",IF('2DOPM'!W32=0,"",('2DOPM'!W32)*100)) -> 150 | AO29: 10 | AP29: DIEZ | AQ29: 25 | AR29: ='1ERPA'!AM29 -> 81.25 | AS29: ='1ERPA'!AO29 -> 9 | AT29: ='1ERPA'!AQ29 -> 22.5 | AU29: 90.625 | AV29: 9.5 | AW29: 47.5
A30: 14 | B30: 10 | C30: 0 | D30: 0 | E30: 0 | F30: =IF('1ERPA'!F30="","",'1ERPA'!F30) -> T | AN30: =IF('2DOPM'!W33="","",IF('2DOPM'!W33=0,"",('2DOPM'!W33)*100)) -> 155.5555556 | AO30: 10 | AP30: DIEZ | AQ30: 25 | AR30: ='1ERPA'!AM30 -> 100 | AS30: ='1ERPA'!AO30 -> 9 | AT30: ='1ERPA'!AQ30 -> 22.5 | AV30: 9.5 | AW30: 47.5
C31: 0 | D31: 0 | E31: 0 | F31: =IF('1ERPA'!F31="","",'1ERPA'!F31) ->  | AN31: =IF('2DOPM'!W34="","",IF('2DOPM'!W34=0,"",('2DOPM'!W34)*100)) ->  | AR31: ='1ERPA'!AM31 ->  | AS31: ='1ERPA'!AO31 ->  | AT31: ='1ERPA'!AQ31 -> 
C32: 0 | D32: 0 | E32: 0 | F32: =IF('1ERPA'!F32="","",'1ERPA'!F32) ->  | AN32: =IF('2DOPM'!W35="","",IF('2DOPM'!W35=0,"",('2DOPM'!W35)*100)) ->  | AR32: ='1ERPA'!AM32 ->  | AS32: ='1ERPA'!AO32 ->  | AT32: ='1ERPA'!AQ32 -> 
C33: 0 | D33: 0 | E33: 0 | F33: =IF('1ERPA'!F33="","",'1ERPA'!F33) ->  | AN33: =IF('2DOPM'!W36="","",IF('2DOPM'!W36=0,"",('2DOPM'!W36)*100)) ->  | AR33: ='1ERPA'!AM33 ->  | AS33: ='1ERPA'!AO33 ->  | AT33: ='1ERPA'!AQ33 -> 
C34: 0 | D34: 0 | E34: 0 | F34: =IF('1ERPA'!F34="","",'1ERPA'!F34) ->  | AN34: =IF('2DOPM'!W37="","",IF('2DOPM'!W37=0,"",('2DOPM'!W37)*100)) ->  | AR34: ='1ERPA'!AM34 ->  | AS34: ='1ERPA'!AO34 ->  | AT34: ='1ERPA'!AQ34 -> 
C35: 0 | D35: 0 | E35: 0 | F35: =IF('1ERPA'!F35="","",'1ERPA'!F35) ->  | AN35: =IF('2DOPM'!W38="","",IF('2DOPM'!W38=0,"",('2DOPM'!W38)*100)) ->  | AR35: ='1ERPA'!AM35 ->  | AS35: ='1ERPA'!AO35 ->  | AT35: ='1ERPA'!AQ35 -> 
C36: 0 | D36: 0 | E36: 0 | F36: =IF('1ERPA'!F36="","",'1ERPA'!F36) ->  | AN36: =IF('2DOPM'!W39="","",IF('2DOPM'!W39=0,"",('2DOPM'!W39)*100)) ->  | AR36: ='1ERPA'!AM36 ->  | AS36: ='1ERPA'!AO36 ->  | AT36: ='1ERPA'!AQ36 -> 
C37: 0 | D37: 0 | E37: 0 | F37: =IF('1ERPA'!F37="","",'1ERPA'!F37) ->  | AN37: =IF('2DOPM'!W40="","",IF('2DOPM'!W40=0,"",('2DOPM'!W40)*100)) ->  | AR37: ='1ERPA'!AM37 ->  | AS37: ='1ERPA'!AO37 ->  | AT37: ='1ERPA'!AQ37 -> 
C38: 0 | D38: 0 | E38: 0 | F38: =IF('1ERPA'!F38="","",'1ERPA'!F38) ->  | AN38: =IF('2DOPM'!W41="","",IF('2DOPM'!W41=0,"",('2DOPM'!W41)*100)) ->  | AR38: ='1ERPA'!AM38 ->  | AS38: ='1ERPA'!AO38 ->  | AT38: ='1ERPA'!AQ38 -> 
C39: 0 | D39: 0 | E39: 0 | F39: =IF('1ERPA'!F39="","",'1ERPA'!F39) ->  | AN39: =IF('2DOPM'!W42="","",IF('2DOPM'!W42=0,"",('2DOPM'!W42)*100)) ->  | AR39: ='1ERPA'!AM39 ->  | AS39: ='1ERPA'!AO39 ->  | AT39: ='1ERPA'!AQ39 -> 
C40: 0 | D40: 0 | E40: 0 | F40: =IF('1ERPA'!F40="","",'1ERPA'!F40) ->  | AN40: =IF('2DOPM'!W43="","",IF('2DOPM'!W43=0,"",('2DOPM'!W43)*100)) ->  | AR40: ='1ERPA'!AM40 ->  | AS40: ='1ERPA'!AO40 ->  | AT40: ='1ERPA'!AQ40 -> 
C41: 0 | D41: 0 | E41: 0 | F41: =IF('1ERPA'!F41="","",'1ERPA'!F41) ->  | AN41: =IF('2DOPM'!W44="","",IF('2DOPM'!W44=0,"",('2DOPM'!W44)*100)) ->  | AR41: ='1ERPA'!AM41 ->  | AS41: ='1ERPA'!AO41 ->  | AT41: ='1ERPA'!AQ41 -> 
C42: 0 | D42: 0 | E42: 0 | F42: =IF('1ERPA'!F42="","",'1ERPA'!F42) ->  | AN42: =IF('2DOPM'!W45="","",IF('2DOPM'!W45=0,"",('2DOPM'!W45)*100)) ->  | AR42: ='1ERPA'!AM42 ->  | AS42: ='1ERPA'!AO42 ->  | AT42: ='1ERPA'!AQ42 -> 
C43: 0 | D43: 0 | E43: 0 | F43: =IF('1ERPA'!F43="","",'1ERPA'!F43) ->  | AN43: =IF('2DOPM'!W46="","",IF('2DOPM'!W46=0,"",('2DOPM'!W46)*100)) ->  | AR43: ='1ERPA'!AM43 ->  | AS43: ='1ERPA'!AO43 ->  | AT43: ='1ERPA'!AQ43 -> 
C44: 0 | D44: 0 | E44: 0 | F44: =IF('1ERPA'!F44="","",'1ERPA'!F44) ->  | AN44: =IF('2DOPM'!W47="","",IF('2DOPM'!W47=0,"",('2DOPM'!W47)*100)) ->  | AR44: ='1ERPA'!AM44 ->  | AS44: ='1ERPA'!AO44 ->  | AT44: ='1ERPA'!AQ44 -> 
C45: 0 | D45: 0 | E45: 0 | F45: =IF('1ERPA'!F45="","",'1ERPA'!F45) ->  | AN45: =IF('2DOPM'!W48="","",IF('2DOPM'!W48=0,"",('2DOPM'!W48)*100)) ->  | AR45: ='1ERPA'!AM45 ->  | AS45: ='1ERPA'!AO45 ->  | AT45: ='1ERPA'!AQ45 -> 
C46: 0 | D46: 0 | E46: 0 | F46: =IF('1ERPA'!F46="","",'1ERPA'!F46) ->  | AN46: =IF('2DOPM'!W49="","",IF('2DOPM'!W49=0,"",('2DOPM'!W49)*100)) ->  | AR46: ='1ERPA'!AM46 ->  | AS46: ='1ERPA'!AO46 ->  | AT46: ='1ERPA'!AQ46 -> 
C47: 0 | D47: 0 | E47: 0 | F47: =IF('1ERPA'!F47="","",'1ERPA'!F47) ->  | AN47: =IF('2DOPM'!W50="","",IF('2DOPM'!W50=0,"",('2DOPM'!W50)*100)) ->  | AR47: ='1ERPA'!AM47 ->  | AS47: ='1ERPA'!AO47 ->  | AT47: ='1ERPA'!AQ47 -> 
C48: 0 | D48: 0 | E48: 0 | F48: =IF('1ERPA'!F48="","",'1ERPA'!F48) ->  | AN48: =IF('2DOPM'!W51="","",IF('2DOPM'!W51=0,"",('2DOPM'!W51)*100)) ->  | AR48: ='1ERPA'!AM48 ->  | AS48: ='1ERPA'!AO48 ->  | AT48: ='1ERPA'!AQ48 -> 
C49: 0 | D49: 0 | E49: 0 | F49: =IF('1ERPA'!F49="","",'1ERPA'!F49) ->  | AN49: =IF('2DOPM'!W52="","",IF('2DOPM'!W52=0,"",('2DOPM'!W52)*100)) ->  | AR49: ='1ERPA'!AM49 ->  | AS49: ='1ERPA'!AO49 ->  | AT49: ='1ERPA'!AQ49 -> 
C50: 0 | D50: 0 | E50: 0 | F50: =IF('1ERPA'!F50="","",'1ERPA'!F50) ->  | AN50: =IF('2DOPM'!W53="","",IF('2DOPM'!W53=0,"",('2DOPM'!W53)*100)) ->  | AR50: ='1ERPA'!AM50 ->  | AS50: ='1ERPA'!AO50 ->  | AT50: ='1ERPA'!AQ50 -> 
C51: 0 | D51: 0 | E51: 0 | F51: =IF('1ERPA'!F51="","",'1ERPA'!F51) ->  | AN51: =IF('2DOPM'!W54="","",IF('2DOPM'!W54=0,"",('2DOPM'!W54)*100)) ->  | AR51: ='1ERPA'!AM51 ->  | AS51: ='1ERPA'!AO51 ->  | AT51: ='1ERPA'!AQ51 -> 
C52: 0 | D52: 0 | E52: 0 | F52: =IF('1ERPA'!F52="","",'1ERPA'!F52) ->  | AN52: =IF('2DOPM'!W55="","",IF('2DOPM'!W55=0,"",('2DOPM'!W55)*100)) ->  | AR52: ='1ERPA'!AM52 ->  | AS52: ='1ERPA'!AO52 ->  | AT52: ='1ERPA'!AQ52 -> 
C53: 0 | D53: 0 | E53: 0 | F53: =IF('1ERPA'!F53="","",'1ERPA'!F53) ->  | AN53: =IF('2DOPM'!W56="","",IF('2DOPM'!W56=0,"",('2DOPM'!W56)*100)) ->  | AR53: ='1ERPA'!AM53 ->  | AS53: ='1ERPA'!AO53 ->  | AT53: ='1ERPA'!AQ53 -> 
C54: 0 | D54: 0 | E54: 0 | F54: =IF('1ERPA'!F54="","",'1ERPA'!F54) ->  | AN54: =IF('2DOPM'!W57="","",IF('2DOPM'!W57=0,"",('2DOPM'!W57)*100)) ->  | AR54: ='1ERPA'!AM54 ->  | AS54: ='1ERPA'!AO54 ->  | AT54: ='1ERPA'!AQ54 -> 
C55: 0 | D55: 0 | E55: 0 | F55: =IF('1ERPA'!F55="","",'1ERPA'!F55) ->  | AN55: =IF('2DOPM'!W58="","",IF('2DOPM'!W58=0,"",('2DOPM'!W58)*100)) ->  | AR55: ='1ERPA'!AM55 ->  | AS55: ='1ERPA'!AO55 ->  | AT55: ='1ERPA'!AQ55 -> 
C56: 0 | D56: 0 | E56: 0 | F56: =IF('1ERPA'!F56="","",'1ERPA'!F56) ->  | AN56: =IF('2DOPM'!W59="","",IF('2DOPM'!W59=0,"",('2DOPM'!W59)*100)) ->  | AR56: ='1ERPA'!AM56 ->  | AS56: ='1ERPA'!AO56 ->  | AT56: ='1ERPA'!AQ56 -> 
C57: 0 | D57: 0 | E57: 0 | F57: =IF('1ERPA'!F57="","",'1ERPA'!F57) ->  | AN57: =IF('2DOPM'!W60="","",IF('2DOPM'!W60=0,"",('2DOPM'!W60)*100)) ->  | AR57: ='1ERPA'!AM57 ->  | AS57: ='1ERPA'!AO57 ->  | AT57: ='1ERPA'!AQ57 -> 
C58: 0 | D58: 0 | E58: 0 | F58: =IF('1ERPA'!F58="","",'1ERPA'!F58) ->  | AN58: =IF('2DOPM'!W61="","",IF('2DOPM'!W61=0,"",('2DOPM'!W61)*100)) ->  | AR58: ='1ERPA'!AM58 ->  | AS58: ='1ERPA'!AO58 ->  | AT58: ='1ERPA'!AQ58 -> 
C59: 0 | D59: 0 | E59: 0 | F59: =IF('1ERPA'!F59="","",'1ERPA'!F59) ->  | AN59: =IF('2DOPM'!W62="","",IF('2DOPM'!W62=0,"",('2DOPM'!W62)*100)) ->  | AR59: ='1ERPA'!AM59 ->  | AS59: ='1ERPA'!AO59 ->  | AT59: ='1ERPA'!AQ59 -> 
C60: 0 | D60: 0 | E60: 0 | F60: =IF('1ERPA'!F60="","",'1ERPA'!F60) ->  | AN60: =IF('2DOPM'!W63="","",IF('2DOPM'!W63=0,"",('2DOPM'!W63)*100)) ->  | AR60: ='1ERPA'!AM60 ->  | AS60: ='1ERPA'!AO60 ->  | AT60: ='1ERPA'!AQ60 -> 
C61: 0 | D61: 0 | E61: 0 | F61: =IF('1ERPA'!F61="","",'1ERPA'!F61) ->  | AN61: =IF('2DOPM'!W64="","",IF('2DOPM'!W64=0,"",('2DOPM'!W64)*100)) ->  | AR61: ='1ERPA'!AM61 ->  | AS61: ='1ERPA'!AO61 ->  | AT61: ='1ERPA'!AQ61 -> 
C62: 0 | D62: 0 | E62: 0 | F62: =IF('1ERPA'!F62="","",'1ERPA'!F62) ->  | AN62: =IF('2DOPM'!W65="","",IF('2DOPM'!W65=0,"",('2DOPM'!W65)*100)) ->  | AR62: ='1ERPA'!AM62 ->  | AS62: ='1ERPA'!AO62 ->  | AT62: ='1ERPA'!AQ62 -> 
C63: 0 | D63: 0 | E63: 0 | F63: =IF('1ERPA'!F63="","",'1ERPA'!F63) ->  | AN63: =IF('2DOPM'!W66="","",IF('2DOPM'!W66=0,"",('2DOPM'!W66)*100)) ->  | AR63: ='1ERPA'!AM63 ->  | AS63: ='1ERPA'!AO63 ->  | AT63: ='1ERPA'!AQ63 -> 
C64: 0 | D64: 0 | E64: 0 | F64: =IF('1ERPA'!F64="","",'1ERPA'!F64) ->  | AN64: =IF('2DOPM'!W67="","",IF('2DOPM'!W67=0,"",('2DOPM'!W67)*100)) ->  | AR64: ='1ERPA'!AM64 ->  | AS64: ='1ERPA'!AO64 ->  | AT64: ='1ERPA'!AQ64 -> 
C65: 0 | D65: 0 | E65: 0 | F65: =IF('1ERPA'!F65="","",'1ERPA'!F65) ->  | AN65: =IF('2DOPM'!W68="","",IF('2DOPM'!W68=0,"",('2DOPM'!W68)*100)) ->  | AR65: ='1ERPA'!AM65 ->  | AS65: ='1ERPA'!AO65 ->  | AT65: ='1ERPA'!AQ65 -> 
C66: 0 | D66: 0 | E66: 0 | F66: =IF('1ERPA'!F66="","",'1ERPA'!F66) ->  | AN66: =IF('2DOPM'!W69="","",IF('2DOPM'!W69=0,"",('2DOPM'!W69)*100)) ->  | AR66: ='1ERPA'!AM66 ->  | AS66: ='1ERPA'!AO66 ->  | AT66: ='1ERPA'!AQ66 -> 

Sheet 2DOPM
E1: MATRIZ DE EVALUACIÓN
U4: CICLO ESCOLAR | W4: =IF('1ERPA'!W2="","",'1ERPA'!W2) -> 2018-2019
V5: =IF('2DOPA'!A3="","",'2DOPA'!A3) -> SEGUNDO PARCIAL
B7: LICENCIATURA EN: | C7: =IF('1ERPA'!M5="","",'1ERPA'!M5) -> Ingeniería en Sistemas Computacionales
B8: ASIGNATURA: | C8: =IF('1ERPA'!AD5="","",'1ERPA'!AD5) -> SEGURIDAD INFORMÁTICA Y DE REDES
B9: ='1ERPA'!J7 -> CUATRIMESTRE: | C9: =IF('1ERPA'!K7="","",'1ERPA'!K7) -> QUINTO
B10: GRUPO: | C10: =IF('1ERPA'!Q7="","",'1ERPA'!Q7) -> A
B11: PERIODO: | C11: =IF('1ERPA'!V7="","",'1ERPA'!V7) -> A | P11: =IF('1ERPA'!X10="","",'1ERPA'!X10) -> ALDO ORTEGA PACHECO
B12: COMPETENCIA: | C12: Aplicar herramientas y formas de proteger aplicaciones y en sistemas de cómputo, estableciendo métodos de control y previsión de ataque de virus, interpretando los diferentes tipos de seguridad existentes y técnicas de criptografía aplicables | P12: NOMBRE Y FIRMA DEL CATEDRÁTICO
C13: Identificar los diferentes antivirus que hay en el mercado, así como Instalar, configurar y ejecutar un antivirus ya sea en modo gráfico o en modo consola.
A14: No. | B14: Alumnos | C14: Indicadores de desempeño | I14: =IF(H15>S14,"POR ENCIMA DEL PORCENTAJE",IF(H15<S14,"POR DEBAJO DEL PORCENTAJE"," Evaluación de evidencias de aprendizaje")) -> Evaluación de evidencias de aprendizaje | S14: 0.5 | U14: Fines Formativos | W14: SUMA TOTAL
C15: =SUM(C19:H19) -> 0.5 | D15: =IF(C15>G15,"POR ENCIMA DEL PORCENTAJE",IF(C15<G15,"POR DEBAJO DEL PORCENTAJE","(Niveles de dominio)")) -> (Niveles de dominio) | G15: 0.5 | H15: =SUM(J19,L19,N19,P19,R19,T19) -> 0.5
C16: ID1. Sin nivel Define los administradores del S.O.. Pre-formal Utiliza los administradores para explicar el funcionamiento del S.O.. Receptivo Elige las tareas principales de los administradores. Autónomo Demuestra en un simulador el funcionamiento de los administradores del S.O.. | I16: EA1. Realiza una simulación de Auditoria de seguridad en el CSAP Visita CSAP | U16: Autoevaluación | V16: Coevaluación
I18: C | J18: P | K18: C | L18: P | M18: C | N18: P | O18: C | P18: P | Q18: C | R18: P | S18: C | T18: P
C19: 0.5 | I19: 9 | J19: 0.5
A20: =IF(B20="","",1) -> 1 | B20: =IF('1ERPA'!F17="","",'1ERPA'!F17) -> GUZMAN SANTOS ALAN | C20: Estratégico | I20: 9 | J20: =IF(I20="","",($J$19/$I$19)*I20) -> 0.5 | L20: =IF(K20="","",($L$19/$K$19)*K20) ->  | N20: =IF(M20="","",($N$19/$M$19)*M20) ->  | P20: =IF(O20="","",($P$19/$O$19)*O20) ->  | R20: =IF(Q20="","",($R$19/$Q$19)*Q20) ->  | T20: =IF(S20="","",($T$19/$S$19)*S20) ->  | W20: =IF(B20="","",(IF(B20="",0,IF(C20="Sin Nivel",($C$19)*0,IF(C20="Pre-Formal",($C$19)*60%,IF(C20="Receptivo",($C$19)*70%,IF(C20="Resolutivo",($C$19)*80%,IF(C20="Autónomo",($C$19)*90%,IF(C20="Estratégico",($C$19)*100%,0)))))))+IF(D20="",0,IF(D20="Sin Nivel",($D$19)*0,IF(D20="Pre-Formal",($D$19)*60%,IF(D20="Receptivo",($D$19)*70%,IF(D20="Resolutivo",($D$19)*80%,IF(D20="Autónomo",($D$19)*90%,IF(D20="Estratégico",($D$19)*100%,0)))))))+IF(E20="",0,IF(E20="Sin Nivel",($E$19)*0,IF(E20="Pre-Formal",($E$19)*60%,IF(E20="Receptivo",($E$19)*70%,IF(E20="Resolutivo",($E$19)*80%,IF(E20="Autónomo",($E$19)*90%,IF(E20="Estratégico",($E$19)*100%,0)))))))+IF(F20="",0,IF(F20="Sin Nivel",($F$19)*0,IF(F20="Pre-Formal",($F$19)*60%,IF(F20="Receptivo",($F$19)*70%,IF(F20="Resolutivo",($F$19)*80%,IF(F20="Autónomo",($F$19)*90%,IF(F20="Estratégico",($F$19)*100%,0)))))))+IF(G20="",0,IF(G20="Sin Nivel",($G$19)*0,IF(G20="Pre-Formal",($G$19)*60%,IF(G20="Receptivo",($G$19)*70%,IF(G20="Resolutivo",($G$19)*80%,IF(G20="Autónomo",($G$19)*90%,IF(G20="Estratégico",($G$19)*100%,0)))))))+IF(H20="",0,IF(H20="Sin Nivel",($H$19)*0,IF(H20="Pre-Formal",($H$19)*60%,IF(H20="Receptivo",($H$19)*70%,IF(H20="Resolutivo",($H$19)*80%,IF(H20="Autónomo",($H$19)*90%,IF(H20="Estratégico",($H$19)*100%,0))))))))+SUM(J20,L20,N20,P20,R20,T20)) -> 1 | X20: =IF(C20="","",(IF(C20="",0,IF(C20="Sin Nivel",($C$19/5)*0,IF(C20="Pre-Formal",($C$19/5)*1,IF(C20="Receptivo",($C$19/5)*2,IF(C20="Resolutivo",($C$19/5)*3,IF(C20="Autónomo",($C$19/5)*4,IF(C20="Estratégico",($C$19/5)*5,0)))))))+IF(D20="",0,IF(D20="Sin Nivel",($D$19/5)*0,IF(D20="Pre-Formal",($D$19/5)*1,IF(D20="Receptivo",($D$19/5)*2,IF(D20="Resolutivo",($D$19/5)*3,IF(D20="Autónomo",($D$19/5)*4,IF(D20="Estratégico",($D$19/5)*5,0)))))))+IF(E20="",0,IF(E20="Sin Nivel",($E$19/5)*0,IF(E20="Pre-Formal",($E$19/5)*1,IF(E20="Receptivo",($E$19/5)*2,IF(E20="Resolutivo",($E$19/5)*3,IF(E20="Autónomo",($E$19/5)*4,IF(E20="Estratégico",($E$19/5)*5,0)))))))+IF(F20="",0,IF(F20="Sin Nivel",($F$19/5)*0,IF(F20="Pre-Formal",($F$19/5)*1,IF(F20="Receptivo",($F$19/5)*2,IF(F20="Resolutivo",($F$19/5)*3,IF(F20="Autónomo",($F$19/5)*4,IF(F20="Estratégico",($F$19/5)*5,0)))))))+IF(G20="",0,IF(G20="Sin Nivel",($G$19/5)*0,IF(G20="Pre-Formal",($G$19/5)*1,IF(G20="Receptivo",($G$19/5)*2,IF(G20="Resolutivo",($G$19/5)*3,IF(G20="Autónomo",($G$19/5)*4,IF(G20="Estratégico",($G$19/5)*5,0)))))))+IF(H20="",0,IF(H20="Sin Nivel",($H$19/5)*0,IF(H20="Pre-Formal",($H$19/5)*1,IF(H20="Receptivo",($H$19/5)*2,IF(H20="Resolutivo",($H$19/5)*3,IF(H20="Autónomo",($H$19/5)*4,IF(H20="Estratégico",($H$19/5)*5,0))))))))) -> 0.5 | Y20: =SUM(J20,L20,N20,P20,R20,T20) -> 0.5
A21: =IF(B21="","",A20+1) -> 2 | B21: =IF('1ERPA'!F18="","",'1ERPA'!F18) -> ILLAN MONJARDIN JOSE LUIS | C21: Estratégico | I21: 9 | J21: =IF(I21="","",($J$19/$I$19)*I21) -> 0.5 | L21: =IF(K21="","",($L$19/$K$19)*K21) ->  | N21: =IF(M21="","",($N$19/$M$19)*M21) ->  | P21: =IF(O21="","",($P$19/$O$19)*O21) ->  | W21: =IF(B21="","",(IF(B21="",0,IF(C21="Sin Nivel",($C$19)*0,IF(C21="Pre-Formal",($C$19)*60%,IF(C21="Receptivo",($C$19)*70%,IF(C21="Resolutivo",($C$19)*80%,IF(C21="Autónomo",($C$19)*90%,IF(C21="Estratégico",($C$19)*100%,0)))))))+IF(D21="",0,IF(D21="Sin Nivel",($D$19)*0,IF(D21="Pre-Formal",($D$19)*60%,IF(D21="Receptivo",($D$19)*70%,IF(D21="Resolutivo",($D$19)*80%,IF(D21="Autónomo",($D$19)*90%,IF(D21="Estratégico",($D$19)*100%,0)))))))+IF(E21="",0,IF(E21="Sin Nivel",($E$19)*0,IF(E21="Pre-Formal",($E$19)*60%,IF(E21="Receptivo",($E$19)*70%,IF(E21="Resolutivo",($E$19)*80%,IF(E21="Autónomo",($E$19)*90%,IF(E21="Estratégico",($E$19)*100%,0)))))))+IF(F21="",0,IF(F21="Sin Nivel",($F$19)*0,IF(F21="Pre-Formal",($F$19)*60%,IF(F21="Receptivo",($F$19)*70%,IF(F21="Resolutivo",($F$19)*80%,IF(F21="Autónomo",($F$19)*90%,IF(F21="Estratégico",($F$19)*100%,0)))))))+IF(G21="",0,IF(G21="Sin Nivel",($G$19)*0,IF(G21="Pre-Formal",($G$19)*60%,IF(G21="Receptivo",($G$19)*70%,IF(G21="Resolutivo",($G$19)*80%,IF(G21="Autónomo",($G$19)*90%,IF(G21="Estratégico",($G$19)*100%,0)))))))+IF(H21="",0,IF(H21="Sin Nivel",($H$19)*0,IF(H21="Pre-Formal",($H$19)*60%,IF(H21="Receptivo",($H$19)*70%,IF(H21="Resolutivo",($H$19)*80%,IF(H21="Autónomo",($H$19)*90%,IF(H21="Estratégico",($H$19)*100%,0))))))))+SUM(J21,L21,N21,P21,R21,T21)) -> 1 | X21: =IF(C21="","",(IF(C21="",0,IF(C21="Sin Nivel",($C$19/5)*0,IF(C21="Pre-Formal",($C$19/5)*1,IF(C21="Receptivo",($C$19/5)*2,IF(C21="Resolutivo",($C$19/5)*3,IF(C21="Autónomo",($C$19/5)*4,IF(C21="Estratégico",($C$19/5)*5,0)))))))+IF(D21="",0,IF(D21="Sin Nivel",($D$19/5)*0,IF(D21="Pre-Formal",($D$19/5)*1,IF(D21="Receptivo",($D$19/5)*2,IF(D21="Resolutivo",($D$19/5)*3,IF(D21="Autónomo",($D$19/5)*4,IF(D21="Estratégico",($D$19/5)*5,0)))))))+IF(E21="",0,IF(E21="Sin Nivel",($E$19/5)*0,IF(E21="Pre-Formal",($E$19/5)*1,IF(E21="Receptivo",($E$19/5)*2,IF(E21="Resolutivo",($E$19/5)*3,IF(E21="Autónomo",($E$19/5)*4,IF(E21="Estratégico",($E$19/5)*5,0)))))))+IF(F21="",0,IF(F21="Sin Nivel",($F$19/5)*0,IF(F21="Pre-Formal",($F$19/5)*1,IF(F21="Receptivo",($F$19/5)*2,IF(F21="Resolutivo",($F$19/5)*3,IF(F21="Autónomo",($F$19/5)*4,IF(F21="Estratégico",($F$19/5)*5,0)))))))+IF(G21="",0,IF(G21="Sin Nivel",($G$19/5)*0,IF(G21="Pre-Formal",($G$19/5)*1,IF(G21="Receptivo",($G$19/5)*2,IF(G21="Resolutivo",($G$19/5)*3,IF(G21="Autónomo",($G$19/5)*4,IF(G21="Estratégico",($G$19/5)*5,0)))))))+IF(H21="",0,IF(H21="Sin Nivel",($H$19/5)*0,IF(H21="Pre-Formal",($H$19/5)*1,IF(H21="Receptivo",($H$19/5)*2,IF(H21="Resolutivo",($H$19/5)*3,IF(H21="Autónomo",($H$19/5)*4,IF(H21="Estratégico",($H$19/5)*5,0))))))))) -> 0.5 | Y21: =SUM(J21,L21,N21,P21,R21,T21) -> 0.5
A22: =IF(B22="","",A21+1) -> 3 | B22: =IF('1ERPA'!F19="","",'1ERPA'!F19) -> LA MADRID GONZALEZ FERNANDA ISABEL | C22: Receptivo | I22: 7 | J22: =IF(I22="","",($J$19/$I$19)*I22) -> 0.3888888889 | L22: =IF(K22="","",($L$19/$K$19)*K22) ->  | W22: 0.7388888889 | X22: 0.2 | Y22: 0.3888888889
A23: =IF(B23="","",A22+1) -> 4 | B23: =IF('1ERPA'!F20="","",'1ERPA'!F20) -> LOPEZ CASTRO GLORIA KARINA | C23: Estratégico | I23: 9 | J23: =IF(I23="","",($J$19/$I$19)*I23) -> 0.5 | L23: =IF(K23="","",($L$19/$K$19)*K23) ->  | N23: =IF(M23="","",($N$19/$M$19)*M23) ->  | P23: =IF(O23="","",($P$19/$O$19)*O23) ->  | W23: 1
A24: =IF(B24="","",A23+1) -> 5 | B24: =IF('1ERPA'!F21="","",'1ERPA'!F21) -> GUZMAN SANTOS ALAN | C24: Estratégico | I24: 10 | J24: =IF(I24="","",($J$19/$I$19)*I24) -> 0.5555555556 | L24: =IF(K24="","",($L$19/$K$19)*K24) ->  | N24: =IF(M24="","",($N$19/$M$19)*M24) ->  | P24: =IF(O24="","",($P$19/$O$19)*O24) ->  | W24: 1.055555556 | X24: 0.5 | Y24: 0.5555555556
A25: 6 | B25: =IF('1ERPA'!F22="","",'1ERPA'!F22) -> Y | C25: Estratégico | I25: 11 | J25: =IF(I25="","",($J$19/$I$19)*I25) -> 0.6111111111 | L25: =IF(K25="","",($L$19/$K$19)*K25) ->  | W25: 1.111111111 | X25: 0.5 | Y25: 0.6111111111
A26: 7 | B26: =IF('1ERPA'!F23="","",'1ERPA'!F23) -> U | C26: Estratégico | I26: 12 | J26: 0.6666666667 | R26: =IF(Q26="","",($R$19/$Q$19)*Q26) ->  | T26: =IF(S26="","",($T$19/$S$19)*S26) ->  | W26: 1.166666667 | X26: 0.5 | Y26: 0.6666666667
A27: 8 | B27: =IF('1ERPA'!F24="","",'1ERPA'!F24) -> ILLAN MONJARDIN JOSE LUIS | C27: Estratégico | I27: 13 | J27: 0.7222222222 | W27: 1.222222222 | X27: 0.5 | Y27: 0.7222222222
A28: =IF(B28="","",A27+1) -> 9 | B28: =IF('1ERPA'!F25="","",'1ERPA'!F25) -> e | C28: Estratégico | I28: 14 | J28: =IF(I28="","",($J$19/$I$19)*I28) -> 0.7777777778 | L28: =IF(K28="","",($L$19/$K$19)*K28) ->  | N28: =IF(M28="","",($N$19/$M$19)*M28) ->  | P28: =IF(O28="","",($P$19/$O$19)*O28) ->  | R28: =IF(Q28="","",($R$19/$Q$19)*Q28) ->  | T28: =IF(S28="","",($T$19/$S$19)*S28) ->  | W28: =IF(B28="","",(IF(B28="",0,IF(C28="Sin Nivel",($C$19)*0,IF(C28="Pre-Formal",($C$19)*60%,IF(C28="Receptivo",($C$19)*70%,IF(C28="Resolutivo",($C$19)*80%,IF(C28="Autónomo",($C$19)*90%,IF(C28="Estratégico",($C$19)*100%,0)))))))+IF(D28="",0,IF(D28="Sin Nivel",($D$19)*0,IF(D28="Pre-Formal",($D$19)*60%,IF(D28="Receptivo",($D$19)*70%,IF(D28="Resolutivo",($D$19)*80%,IF(D28="Autónomo",($D$19)*90%,IF(D28="Estratégico",($D$19)*100%,0)))))))+IF(E28="",0,IF(E28="Sin Nivel",($E$19)*0,IF(E28="Pre-Formal",($E$19)*60%,IF(E28="Receptivo",($E$19)*70%,IF(E28="Resolutivo",($E$19)*80%,IF(E28="Autónomo",($E$19)*90%,IF(E28="Estratégico",($E$19)*100%,0)))))))+IF(F28="",0,IF(F28="Sin Nivel",($F$19)*0,IF(F28="Pre-Formal",($F$19)*60%,IF(F28="Receptivo",($F$19)*70%,IF(F28="Resolutivo",($F$19)*80%,IF(F28="Autónomo",($F$19)*90%,IF(F28="Estratégico",($F$19)*100%,0)))))))+IF(G28="",0,IF(G28="Sin Nivel",($G$19)*0,IF(G28="Pre-Formal",($G$19)*60%,IF(G28="Receptivo",($G$19)*70%,IF(G28="Resolutivo",($G$19)*80%,IF(G28="Autónomo",($G$19)*90%,IF(G28="Estratégico",($G$19)*100%,0)))))))+IF(H28="",0,IF(H28="Sin Nivel",($H$19)*0,IF(H28="Pre-Formal",($H$19)*60%,IF(H28="Receptivo",($H$19)*70%,IF(H28="Resolutivo",($H$19)*80%,IF(H28="Autónomo",($H$19)*90%,IF(H28="Estratégico",($H$19)*100%,0))))))))+SUM(J28,L28,N28,P28,R28,T28)) -> 1.277777778
A29: 10 | B29: =IF('1ERPA'!F26="","",'1ERPA'!F26) -> f | C29: Estratégico | I29: 15 | J29: 0.8333333333 | W29: 1.333333333
A30: 11 | B30: =IF('1ERPA'!F27="","",'1ERPA'!F27) -> GUZMAN SANTOS ALAN | C30: Estratégico | I30: 16 | J30: 0.8888888889 | W30: 1.388888889
A31: 12 | B31: =IF('1ERPA'!F28="","",'1ERPA'!F28) -> h | C31: Estratégico | I31: 17 | J31: 0.9444444444 | W31: 1.444444444
A32: 13 | B32: =IF('1ERPA'!F29="","",'1ERPA'!F29) -> ILLAN MONJARDIN JOSE LUIS | C32: Estratégico | I32: 18 | J32: 1 | W32: 1.5
A33: 14 | B33: =IF('1ERPA'!F30="","",'1ERPA'!F30) -> T | C33: Estratégico | I33: 19 | J33: 1.055555556 | W33: 1.555555556
B34: =IF('1ERPA'!F31="","",'1ERPA'!F31) ->  | C34: Estratégico | I34: 20 | J34: 1.111111111
B35: =IF('1ERPA'!F32="","",'1ERPA'!F32) ->  | C35: Estratégico | I35: 21 | J35: 1.166666667
B36: =IF('1ERPA'!F33="","",'1ERPA'!F33) ->  | C36: Estratégico | I36: 22 | J36: 1.222222222
B37: =IF('1ERPA'!F34="","",'1ERPA'!F34) ->  | C37: Estratégico | I37: 23 | J37: 1.277777778
B38: =IF('1ERPA'!F35="","",'1ERPA'!F35) ->  | C38: Estratégico | I38: 24 | J38: 1.333333333
B39: =IF('1ERPA'!F36="","",'1ERPA'!F36) ->  | C39: Estratégico | I39: 25 | J39: 1.388888889
B40: =IF('1ERPA'!F37="","",'1ERPA'!F37) ->  | C40: Estratégico | I40: 26 | J40: 1.444444444
B41: =IF('1ERPA'!F38="","",'1ERPA'!F38) ->  | C41: Estratégico | I41: 27 | J41: 1.5
B42: =IF('1ERPA'!F39="","",'1ERPA'!F39) ->  | C42: Estratégico | I42: 28 | J42: 1.555555556
B43: =IF('1ERPA'!F40="","",'1ERPA'!F40) ->  | C43: Estratégico | I43: 29 | J43: 1.611111111
B44: =IF('1ERPA'!F41="","",'1ERPA'!F41) ->  | C44: Estratégico | I44: 30 | J44: 1.666666667
B45: =IF('1ERPA'!F42="","",'1ERPA'!F42) ->  | C45: Estratégico | I45: 31 | J45: 1.722222222
B46: =IF('1ERPA'!F43="","",'1ERPA'!F43) -> 
B47: =IF('1ERPA'!F44="","",'1ERPA'!F44) ->  | Y47: 0
B48: =IF('1ERPA'!F45="","",'1ERPA'!F45) ->  | Y48: 0
B49: =IF('1ERPA'!F46="","",'1ERPA'!F46) ->  | Y49: 0
B50: =IF('1ERPA'!F47="","",'1ERPA'!F47) ->  | Y50: 0
B51: =IF('1ERPA'!F48="","",'1ERPA'!F48) ->  | Y51: 0
B52: =IF('1ERPA'!F49="","",'1ERPA'!F49) ->  | Y52: 0
B53: =IF('1ERPA'!F50="","",'1ERPA'!F50) ->  | J53: =IF(I53="","",($J$19/$I$19)*I53) ->  | L53: =IF(K53="","",($L$19/$K$19)*K53) ->  | Y53: 0
B54: =IF('1ERPA'!F51="","",'1ERPA'!F51) ->  | Y54: 0
B55: =IF('1ERPA'!F52="","",'1ERPA'!F52) ->  | Y55: 0
B56: =IF('1ERPA'!F53="","",'1ERPA'!F53) ->  | Y56: 0
B57: =IF('1ERPA'!F54="","",'1ERPA'!F54) ->  | Y57: 0
B58: =IF('1ERPA'!F55="","",'1ERPA'!F55) ->  | Y58: 0
B59: =IF('1ERPA'!F56="","",'1ERPA'!F56) ->  | Y59: 0
B60: =IF('1ERPA'!F57="","",'1ERPA'!F57) ->  | Y60: 0
B61: =IF('1ERPA'!F58="","",'1ERPA'!F58) ->  | Y61: 0
B62: =IF('1ERPA'!F59="","",'1ERPA'!F59) ->  | Y62: 0
B63: =IF('1ERPA'!F60="","",'1ERPA'!F60) ->  | Y63: 0
B64: =IF('1ERPA'!F61="","",'1ERPA'!F61) ->  | Y64: 0
B65: =IF('1ERPA'!F62="","",'1ERPA'!F62) ->  | Y65: 0
B66: =IF('1ERPA'!F63="","",'1ERPA'!F63) ->  | Y66: 0
B67: =IF('1ERPA'!F64="","",'1ERPA'!F64) ->  | Y67: 0
B68: =IF('1ERPA'!F65="","",'1ERPA'!F65) ->  | Y68: 0
B69: =IF('1ERPA'!F66="","",'1ERPA'!F66) ->  | Y69: 0

Sheet 2DOPRE
AD1: =IF('1ERPA'!M5="","",'1ERPA'!M5) -> Ingeniería en Sistemas Computacionales
AF3: =IF(MAX('1ERPA'!A17:A66)=0,"",MAX('1ERPA'!A17:A66)) -> 14
AA6: 2do. | AD6: ='1ERPA'!K7 -> QUINTO | AG6: =IF('1ERPA'!Q7="","",'1ERPA'!Q7) -> A | AI6: =IF('1ERPA'!AD5="","",'1ERPA'!AD5) -> SEGURIDAD INFORMÁTICA Y DE REDES
C10: PROMEDIO MENSUAL ASISTENCIA | L10: SUSTITUCIÓN | Y10: PORCENTAJE DE APROBACIÓN | AH10: SUSTITUCÓN
D14: AR | E14: * | F14: CI | G14: - | H14: F | N14: =AF3 -> 14 | O14: * | P14: ='2DOPA'!AK15 -> 10 | Q14: - | R14: ='2DOPA'!AL15 -> 1 | S14: = | T14: =IF(N15=0,0,((N14*P14)-R14)/N15) -> 13.9 | AA14: AA | AB14: * | AC14: 100 | AI14: =COUNTIF('2DOPA'!AO16:AO65,">=6") -> 14 | AJ14: * | AK14: 100 | AL14: = | AM14: =IF(AI15="",0,(AI14*AK14)/AI15) -> 100
D15: CI | N15: ='2DOPA'!AK15 -> 10 | AA15: AR | AI15: =AF3 -> 14
C18: PROMEDIO DE EFICIENCIA | L18: SUSTITUCIÓN | Y18: PORCENTAJE DE AVANCE PROGRAMÁTICO | AH18: SUSTITUCÓN
E22: ∑Cal | P22: =SUM('2DOPA'!AN17:AN66)/10 -> 167.9444444 | Q22: = | R22: =IF(P23="",0,P22/P23) -> 11.99603175 | AA22: TI | AB22: * | AC22: 100 | AI22: 12 | AJ22: * | AK22: =AC22 -> 100 | AL22: = | AM22: =IF(AI23="",0,(AI22*AK22)/AI23) -> 100
E23: AR | P23: =AF3 -> 14 | AA23: TP | AI23: 12
C26: SIMBOLOGÍA | K26: CI: | L26: Número de clases impartidas
C27: AR: | D27: Cantidad de alumnos regulares | K27: AA: | L27: Cantidad de alumnos aprobados | AE27: PUEBLA, | AG27: 29 | AH27: DE | AI27: OCTUBRE | AL27: DE | AM27: 2018
C28: F: | D28: Faltas de alumnos en el periodo | K28: TI: | L28: Temas impartidos | S28: =IF('1ERPA'!X10="","",'1ERPA'!X10) -> ALDO ORTEGA PACHECO
C29: Cal: | D29: Calificaciones | K29: TP: | L29: Temas programados | S29: NOMBRE Y FIRMA DEL CATEDRÁTICO | AE29: SD/F
B31: ALUMNOS REPROBADOS Y CAUSA DE LA REPROBACIÓN
B32: NOMBRE COMPLETO DEL ALUMNO | V32: CAUSA
A33: =A32+1 -> 1 | B33: =IFERROR(VLOOKUP(A33,'2DOPA'!$E$17:$F$66,2,FALSE),"") ->  | V33: =IF(B33="","",IF(IFERROR(VLOOKUP(B33,'2DOPA'!$F$17:$AO$66,36,FALSE),0)=$AE$29,"SIN DERECHO POR FALTAS",IF(VLOOKUP(B33,'2DOPM'!B20:Y69,22,FALSE)<0.3,IF(VLOOKUP(B33,'2DOPM'!B20:Y69,21,FALSE)<0.3,"NO ENTREGO, LOS INDICADORES DE DESEMPEÑO Y EVIDENCIAS DE APRENDIZAJE NECESARIAS PARA APROBAR","NO ENTREGO, LOS INDICADORES DE DESEMPEÑO NECESARIOS PARA APROBAR"),"NO ENTREGO, LAS EVIDENCIAS DE APRENDIZAJE NECESARIOS PARA APROBAR"))) -> 
A34: 2 | B34: =IFERROR(VLOOKUP(A34,'2DOPA'!$E$17:$F$66,2,FALSE),"") ->  | V34: =IF(B34="","",IF(IFERROR(VLOOKUP(B34,'2DOPA'!$F$17:$AO$66,36,FALSE),0)=$AE$29,"SIN DERECHO POR FALTAS",IF(VLOOKUP(B34,'2DOPM'!B21:Y70,22,FALSE)<0.3,IF(VLOOKUP(B34,'2DOPM'!B21:Y70,21,FALSE)<0.3,"NO ENTREGO, LOS INDICADORES DE DESEMPEÑO Y EVIDENCIAS DE APRENDIZAJE NECESARIAS PARA APROBAR","NO ENTREGO, LOS INDICADORES DE DESEMPEÑO NECESARIOS PARA APROBAR"),"NO ENTREGO, LAS EVIDENCIAS DE APRENDIZAJE NECESARIOS PARA APROBAR"))) -> 
A35: 3 | B35: =IFERROR(VLOOKUP(A35,'2DOPA'!$E$17:$F$66,2,FALSE),"") ->  | V35: =IF(B35="","",IF(IFERROR(VLOOKUP(B35,'2DOPA'!$F$17:$AO$66,36,FALSE),0)=$AE$29,"SIN DERECHO POR FALTAS",IF(VLOOKUP(B35,'2DOPM'!B22:Y71,22,FALSE)<0.3,IF(VLOOKUP(B35,'2DOPM'!B22:Y71,21,FALSE)<0.3,"NO ENTREGO, LOS INDICADORES DE DESEMPEÑO Y EVIDENCIAS DE APRENDIZAJE NECESARIAS PARA APROBAR","NO ENTREGO, LOS INDICADORES DE DESEMPEÑO NECESARIOS PARA APROBAR"),"NO ENTREGO, LAS EVIDENCIAS DE APRENDIZAJE NECESARIOS PARA APROBAR"))) -> 
A36: 4 | B36: =IFERROR(VLOOKUP(A36,'2DOPA'!$E$17:$F$66,2,FALSE),"") ->  | V36: =IF(B36="","",IF(IFERROR(VLOOKUP(B36,'2DOPA'!$F$17:$AO$66,36,FALSE),0)=$AE$29,"SIN DERECHO POR FALTAS",IF(VLOOKUP(B36,'2DOPM'!B24:Y72,22,FALSE)<0.3,IF(VLOOKUP(B36,'2DOPM'!B24:Y72,21,FALSE)<0.3,"NO ENTREGO, LOS INDICADORES DE DESEMPEÑO Y EVIDENCIAS DE APRENDIZAJE NECESARIAS PARA APROBAR","NO ENTREGO, LOS INDICADORES DE DESEMPEÑO NECESARIOS PARA APROBAR"),"NO ENTREGO, LAS EVIDENCIAS DE APRENDIZAJE NECESARIOS PARA APROBAR"))) -> 
A37: 5 | B37: =IFERROR(VLOOKUP(A37,'2DOPA'!$E$17:$F$66,2,FALSE),"") ->  | V37: =IF(B37="","",IF(IFERROR(VLOOKUP(B37,'2DOPA'!$F$17:$AO$66,36,FALSE),0)=$AE$29,"SIN DERECHO POR FALTAS",IF(VLOOKUP(B37,'2DOPM'!B25:Y73,22,FALSE)<0.3,IF(VLOOKUP(B37,'2DOPM'!B25:Y73,21,FALSE)<0.3,"NO ENTREGO, LOS INDICADORES DE DESEMPEÑO Y EVIDENCIAS DE APRENDIZAJE NECESARIAS PARA APROBAR","NO ENTREGO, LOS INDICADORES DE DESEMPEÑO NECESARIOS PARA APROBAR"),"NO ENTREGO, LAS EVIDENCIAS DE APRENDIZAJE NECESARIOS PARA APROBAR"))) -> 
A38: 6 | B38: =IF('2DOPA'!E16>6,"Y "&'2DOPA'!E16-5&" MÁS REPROBADOS",IFERROR(VLOOKUP(A38,'2DOPA'!$E$17:$F$66,2,FALSE),"")) ->  | V38: =IF(IFERROR(VLOOKUP(A38,'2DOPA'!$E$17:$F$66,2,FALSE),"")=B38,IF(B38="","",IF(IFERROR(VLOOKUP(B38,'2DOPA'!$F$17:$AO$66,36,FALSE),0)=$AE$29,"SIN DERECHO POR FALTAS",IF(VLOOKUP(B38,'2DOPM'!B26:Y74,22,FALSE)<0.3,IF(VLOOKUP(B38,'2DOPM'!B26:Y74,21,FALSE)<0.3,"NO ENTREGO, LOS INDICADORES DE DESEMPEÑO Y EVIDENCIAS DE APRENDIZAJE NECESARIAS PARA APROBAR","NO ENTREGO, LOS INDICADORES DE DESEMPEÑO NECESARIOS PARA APROBAR"),"NO ENTREGO, LAS EVIDENCIAS DE APRENDIZAJE NECESARIOS PARA APROBAR"))),"SIN DERECHO POR FALTAS Y/O POR NO ENTREGAR LAS EVIDENCIAS NECESARIAS") -> 
AC39: =IF('1ERPA'!$C$16<>0,"CONTACTAR A LOS ALUMNOS PARA SABER QUE SUCEDE",IF('1ERPA'!$D$16<>0,"ASESORIAS PARA QUE MEJORE SU CALIFICACIÓN","")) -> 
B40: PROPUESTA DE SOLUCIÓN PARA REDUCIR EL PORCENTAJE DE REPROBACIÓN
B41: =IF(AND('2DOPA'!C16>0,'2DOPA'!D16=0),"CONTACTAR A LOS ALUMNOS PARA SABER QUE SUCEDE CON SUS ASISTENCIAS",IF(AND('2DOPA'!C16=0,'2DOPA'!D16>0),"ASESORIAS PARA QUE MEJOREN SUS CALIFICACIONES",IF(AND('2DOPA'!C16>0,'2DOPA'!D16>0),"ASESORIAS PARA QUE MEJOREN SUS CALIFICACIONES Y CONTACTAR A LOS ALUMNOS PARA SABER QUE SUCEDE CON SUS ASISTENCIAS",""))) -> 
B46: TEMAS PENDIENTES DEL PERIODO QUE SE REPORTAN
B47: TEMA(S) | V47: MOTIVO(S)

Sheet 3ERPA
A1: CONTROL DE ASISTENCIA Y EVALUACIONES
V2: CICLO ESCOLAR | AB2: =IF('1ERPA'!W2="","",'1ERPA'!W2) -> 2018-2019
A3: ORDINARIO
L5: LICENCIATURA EN: | M5: =IF('1ERPA'!M5="","",'1ERPA'!M5) -> Ingeniería en Sistemas Computacionales | AC5: ASIGNATURA: | AD5: =IF('1ERPA'!AD5="","",'1ERPA'!AD5) -> SEGURIDAD INFORMÁTICA Y DE REDES
J7: ='1ERPA'!J7 -> CUATRIMESTRE: | K7: =IF('1ERPA'!K7="","",'1ERPA'!K7) -> QUINTO | P7: GRUPO: | Q7: =IF('1ERPA'!Q7="","",'1ERPA'!Q7) -> A | U7: PERIODO: | V7: =IF('1ERPA'!V7="","",'1ERPA'!V7) -> A
A9: No. | F9: NOMBRE DEL ALUMNO | H9: SIMBOLOGIA: | L9: A: | M9: ASISTENCIA | AK9: CLASES IMPARTIDAS | AL9: TOTAL FALTAS | AM9: % ASISTENCIA | AN9: EVALUACIÓN | AR9: PRIMER PARCIAL | AU9: SEGUNDO PARCIAL | AX9: PROMEDIO % ASISTENCIA | AY9: PROMEDIO DE CALIFICACIONES | AZ9: SUMA DEL % PARCIALES
L10: F: | M10: FALTA | X10: =IF('1ERPA'!X10="","",'1ERPA'!X10) -> ALDO ORTEGA PACHECO | AN10: CALIFICACIÓN | AP10: CALIF. CON LETRA | AQ10: % PARCIAL
L11: J: | M11: JUSTIFICACIÓN | X11: NOMBRE Y FIRMA DEL CATEDRÁTICO | AR11: % ASISTENCIA | AS11: CALIFICACIÓN | AT11: % PARCIAL | AU11: % ASISTENCIA | AV11: CALIFICACIÓN | AW11: % PARCIAL
G12: SEGUNDO PARCIAL
G13: MAYO | U13: - | W13: JUNIO
G14: Ma | H14: Ma | I14: Ma | J14: Ma | K14: Ma
G15: 19 | H15: 26 | I15: 2 | J15: 9 | K15: 16 | AK15: =COUNT(G15:AJ15) -> 5 | AL15: =SUM(AL17:AL44) -> 0 | AM15: =100/AK15 -> 20 | AN15: % | AO15: T | AQ15: 50
C16: =COUNTIF(C17:C67,"=1") -> 0 | D16: =COUNTIF(D17:D67,"=1") -> 8 | E16: =C16+D16 -> 8 | G16: 3 | H16: 3 | I16: 3 | J16: 3 | K16: 3
A17: =IF(F17="","",1) -> 1 | B17: =AO17 -> 3 | C17: =IF(B17="SD/F",1,0) -> 0 | D17: =IF(B17<6,1,0) -> 1 | E17: =IF(B17="SD/F",1,IF(B17<6,1,0)) -> 1 | F17: =IF('1ERPA'!F17="","",'1ERPA'!F17) -> GUZMAN SANTOS ALAN | G17: A | H17: A | I17: A | J17: A | K17: A | AK17: =IF(G17="","",COUNTIF(G17:AJ17,"A")+COUNTIF(G17:AJ17,"J")) -> 5 | AL17: =IF(AK17="","",COUNTIF(G17:AJ17,"F")) -> 0 | AM17: =IF(AK17="","",($AK$15-AL17)*$AM$15) -> 100 | AN17: =IF('3ERPM'!W20="","",IF('3ERPM'!W20=0,"",('3ERPM'!W20)*100)) -> 28.9 | AO17: =IF(AM17<80,"SD/F",IF(AN17="","",IF(AN17>=96,10,IF(AN17>=86,9,IF(AN17>=76,8,IF(AN17>=66,7,IF(AN17>=56,6,IF(AN17>=46,5,IF(AN17>=36,4,IF(AN17>=26,3,IF(AN17>=16,2,IF(AN17>=6,1,IF(AN17>=0,0,""))))))))))))) -> 3 | AP17: =IF(AM17<80,"SD/F",IF(AO17="","",IF(AO17>=9.6,"DIEZ",IF(AO17>=8.6,"NUEVE",IF(AO17>=7.6,"OCHO",IF(AO17>=6.6,"SIETE",IF(AO17>=5.6,"SEIS",IF(AO17>=4.6,"CINCO",IF(AO17>=3.6,"CUATRO",IF(AO17>=2.6,"TRES",IF(AO17>=1.6,"DOS",IF(AO17>=0.6,"UNO",IF(AO17>=0,"CERO",""))))))))))))) -> TRES | AQ17: =IF(AP17="","",IF(AP17="SD/F",0,($AQ$15/10)*AO17)) -> 15 | AR17: ='1ERPA'!AM17 -> 100 | AS17: ='1ERPA'!AO17 -> 9 | AT17: ='1ERPA'!AQ17 -> 22.5 | AU17: ='2DOPA'!AM17 -> 100 | AV17: ='2DOPA'!AO17 -> 10 | AW17: ='2DOPA'!AQ17 -> 25 | AX17: =IF(AM17="","",AVERAGE(AM17,AR17,AU17)) -> 100 | AY17: =IF(AO17="","",AVERAGE(AO17,AS17,AV17)) -> 7.333333333 | AZ17: =IF(AQ17="","",SUM(AQ17,AT17,AW17)) -> 62.5
A18: =IF(F18="","",A17+1) -> 2 | B18: 3 | C18: =IF(B18="SD/F",1,0) -> 0 | D18: =IF(B18<6,1,0) -> 1 | E18: =IF(B18="SD/F",E17+1,IF(B18<6,E17+1,E17)) -> 2 | F18: =IF('1ERPA'!F18="","",'1ERPA'!F18) -> ILLAN MONJARDIN JOSE LUIS | G18: A | H18: A | I18: A | J18: A | K18: A | AK18: =IF(G18="","",COUNTIF(G18:AJ18,"A")+COUNTIF(G18:AJ18,"J")) -> 5 | AL18: =IF(AK18="","",COUNTIF(G18:AJ18,"F")) -> 0 | AM18: =IF(AK18="","",($AK$15-AL18)*$AM$15) -> 100 | AN18: =IF('3ERPM'!W21="","",IF('3ERPM'!W21=0,"",('3ERPM'!W21)*100)) -> 29.5 | AO18: =IF(AM18<80,"SD/F",IF(AN18="","",IF(AN18>=96,10,IF(AN18>=86,9,IF(AN18>=76,8,IF(AN18>=66,7,IF(AN18>=56,6,IF(AN18>=46,5,IF(AN18>=36,4,IF(AN18>=26,3,IF(AN18>=16,2,IF(AN18>=6,1,IF(AN18>=0,0,""))))))))))))) -> 3 | AP18: =IF(AM18<80,"SD/F",IF(AO18="","",IF(AO18>=9.6,"DIEZ",IF(AO18>=8.6,"NUEVE",IF(AO18>=7.6,"OCHO",IF(AO18>=6.6,"SIETE",IF(AO18>=5.6,"SEIS",IF(AO18>=4.6,"CINCO",IF(AO18>=3.6,"CUATRO",IF(AO18>=2.6,"TRES",IF(AO18>=1.6,"DOS",IF(AO18>=0.6,"UNO",IF(AO18>=0,"CERO",""))))))))))))) -> TRES | AQ18: =IF(AP18="","",IF(AP18="SD/F",0,($AQ$15/10)*AO18)) -> 15 | AR18: ='1ERPA'!AM18 -> 100 | AS18: ='1ERPA'!AO18 -> 9 | AT18: ='1ERPA'!AQ18 -> 22.5 | AU18: ='2DOPA'!AM18 -> 100 | AV18: ='2DOPA'!AO18 -> 10 | AW18: ='2DOPA'!AQ18 -> 25 | AX18: =IF(AM18="","",AVERAGE(AM18,AR18,AU18)) -> 100 | AY18: =IF(AO18="","",AVERAGE(AO18,AS18,AV18)) -> 7.333333333 | AZ18: =IF(AQ18="","",SUM(AQ18,AT18,AW18)) -> 62.5
A19: =IF(F19="","",A18+1) -> 3 | B19: 3 | C19: 0 | D19: 1 | E19: =IF(B19="SD/F",E18+1,IF(B19<6,E18+1,E18)) -> 3 | F19: =IF('1ERPA'!F19="","",'1ERPA'!F19) -> LA MADRID GONZALEZ FERNANDA ISABEL | G19: A | H19: A | I19: A | J19: A | K19: A | AK19: 5 | AL19: 0 | AM19: 100 | AN19: =IF('3ERPM'!W22="","",IF('3ERPM'!W22=0,"",('3ERPM'!W22)*100)) -> 29.5 | AO19: 3 | AP19: TRES | AQ19: 15 | AR19: ='1ERPA'!AM19 -> 100 | AS19: ='1ERPA'!AO19 -> 8 | AT19: ='1ERPA'!AQ19 -> 20 | AU19: ='2DOPA'!AM19 -> 90 | AV19: ='2DOPA'!AO19 -> 7 | AW19: ='2DOPA'!AQ19 -> 17.5 | AX19: 96.66666667 | AY19: 6 | AZ19: 52.5
A20: =IF(F20="","",A19+1) -> 4 | B20: =AO20 -> 3 | C20: =IF(B20="SD/F",1,0) -> 0 | D20: =IF(B20<6,1,0) -> 1 | E20: =IF(B20="SD/F",E19+1,IF(B20<6,E19+1,E19)) -> 4 | F20: =IF('1ERPA'!F20="","",'1ERPA'!F20) -> LOPEZ CASTRO GLORIA KARINA | G20: A | H20: A | I20: A | J20: A | K20: A | AK20: 5 | AL20: 0 | AM20: 100 | AN20: =IF('3ERPM'!W23="","",IF('3ERPM'!W23=0,"",('3ERPM'!W23)*100)) -> 29.5 | AO20: 3 | AP20: TRES | AQ20: 15 | AR20: ='1ERPA'!AM20 -> 100 | AS20: ='1ERPA'!AO20 -> 9 | AT20: ='1ERPA'!AQ20 -> 22.5 | AU20: ='2DOPA'!AM20 -> 100 | AV20: ='2DOPA'!AO20 -> 10 | AW20: ='2DOPA'!AQ20 -> 25 | AX20: 100 | AY20: 7.333333333 | AZ20: 62.5
A21: 5 | B21: 3 | C21: 0 | D21: 1 | E21: =IF(B21="SD/F",E19+1,IF(B21<6,E19+1,E19)) -> 4 | F21: =IF('1ERPA'!F21="","",'1ERPA'!F21) -> GUZMAN SANTOS ALAN | G21: A | H21: A | I21: A | J21: A | K21: A | AK21: 5 | AL21: 0 | AM21: 100 | AN21: =IF('3ERPM'!W24="","",IF('3ERPM'!W24=0,"",('3ERPM'!W24)*100)) -> 29.5 | AO21: 3 | AP21: TRES | AQ21: 15 | AR21: ='1ERPA'!AM21 -> 100 | AS21: ='1ERPA'!AO21 -> 9 | AT21: ='1ERPA'!AQ21 -> 22.5 | AU21: ='2DOPA'!AM21 -> 100 | AV21: ='2DOPA'!AO21 -> 10 | AW21: ='2DOPA'!AQ21 -> 25 | AX21: 100 | AY21: 7.333333333 | AZ21: 62.5
A22: 6 | B22: =AO22 -> 3 | C22: =IF(B22="SD/F",1,0) -> 0 | D22: =IF(B22<6,1,0) -> 1 | E22: =IF(B22="SD/F",E21+1,IF(B22<6,E21+1,E21)) -> 5 | F22: =IF('1ERPA'!F22="","",'1ERPA'!F22) -> Y | G22: A | H22: A | I22: A | J22: A | K22: A | AK22: 5 | AL22: 0 | AM22: 100 | AN22: =IF('3ERPM'!W25="","",IF('3ERPM'!W25=0,"",('3ERPM'!W25)*100)) -> 29.5 | AO22: 3 | AP22: TRES | AQ22: 15 | AR22: ='1ERPA'!AM22 -> 100 | AS22: ='1ERPA'!AO22 -> 9 | AT22: ='1ERPA'!AQ22 -> 22.5 | AU22: ='2DOPA'!AM22 -> 100 | AV22: ='2DOPA'!AO22 -> 10 | AW22: ='2DOPA'!AQ22 -> 25 | AX22: 100 | AY22: 7.333333333 | AZ22: 62.5
A23: 7 | B23: 3 | C23: 0 | D23: 1 | E23: =IF(B23="SD/F",E21+1,IF(B23<6,E21+1,E21)) -> 5 | F23: =IF('1ERPA'!F23="","",'1ERPA'!F23) -> U | G23: A | H23: A | I23: A | J23: A | K23: A | AK23: 5 | AL23: 0 | AM23: 100 | AN23: =IF('3ERPM'!W26="","",IF('3ERPM'!W26=0,"",('3ERPM'!W26)*100)) -> 29.5 | AO23: 3 | AP23: TRES | AQ23: 15 | AR23: ='1ERPA'!AM23 -> 100 | AS23: ='1ERPA'!AO23 -> 9 | AT23: ='1ERPA'!AQ23 -> 22.5 | AU23: ='2DOPA'!AM23 -> 100 | AV23: ='2DOPA'!AO23 -> 10 | AW23: ='2DOPA'!AQ23 -> 25 | AX23: 100 | AY23: 7.333333333 | AZ23: 62.5
A24: 8 | B24: 3 | C24: 0 | D24: 1 | E24: 6 | F24: =IF('1ERPA'!F24="","",'1ERPA'!F24) -> ILLAN MONJARDIN JOSE LUIS | G24: A | H24: A | I24: A | J24: A | K24: A | AK24: 5 | AL24: 0 | AM24: 100 | AN24: =IF('3ERPM'!W27="","",IF('3ERPM'!W27=0,"",('3ERPM'!W27)*100)) -> 29.5 | AO24: 3 | AP24: TRES | AQ24: 15 | AR24: ='1ERPA'!AM24 -> 93.75 | AS24: ='1ERPA'!AO24 -> 9 | AT24: ='1ERPA'!AQ24 -> 22.5 | AU24: ='2DOPA'!AM24 -> 100 | AV24: ='2DOPA'!AO24 -> 10 | AW24: ='2DOPA'!AQ24 -> 25 | AX24: 97.91666667 | AY24: 7.333333333 | AZ24: 62.5
A25: =IF(F25="","",A24+1) -> 9 | B25: =AO25 -> 6 | C25: =IF(B25="SD/F",1,0) -> 0 | D25: =IF(B25<6,1,0) -> 0 | E25: =IF(B25="SD/F",E24+1,IF(B25<6,E24+1,E24)) -> 6 | F25: =IF('1ERPA'!F25="","",'1ERPA'!F25) -> e | G25: A | H25: A | I25: A | J25: A | K25: A | AK25: =IF(G25="","",COUNTIF(G25:AJ25,"A")+COUNTIF(G25:AJ25,"J")) -> 5 | AL25: =IF(AK25="","",COUNTIF(G25:AJ25,"F")) -> 0 | AM25: =IF(AK25="","",($AK$15-AL25)*$AM$15) -> 100 | AN25: =IF('3ERPM'!W28="","",IF('3ERPM'!W28=0,"",('3ERPM'!W28)*100)) -> 56 | AO25: =IF(AM25<80,"SD/F",IF(AN25="","",IF(AN25>=96,10,IF(AN25>=86,9,IF(AN25>=76,8,IF(AN25>=66,7,IF(AN25>=56,6,IF(AN25>=46,5,IF(AN25>=36,4,IF(AN25>=26,3,IF(AN25>=16,2,IF(AN25>=6,1,IF(AN25>=0,0,""))))))))))))) -> 6 | AP25: =IF(AM25<80,"SD/F",IF(AO25="","",IF(AO25>=9.6,"DIEZ",IF(AO25>=8.6,"NUEVE",IF(AO25>=7.6,"OCHO",IF(AO25>=6.6,"SIETE",IF(AO25>=5.6,"SEIS",IF(AO25>=4.6,"CINCO",IF(AO25>=3.6,"CUATRO",IF(AO25>=2.6,"TRES",IF(AO25>=1.6,"DOS",IF(AO25>=0.6,"UNO",IF(AO25>=0,"CERO",""))))))))))))) -> SEIS | AQ25: =IF(AP25="","",IF(AP25="SD/F",0,($AQ$15/10)*AO25)) -> 30 | AR25: ='1ERPA'!AM25 -> 93.75 | AS25: ='1ERPA'!AO25 -> 9 | AT25: ='1ERPA'!AQ25 -> 22.5 | AU25: ='2DOPA'!AM25 -> 100 | AV25: ='2DOPA'!AO25 -> 10 | AW25: ='2DOPA'!AQ25 -> 25 | AX25: =IF(AM25="","",AVERAGE(AM25,AR25,AU25)) -> 97.91666667 | AY25: =IF(AO25="","",AVERAGE(AO25,AS25,AV25)) -> 8.333333333 | AZ25: =IF(AQ25="","",SUM(AQ25,AT25,AW25)) -> 77.5
A26: 10 | B26: 8 | C26: 0 | D26: 0 | E26: 6 | F26: =IF('1ERPA'!F26="","",'1ERPA'!F26) -> f | G26: A | H26: A | I26: A | J26: A | K26: A | AK26: 5 | AL26: 0 | AM26: 100 | AN26: =IF('3ERPM'!W29="","",IF('3ERPM'!W29=0,"",('3ERPM'!W29)*100)) -> 82.5 | AO26: 8 | AP26: OCHO | AQ26: 40 | AR26: ='1ERPA'!AM26 -> 93.75 | AS26: ='1ERPA'!AO26 -> 9 | AT26: ='1ERPA'!AQ26 -> 22.5 | AU26: ='2DOPA'!AM26 -> 100 | AV26: ='2DOPA'!AO26 -> 10 | AW26: ='2DOPA'!AQ26 -> 25 | AX26: 97.91666667 | AY26: 9 | AZ26: 87.5
A27: 11 | B27: 10 | C27: 0 | D27: 0 | E27: 6 | F27: =IF('1ERPA'!F27="","",'1ERPA'!F27) -> GUZMAN SANTOS ALAN | G27: A | H27: A | I27: A | J27: A | K27: A | AK27: 5 | AL27: 0 | AM27: 100 | AN27: =IF('3ERPM'!W30="","",IF('3ERPM'!W30=0,"",('3ERPM'!W30)*100)) -> 109 | AO27: 10 | AP27: DIEZ | AQ27: 50 | AR27: ='1ERPA'!AM27 -> 93.75 | AS27: ='1ERPA'!AO27 -> 9 | AT27: ='1ERPA'!AQ27 -> 22.5 | AU27: ='2DOPA'!AM27 -> 100 | AV27: ='2DOPA'!AO27 -> 10 | AW27: ='2DOPA'!AQ27 -> 25 | AX27: 97.91666667 | AY27: 9.666666667 | AZ27: 97.5
A28: 12 | B28: 10 | C28: 0 | D28: 0 | E28: 6 | F28: =IF('1ERPA'!F28="","",'1ERPA'!F28) -> h | G28: A | H28: A | I28: A | J28: A | K28: A | AK28: 5 | AL28: 0 | AM28: 100 | AN28: =IF('3ERPM'!W31="","",IF('3ERPM'!W31=0,"",('3ERPM'!W31)*100)) -> 135.5 | AO28: 10 | AP28: DIEZ | AQ28: 50 | AR28: ='1ERPA'!AM28 -> 93.75 | AS28: ='1ERPA'!AO28 -> 9 | AT28: ='1ERPA'!AQ28 -> 22.5 | AU28: ='2DOPA'!AM28 -> 100 | AV28: ='2DOPA'!AO28 -> 10 | AW28: ='2DOPA'!AQ28 -> 25 | AX28: 97.91666667 | AY28: 9.666666667 | AZ28: 97.5
A29: 13 | B29: 10 | C29: 0 | D29: 0 | E29: 6 | F29: =IF('1ERPA'!F29="","",'1ERPA'!F29) -> ILLAN MONJARDIN JOSE LUIS | G29: A | H29: A | I29: A | J29: A | K29: A | AK29: 5 | AL29: 0 | AM29: 100 | AN29: =IF('3ERPM'!W32="","",IF('3ERPM'!W32=0,"",('3ERPM'!W32)*100)) -> 162 | AO29: 10 | AP29: DIEZ | AQ29: 50 | AR29: ='1ERPA'!AM29 -> 81.25 | AS29: ='1ERPA'!AO29 -> 9 | AT29: ='1ERPA'!AQ29 -> 22.5 | AU29: ='2DOPA'!AM29 -> 100 | AV29: ='2DOPA'!AO29 -> 10 | AW29: ='2DOPA'!AQ29 -> 25 | AX29: 93.75 | AY29: 9.666666667 | AZ29: 97.5
A30: 14 | C30: 0 | D30: 0 | E30: 6 | F30: =IF('1ERPA'!F30="","",'1ERPA'!F30) -> T | AN30: =IF('3ERPM'!W33="","",IF('3ERPM'!W33=0,"",('3ERPM'!W33)*100)) ->  | AR30: ='1ERPA'!AM30 -> 100 | AS30: ='1ERPA'!AO30 -> 9 | AT30: ='1ERPA'!AQ30 -> 22.5 | AU30: ='2DOPA'!AM30 ->  | AV30: ='2DOPA'!AO30 -> 10 | AW30: ='2DOPA'!AQ30 -> 25
C31: 0 | D31: 0 | E31: 6 | F31: =IF('1ERPA'!F31="","",'1ERPA'!F31) ->  | AN31: =IF('3ERPM'!W34="","",IF('3ERPM'!W34=0,"",('3ERPM'!W34)*100)) ->  | AR31: ='1ERPA'!AM31 ->  | AS31: ='1ERPA'!AO31 ->  | AT31: ='1ERPA'!AQ31 ->  | AU31: ='2DOPA'!AM31 ->  | AV31: ='2DOPA'!AO31 ->  | AW31: ='2DOPA'!AQ31 -> 
C32: 0 | D32: 0 | E32: 6 | F32: =IF('1ERPA'!F32="","",'1ERPA'!F32) ->  | AN32: =IF('3ERPM'!W35="","",IF('3ERPM'!W35=0,"",('3ERPM'!W35)*100)) ->  | AR32: ='1ERPA'!AM32 ->  | AS32: ='1ERPA'!AO32 ->  | AT32: ='1ERPA'!AQ32 ->  | AU32: ='2DOPA'!AM32 ->  | AV32: ='2DOPA'!AO32 ->  | AW32: ='2DOPA'!AQ32 -> 
C33: 0 | D33: 0 | E33: 6 | F33: =IF('1ERPA'!F33="","",'1ERPA'!F33) ->  | AN33: =IF('3ERPM'!W36="","",IF('3ERPM'!W36=0,"",('3ERPM'!W36)*100)) ->  | AR33: ='1ERPA'!AM33 ->  | AS33: ='1ERPA'!AO33 ->  | AT33: ='1ERPA'!AQ33 ->  | AU33: ='2DOPA'!AM33 ->  | AV33: ='2DOPA'!AO33 ->  | AW33: ='2DOPA'!AQ33 -> 
C34: 0 | D34: 0 | E34: 6 | F34: =IF('1ERPA'!F34="","",'1ERPA'!F34) ->  | AN34: =IF('3ERPM'!W37="","",IF('3ERPM'!W37=0,"",('3ERPM'!W37)*100)) ->  | AR34: ='1ERPA'!AM34 ->  | AS34: ='1ERPA'!AO34 ->  | AT34: ='1ERPA'!AQ34 ->  | AU34: ='2DOPA'!AM34 ->  | AV34: ='2DOPA'!AO34 ->  | AW34: ='2DOPA'!AQ34 -> 
C35: 0 | D35: 0 | E35: 6 | F35: =IF('1ERPA'!F35="","",'1ERPA'!F35) ->  | AN35: =IF('3ERPM'!W38="","",IF('3ERPM'!W38=0,"",('3ERPM'!W38)*100)) ->  | AR35: ='1ERPA'!AM35 ->  | AS35: ='1ERPA'!AO35 ->  | AT35: ='1ERPA'!AQ35 ->  | AU35: ='2DOPA'!AM35 ->  | AV35: ='2DOPA'!AO35 ->  | AW35: ='2DOPA'!AQ35 -> 
C36: 0 | D36: 0 | E36: 6 | F36: =IF('1ERPA'!F36="","",'1ERPA'!F36) ->  | AN36: =IF('3ERPM'!W39="","",IF('3ERPM'!W39=0,"",('3ERPM'!W39)*100)) ->  | AR36: ='1ERPA'!AM36 ->  | AS36: ='1ERPA'!AO36 ->  | AT36: ='1ERPA'!AQ36 ->  | AU36: ='2DOPA'!AM36 ->  | AV36: ='2DOPA'!AO36 ->  | AW36: ='2DOPA'!AQ36 -> 
C37: 0 | D37: 0 | E37: 6 | F37: =IF('1ERPA'!F37="","",'1ERPA'!F37) ->  | AN37: =IF('3ERPM'!W40="","",IF('3ERPM'!W40=0,"",('3ERPM'!W40)*100)) ->  | AR37: ='1ERPA'!AM37 ->  | AS37: ='1ERPA'!AO37 ->  | AT37: ='1ERPA'!AQ37 ->  | AU37: ='2DOPA'!AM37 ->  | AV37: ='2DOPA'!AO37 ->  | AW37: ='2DOPA'!AQ37 -> 
C38: 0 | D38: 0 | E38: 6 | F38: =IF('1ERPA'!F38="","",'1ERPA'!F38) ->  | AN38: =IF('3ERPM'!W41="","",IF('3ERPM'!W41=0,"",('3ERPM'!W41)*100)) ->  | AR38: ='1ERPA'!AM38 ->  | AS38: ='1ERPA'!AO38 ->  | AT38: ='1ERPA'!AQ38 ->  | AU38: ='2DOPA'!AM38 ->  | AV38: ='2DOPA'!AO38 ->  | AW38: ='2DOPA'!AQ38 -> 
C39: 0 | D39: 0 | E39: 6 | F39: =IF('1ERPA'!F39="","",'1ERPA'!F39) ->  | AN39: =IF('3ERPM'!W42="","",IF('3ERPM'!W42=0,"",('3ERPM'!W42)*100)) ->  | AR39: ='1ERPA'!AM39 ->  | AS39: ='1ERPA'!AO39 ->  | AT39: ='1ERPA'!AQ39 ->  | AU39: ='2DOPA'!AM39 ->  | AV39: ='2DOPA'!AO39 ->  | AW39: ='2DOPA'!AQ39 -> 
C40: 0 | D40: 0 | E40: 6 | F40: =IF('1ERPA'!F40="","",'1ERPA'!F40) ->  | AN40: =IF('3ERPM'!W43="","",IF('3ERPM'!W43=0,"",('3ERPM'!W43)*100)) ->  | AR40: ='1ERPA'!AM40 ->  | AS40: ='1ERPA'!AO40 ->  | AT40: ='1ERPA'!AQ40 ->  | AU40: ='2DOPA'!AM40 ->  | AV40: ='2DOPA'!AO40 ->  | AW40: ='2DOPA'!AQ40 -> 
C41: 0 | D41: 0 | E41: 6 | F41: =IF('1ERPA'!F41="","",'1ERPA'!F41) ->  | AN41: =IF('3ERPM'!W44="","",IF('3ERPM'!W44=0,"",('3ERPM'!W44)*100)) ->  | AR41: ='1ERPA'!AM41 ->  | AS41: ='1ERPA'!AO41 ->  | AT41: ='1ERPA'!AQ41 ->  | AU41: ='2DOPA'!AM41 ->  | AV41: ='2DOPA'!AO41 ->  | AW41: ='2DOPA'!AQ41 -> 
C42: 0 | D42: 0 | E42: 6 | F42: =IF('1ERPA'!F42="","",'1ERPA'!F42) ->  | AN42: =IF('3ERPM'!W45="","",IF('3ERPM'!W45=0,"",('3ERPM'!W45)*100)) ->  | AR42: ='1ERPA'!AM42 ->  | AS42: ='1ERPA'!AO42 ->  | AT42: ='1ERPA'!AQ42 ->  | AU42: ='2DOPA'!AM42 ->  | AV42: ='2DOPA'!AO42 ->  | AW42: ='2DOPA'!AQ42 -> 
C43: 0 | D43: 0 | E43: 6 | F43: =IF('1ERPA'!F43="","",'1ERPA'!F43) ->  | AN43: =IF('3ERPM'!W46="","",IF('3ERPM'!W46=0,"",('3ERPM'!W46)*100)) ->  | AR43: ='1ERPA'!AM43 ->  | AS43: ='1ERPA'!AO43 ->  | AT43: ='1ERPA'!AQ43 ->  | AU43: ='2DOPA'!AM43 ->  | AV43: ='2DOPA'!AO43 ->  | AW43: ='2DOPA'!AQ43 -> 
C44: 0 | D44: 0 | E44: 6 | F44: =IF('1ERPA'!F44="","",'1ERPA'!F44) ->  | AN44: =IF('3ERPM'!W47="","",IF('3ERPM'!W47=0,"",('3ERPM'!W47)*100)) ->  | AR44: ='1ERPA'!AM44 ->  | AS44: ='1ERPA'!AO44 ->  | AT44: ='1ERPA'!AQ44 ->  | AU44: ='2DOPA'!AM44 ->  | AV44: ='2DOPA'!AO44 ->  | AW44: ='2DOPA'!AQ44 -> 
C45: 0 | D45: 0 | E45: 6 | F45: =IF('1ERPA'!F45="","",'1ERPA'!F45) ->  | AN45: =IF('3ERPM'!W48="","",IF('3ERPM'!W48=0,"",('3ERPM'!W48)*100)) ->  | AR45: ='1ERPA'!AM45 ->  | AS45: ='1ERPA'!AO45 ->  | AT45: ='1ERPA'!AQ45 ->  | AU45: ='2DOPA'!AM45 ->  | AV45: ='2DOPA'!AO45 ->  | AW45: ='2DOPA'!AQ45 -> 
C46: 0 | D46: 0 | E46: 6 | F46: =IF('1ERPA'!F46="","",'1ERPA'!F46) ->  | AN46: =IF('3ERPM'!W49="","",IF('3ERPM'!W49=0,"",('3ERPM'!W49)*100)) ->  | AR46: ='1ERPA'!AM46 ->  | AS46: ='1ERPA'!AO46 ->  | AT46: ='1ERPA'!AQ46 ->  | AU46: ='2DOPA'!AM46 ->  | AV46: ='2DOPA'!AO46 ->  | AW46: ='2DOPA'!AQ46 -> 
C47: 0 | D47: 0 | E47: 6 | F47: =IF('1ERPA'!F47="","",'1ERPA'!F47) ->  | AN47: =IF('3ERPM'!W50="","",IF('3ERPM'!W50=0,"",('3ERPM'!W50)*100)) ->  | AR47: ='1ERPA'!AM47 ->  | AS47: ='1ERPA'!AO47 ->  | AT47: ='1ERPA'!AQ47 ->  | AU47: ='2DOPA'!AM47 ->  | AV47: ='2DOPA'!AO47 ->  | AW47: ='2DOPA'!AQ47 -> 
C48: 0 | D48: 0 | E48: 6 | F48: =IF('1ERPA'!F48="","",'1ERPA'!F48) ->  | AN48: =IF('3ERPM'!W51="","",IF('3ERPM'!W51=0,"",('3ERPM'!W51)*100)) ->  | AR48: ='1ERPA'!AM48 ->  | AS48: ='1ERPA'!AO48 ->  | AT48: ='1ERPA'!AQ48 ->  | AU48: ='2DOPA'!AM48 ->  | AV48: ='2DOPA'!AO48 ->  | AW48: ='2DOPA'!AQ48 -> 
C49: 0 | D49: 0 | E49: 6 | F49: =IF('1ERPA'!F49="","",'1ERPA'!F49) ->  | AN49: =IF('3ERPM'!W52="","",IF('3ERPM'!W52=0,"",('3ERPM'!W52)*100)) ->  | AR49: ='1ERPA'!AM49 ->  | AS49: ='1ERPA'!AO49 ->  | AT49: ='1ERPA'!AQ49 ->  | AU49: ='2DOPA'!AM49 ->  | AV49: ='2DOPA'!AO49 ->  | AW49: ='2DOPA'!AQ49 -> 
C50: 0 | D50: 0 | E50: 6 | F50: =IF('1ERPA'!F50="","",'1ERPA'!F50) ->  | AN50: =IF('3ERPM'!W53="","",IF('3ERPM'!W53=0,"",('3ERPM'!W53)*100)) ->  | AR50: ='1ERPA'!AM50 ->  | AS50: ='1ERPA'!AO50 ->  | AT50: ='1ERPA'!AQ50 ->  | AU50: ='2DOPA'!AM50 ->  | AV50: ='2DOPA'!AO50 ->  | AW50: ='2DOPA'!AQ50 -> 
C51: 0 | D51: 0 | E51: 6 | F51: =IF('1ERPA'!F51="","",'1ERPA'!F51) ->  | AN51: =IF('3ERPM'!W54="","",IF('3ERPM'!W54=0,"",('3ERPM'!W54)*100)) ->  | AR51: ='1ERPA'!AM51 ->  | AS51: ='1ERPA'!AO51 ->  | AT51: ='1ERPA'!AQ51 ->  | AU51: ='2DOPA'!AM51 ->  | AV51: ='2DOPA'!AO51 ->  | AW51: ='2DOPA'!AQ51 -> 
C52: 0 | D52: 0 | E52: 6 | F52: =IF('1ERPA'!F52="","",'1ERPA'!F52) ->  | AN52: =IF('3ERPM'!W55="","",IF('3ERPM'!W55=0,"",('3ERPM'!W55)*100)) ->  | AR52: ='1ERPA'!AM52 ->  | AS52: ='1ERPA'!AO52 ->  | AT52: ='1ERPA'!AQ52 ->  | AU52: ='2DOPA'!AM52 ->  | AV52: ='2DOPA'!AO52 ->  | AW52: ='2DOPA'!AQ52 -> 
C53: 0 | D53: 0 | E53: 6 | F53: =IF('1ERPA'!F53="","",'1ERPA'!F53) ->  | AN53: =IF('3ERPM'!W56="","",IF('3ERPM'!W56=0,"",('3ERPM'!W56)*100)) ->  | AR53: ='1ERPA'!AM53 ->  | AS53: ='1ERPA'!AO53 ->  | AT53: ='1ERPA'!AQ53 ->  | AU53: ='2DOPA'!AM53 ->  | AV53: ='2DOPA'!AO53 ->  | AW53: ='2DOPA'!AQ53 -> 
C54: 0 | D54: 0 | E54: 6 | F54: =IF('1ERPA'!F54="","",'1ERPA'!F54) ->  | AN54: =IF('3ERPM'!W57="","",IF('3ERPM'!W57=0,"",('3ERPM'!W57)*100)) ->  | AR54: ='1ERPA'!AM54 ->  | AS54: ='1ERPA'!AO54 ->  | AT54: ='1ERPA'!AQ54 ->  | AU54: ='2DOPA'!AM54 ->  | AV54: ='2DOPA'!AO54 ->  | AW54: ='2DOPA'!AQ54 -> 
C55: 0 | D55: 0 | E55: 6 | F55: =IF('1ERPA'!F55="","",'1ERPA'!F55) ->  | AN55: =IF('3ERPM'!W58="","",IF('3ERPM'!W58=0,"",('3ERPM'!W58)*100)) ->  | AR55: ='1ERPA'!AM55 ->  | AS55: ='1ERPA'!AO55 ->  | AT55: ='1ERPA'!AQ55 ->  | AU55: ='2DOPA'!AM55 ->  | AV55: ='2DOPA'!AO55 ->  | AW55: ='2DOPA'!AQ55 -> 
C56: 0 | D56: 0 | E56: 6 | F56: =IF('1ERPA'!F56="","",'1ERPA'!F56) ->  | AN56: =IF('3ERPM'!W59="","",IF('3ERPM'!W59=0,"",('3ERPM'!W59)*100)) ->  | AR56: ='1ERPA'!AM56 ->  | AS56: ='1ERPA'!AO56 ->  | AT56: ='1ERPA'!AQ56 ->  | AU56: ='2DOPA'!AM56 ->  | AV56: ='2DOPA'!AO56 ->  | AW56: ='2DOPA'!AQ56 -> 
C57: 0 | D57: 0 | E57: 6 | F57: =IF('1ERPA'!F57="","",'1ERPA'!F57) ->  | AN57: =IF('3ERPM'!W60="","",IF('3ERPM'!W60=0,"",('3ERPM'!W60)*100)) ->  | AR57: ='1ERPA'!AM57 ->  | AS57: ='1ERPA'!AO57 ->  | AT57: ='1ERPA'!AQ57 ->  | AU57: ='2DOPA'!AM57 ->  | AV57: ='2DOPA'!AO57 ->  | AW57: ='2DOPA'!AQ57 -> 
C58: 0 | D58: 0 | E58: 6 | F58: =IF('1ERPA'!F58="","",'1ERPA'!F58) ->  | AN58: =IF('3ERPM'!W61="","",IF('3ERPM'!W61=0,"",('3ERPM'!W61)*100)) ->  | AR58: ='1ERPA'!AM58 ->  | AS58: ='1ERPA'!AO58 ->  | AT58: ='1ERPA'!AQ58 ->  | AU58: ='2DOPA'!AM58 ->  | AV58: ='2DOPA'!AO58 ->  | AW58: ='2DOPA'!AQ58 -> 
C59: 0 | D59: 0 | E59: 6 | F59: =IF('1ERPA'!F59="","",'1ERPA'!F59) ->  | AN59: =IF('3ERPM'!W62="","",IF('3ERPM'!W62=0,"",('3ERPM'!W62)*100)) ->  | AR59: ='1ERPA'!AM59 ->  | AS59: ='1ERPA'!AO59 ->  | AT59: ='1ERPA'!AQ59 ->  | AU59: ='2DOPA'!AM59 ->  | AV59: ='2DOPA'!AO59 ->  | AW59: ='2DOPA'!AQ59 -> 
C60: 0 | D60: 0 | E60: 6 | F60: =IF('1ERPA'!F60="","",'1ERPA'!F60) ->  | AN60: =IF('3ERPM'!W63="","",IF('3ERPM'!W63=0,"",('3ERPM'!W63)*100)) ->  | AR60: ='1ERPA'!AM60 ->  | AS60: ='1ERPA'!AO60 ->  | AT60: ='1ERPA'!AQ60 ->  | AU60: ='2DOPA'!AM60 ->  | AV60: ='2DOPA'!AO60 ->  | AW60: ='2DOPA'!AQ60 -> 
C61: 0 | D61: 0 | E61: 6 | F61: =IF('1ERPA'!F61="","",'1ERPA'!F61) ->  | AN61: =IF('3ERPM'!W64="","",IF('3ERPM'!W64=0,"",('3ERPM'!W64)*100)) ->  | AR61: ='1ERPA'!AM61 ->  | AS61: ='1ERPA'!AO61 ->  | AT61: ='1ERPA'!AQ61 ->  | AU61: ='2DOPA'!AM61 ->  | AV61: ='2DOPA'!AO61 ->  | AW61: ='2DOPA'!AQ61 -> 
C62: 0 | D62: 0 | E62: 6 | F62: =IF('1ERPA'!F62="","",'1ERPA'!F62) ->  | AN62: =IF('3ERPM'!W65="","",IF('3ERPM'!W65=0,"",('3ERPM'!W65)*100)) ->  | AR62: ='1ERPA'!AM62 ->  | AS62: ='1ERPA'!AO62 ->  | AT62: ='1ERPA'!AQ62 ->  | AU62: ='2DOPA'!AM62 ->  | AV62: ='2DOPA'!AO62 ->  | AW62: ='2DOPA'!AQ62 -> 
C63: 0 | D63: 0 | E63: 6 | F63: =IF('1ERPA'!F63="","",'1ERPA'!F63) ->  | AN63: =IF('3ERPM'!W66="","",IF('3ERPM'!W66=0,"",('3ERPM'!W66)*100)) ->  | AR63: ='1ERPA'!AM63 ->  | AS63: ='1ERPA'!AO63 ->  | AT63: ='1ERPA'!AQ63 ->  | AU63: ='2DOPA'!AM63 ->  | AV63: ='2DOPA'!AO63 ->  | AW63: ='2DOPA'!AQ63 -> 
C64: 0 | D64: 0 | E64: 6 | F64: =IF('1ERPA'!F64="","",'1ERPA'!F64) ->  | AN64: =IF('3ERPM'!W67="","",IF('3ERPM'!W67=0,"",('3ERPM'!W67)*100)) ->  | AR64: ='1ERPA'!AM64 ->  | AS64: ='1ERPA'!AO64 ->  | AT64: ='1ERPA'!AQ64 ->  | AU64: ='2DOPA'!AM64 ->  | AV64: ='2DOPA'!AO64 ->  | AW64: ='2DOPA'!AQ64 -> 
C65: 0 | D65: 0 | E65: 6 | F65: =IF('1ERPA'!F65="","",'1ERPA'!F65) ->  | AN65: =IF('3ERPM'!W68="","",IF('3ERPM'!W68=0,"",('3ERPM'!W68)*100)) ->  | AR65: ='1ERPA'!AM65 ->  | AS65: ='1ERPA'!AO65 ->  | AT65: ='1ERPA'!AQ65 ->  | AU65: ='2DOPA'!AM65 ->  | AV65: ='2DOPA'!AO65 ->  | AW65: ='2DOPA'!AQ65 -> 
C66: 0 | D66: 0 | E66: 6 | F66: =IF('1ERPA'!F66="","",'1ERPA'!F66) ->  | AN66: =IF('3ERPM'!W69="","",IF('3ERPM'!W69=0,"",('3ERPM'!W69)*100)) ->  | AR66: ='1ERPA'!AM66 ->  | AS66: ='1ERPA'!AO66 ->  | AT66: ='1ERPA'!AQ66 ->  | AU66: ='2DOPA'!AM66 ->  | AV66: ='2DOPA'!AO66 ->  | AW66: ='2DOPA'!AQ66 -> 
C67: 0 | D67: 0 | E67: 6 | F67: =IF('1ERPA'!F67="","",'1ERPA'!F67) ->  | AM67: =IF(AK67="","",($AK$15-AL67)*$AM$15) ->  | AN67: =IF('3ERPM'!W70="","",IF('3ERPM'!W70=0,"",('3ERPM'!W70)*100)) ->  | AO67: =IF(AM67<80,"SD/F",IF(AN67="","",IF(AN67>=96,10,IF(AN67>=86,9,IF(AN67>=76,8,IF(AN67>=66,7,IF(AN67>=56,6,IF(AN67>=46,5,IF(AN67>=36,4,IF(AN67>=26,3,IF(AN67>=16,2,IF(AN67>=6,1,IF(AN67>=0,0,""))))))))))))) ->  | AP67: =IF(AM67<80,"SD/F",IF(AO67="","",IF(AO67>=9.6,"DIEZ",IF(AO67>=8.6,"NUEVE",IF(AO67>=7.6,"OCHO",IF(AO67>=6.6,"SIETE",IF(AO67>=5.6,"SEIS",IF(AO67>=4.6,"CINCO",IF(AO67>=3.6,"CUATRO",IF(AO67>=2.6,"TRES",IF(AO67>=1.6,"DOS",IF(AO67>=0.6,"UNO",IF(AO67>=0,"CERO",""))))))))))))) ->  | AQ67: =IF(AP67="","",IF(AP67="SD/F",0,($AQ$15/10)*AO67)) ->  | AR67: ='1ERPA'!AM67 -> 0 | AS67: ='1ERPA'!AO67 -> 0 | AT67: ='1ERPA'!AQ67 -> 0 | AU67: ='2DOPA'!AM67 -> 0 | AV67: ='2DOPA'!AO67 -> 0 | AW67: ='2DOPA'!AQ67 -> 0 | AX67: =IF(AM67="","",AVERAGE(AM67,AR67,AU67)) ->  | AY67: =IF(AO67="","",AVERAGE(AO67,AS67,AV67)) ->  | AZ67: =IF(AQ67="","",SUM(AQ67,AT67,AW67)) -> 

Sheet 3ERPRE
AD1: =IF('1ERPA'!M5="","",'1ERPA'!M5) -> Ingeniería en Sistemas Computacionales
AF3: =IF(MAX('1ERPA'!A17:A66)=0,"",MAX('1ERPA'!A17:A66)) -> 14
AA6: ORD. | AD6: ='1ERPA'!K7 -> QUINTO | AG6: =IF('1ERPA'!Q7="","",'1ERPA'!Q7) -> A | AI6: =IF('1ERPA'!AD5="","",'1ERPA'!AD5) -> SEGURIDAD INFORMÁTICA Y DE REDES
C10: PROMEDIO MENSUAL ASISTENCIA | L10: SUSTITUCIÓN | Y10: PORCENTAJE DE APROBACIÓN | AH10: SUSTITUCÓN
D14: AR | E14: * | F14: CI | G14: - | H14: F | N14: =AF3 -> 14 | O14: * | P14: ='3ERPA'!AK15 -> 5 | Q14: - | R14: ='3ERPA'!AL15 -> 0 | S14: = | T14: =IF(N15=0,0,((N14*P14)-R14)/N15) -> 14 | AA14: AA | AB14: * | AC14: 100 | AI14: =COUNTIF('3ERPA'!AO16:AO66,">=6") -> 5 | AJ14: * | AK14: 100 | AL14: = | AM14: =IF(AI15="",0,(AI14*AK14)/AI15) -> 35.71428571
D15: CI | N15: ='3ERPA'!AK15 -> 5 | AA15: AR | AI15: =AF3 -> 14
C18: PROMEDIO DE EFICIENCIA | L18: SUSTITUCIÓN | Y18: PORCENTAJE DE AVANCE PROGRAMÁTICO | AH18: SUSTITUCÓN
E22: ∑Cal | P22: =SUM('3ERPA'!AN17:AN67)/10 -> 78.04 | Q22: = | R22: =IF(P23="",0,P22/P23) -> 5.574285714 | AA22: TI | AB22: * | AC22: 100 | AI22: 2 | AJ22: * | AK22: =AC22 -> 100 | AL22: = | AM22: =IF(AI23="",0,(AI22*AK22)/AI23) -> 100
E23: AR | P23: =AF3 -> 14 | AA23: TP | AI23: 2
C26: SIMBOLOGÍA | K26: CI: | L26: Número de clases impartidas
C27: AR: | D27: Cantidad de alumnos regulares | K27: AA: | L27: Cantidad de alumnos aprobados | AE27: PUEBLA, | AG27: 17 | AH27: DE | AI27: JUNIO | AL27: DE | AM27: 2015
C28: F: | D28: Faltas de alumnos en el periodo | K28: TI: | L28: Temas impartidos | S28: =IF('1ERPA'!X10="","",'1ERPA'!X10) -> ALDO ORTEGA PACHECO
C29: Cal: | D29: Calificaciones | K29: TP: | L29: Temas programados | S29: NOMBRE Y FIRMA DEL CATEDRÁTICO | AE29: SD/F
B31: ALUMNOS REPROBADOS Y CAUSA DE LA REPROBACIÓN
B32: NOMBRE COMPLETO DEL ALUMNO | V32: CAUSA
A33: =A32+1 -> 1 | B33: =IFERROR(VLOOKUP(A33,'3ERPA'!$E$17:$F$67,2,FALSE),"") -> GUZMAN SANTOS ALAN | V33: =IF(B33="","",IF(IFERROR(VLOOKUP(B33,'3ERPA'!$F$17:$AO$67,36,FALSE),0)=$AE$29,"SIN DERECHO POR FALTAS",IF(VLOOKUP(B33,'3ERPM'!B20:Y69,22,FALSE)<0.3,IF(VLOOKUP(B33,'3ERPM'!B20:Y69,21,FALSE)<0.3,"NO ENTREGO, LOS INDICADORES DE DESEMPEÑO Y EVIDENCIAS DE APRENDIZAJE NECESARIAS PARA APROBAR","NO ENTREGO, LOS INDICADORES DE DESEMPEÑO NECESARIOS PARA APROBAR"),"NO ENTREGO, LAS EVIDENCIAS DE APRENDIZAJE NECESARIOS PARA APROBAR"))) -> NO ENTREGO, LOS INDICADORES DE DESEMPEÑO Y EVIDENCIAS DE APRENDIZAJE NECESARIAS PARA APROBAR
A34: 2 | B34: =IFERROR(VLOOKUP(A34,'3ERPA'!$E$17:$F$67,2,FALSE),"") -> ILLAN MONJARDIN JOSE LUIS | V34: =IF(B34="","",IF(IFERROR(VLOOKUP(B34,'3ERPA'!$F$17:$AO$67,36,FALSE),0)=$AE$29,"SIN DERECHO POR FALTAS",IF(VLOOKUP(B34,'3ERPM'!B21:Y70,22,FALSE)<0.3,IF(VLOOKUP(B34,'3ERPM'!B21:Y70,21,FALSE)<0.3,"NO ENTREGO, LOS INDICADORES DE DESEMPEÑO Y EVIDENCIAS DE APRENDIZAJE NECESARIAS PARA APROBAR","NO ENTREGO, LOS INDICADORES DE DESEMPEÑO NECESARIOS PARA APROBAR"),"NO ENTREGO, LAS EVIDENCIAS DE APRENDIZAJE NECESARIOS PARA APROBAR"))) -> NO ENTREGO, LOS INDICADORES DE DESEMPEÑO Y EVIDENCIAS DE APRENDIZAJE NECESARIAS PARA APROBAR
A35: 3 | B35: =IFERROR(VLOOKUP(A35,'3ERPA'!$E$17:$F$67,2,FALSE),"") -> LA MADRID GONZALEZ FERNANDA ISABEL | V35: =IF(B35="","",IF(IFERROR(VLOOKUP(B35,'3ERPA'!$F$17:$AO$67,36,FALSE),0)=$AE$29,"SIN DERECHO POR FALTAS",IF(VLOOKUP(B35,'3ERPM'!B22:Y71,22,FALSE)<0.3,IF(VLOOKUP(B35,'3ERPM'!B22:Y71,21,FALSE)<0.3,"NO ENTREGO, LOS INDICADORES DE DESEMPEÑO Y EVIDENCIAS DE APRENDIZAJE NECESARIAS PARA APROBAR","NO ENTREGO, LOS INDICADORES DE DESEMPEÑO NECESARIOS PARA APROBAR"),"NO ENTREGO, LAS EVIDENCIAS DE APRENDIZAJE NECESARIOS PARA APROBAR"))) -> NO ENTREGO, LOS INDICADORES DE DESEMPEÑO Y EVIDENCIAS DE APRENDIZAJE NECESARIAS PARA APROBAR
A36: 4 | B36: =IFERROR(VLOOKUP(A36,'3ERPA'!$E$17:$F$67,2,FALSE),"") -> LOPEZ CASTRO GLORIA KARINA | V36: =IF(B36="","",IF(IFERROR(VLOOKUP(B36,'3ERPA'!$F$17:$AO$67,36,FALSE),0)=$AE$29,"SIN DERECHO POR FALTAS",IF(VLOOKUP(B36,'3ERPM'!B24:Y72,22,FALSE)<0.3,IF(VLOOKUP(B36,'3ERPM'!B24:Y72,21,FALSE)<0.3,"NO ENTREGO, LOS INDICADORES DE DESEMPEÑO Y EVIDENCIAS DE APRENDIZAJE NECESARIAS PARA APROBAR","NO ENTREGO, LOS INDICADORES DE DESEMPEÑO NECESARIOS PARA APROBAR"),"NO ENTREGO, LAS EVIDENCIAS DE APRENDIZAJE NECESARIOS PARA APROBAR"))) -> 
A37: 5 | B37: =IFERROR(VLOOKUP(A37,'3ERPA'!$E$17:$F$67,2,FALSE),"") -> Y | V37: =IF(B37="","",IF(IFERROR(VLOOKUP(B37,'3ERPA'!$F$17:$AO$67,36,FALSE),0)=$AE$29,"SIN DERECHO POR FALTAS",IF(VLOOKUP(B37,'3ERPM'!B25:Y73,22,FALSE)<0.3,IF(VLOOKUP(B37,'3ERPM'!B25:Y73,21,FALSE)<0.3,"NO ENTREGO, LOS INDICADORES DE DESEMPEÑO Y EVIDENCIAS DE APRENDIZAJE NECESARIAS PARA APROBAR","NO ENTREGO, LOS INDICADORES DE DESEMPEÑO NECESARIOS PARA APROBAR"),"NO ENTREGO, LAS EVIDENCIAS DE APRENDIZAJE NECESARIOS PARA APROBAR"))) -> NO ENTREGO, LOS INDICADORES DE DESEMPEÑO Y EVIDENCIAS DE APRENDIZAJE NECESARIAS PARA APROBAR
A38: 6 | B38: =IF('3ERPA'!E16>6,"Y "&'3ERPA'!E16-5&" MÁS REPROBADOS",IFERROR(VLOOKUP(A38,'3ERPA'!$E$17:$F$67,2,FALSE),"")) -> Y 3 MÁS REPROBADOS | V38: =IF(IFERROR(VLOOKUP(A38,'3ERPA'!$E$17:$F$67,2,FALSE),"")=B38,IF(B38="","",IF(IFERROR(VLOOKUP(B38,'3ERPA'!$F$17:$AO$67,36,FALSE),0)=$AE$29,"SIN DERECHO POR FALTAS",IF(VLOOKUP(B38,'3ERPM'!B26:Y74,22,FALSE)<0.3,IF(VLOOKUP(B38,'3ERPM'!B26:Y74,21,FALSE)<0.3,"NO ENTREGO, LOS INDICADORES DE DESEMPEÑO Y EVIDENCIAS DE APRENDIZAJE NECESARIAS PARA APROBAR","NO ENTREGO, LOS INDICADORES DE DESEMPEÑO NECESARIOS PARA APROBAR"),"NO ENTREGO, LAS EVIDENCIAS DE APRENDIZAJE NECESARIOS PARA APROBAR"))),"SIN DERECHO POR FALTAS Y/O POR NO ENTREGAR LAS EVIDENCIAS NECESARIAS") -> SIN DERECHO POR FALTAS Y/O POR NO ENTREGAR LAS EVIDENCIAS NECESARIAS
AC39: =IF('1ERPA'!$C$16<>0,"CONTACTAR A LOS ALUMNOS PARA SABER QUE SUCEDE",IF('1ERPA'!$D$16<>0,"ASESORIAS PARA QUE MEJORE SU CALIFICACIÓN","")) -> 
B40: PROPUESTA DE SOLUCIÓN PARA REDUCIR EL PORCENTAJE DE REPROBACIÓN
B41: =IF(AND('3ERPA'!C16>0,'3ERPA'!D16=0),"CONTACTAR A LOS ALUMNOS PARA SABER QUE SUCEDE CON SUS ASISTENCIAS",IF(AND('3ERPA'!C16=0,'3ERPA'!D16>0),"ASESORIAS PARA QUE MEJOREN SUS CALIFICACIONES",IF(AND('3ERPA'!C16>0,'3ERPA'!D16>0),"ASESORIAS PARA QUE MEJOREN SUS CALIFICACIONES Y CONTACTAR A LOS ALUMNOS PARA SABER QUE SUCEDE CON SUS ASISTENCIAS",""))) -> ASESORIAS PARA QUE MEJOREN SUS CALIFICACIONES
B46: TEMAS PENDIENTES DEL PERIODO QUE SE REPORTAN
B47: TEMA(S) | V47: MOTIVO(S)

Sheet 3ERPM
E1: MATRIZ DE EVALUACIÓN
U4: CICLO ESCOLAR | W4: =IF('1ERPA'!W2="","",'1ERPA'!W2) -> 2018-2019
V5: =IF('3ERPA'!A3="","",'3ERPA'!A3) -> ORDINARIO
B7: LICENCIATURA EN: | C7: =IF('1ERPA'!M5="","",'1ERPA'!M5) -> Ingeniería en Sistemas Computacionales
B8: ASIGNATURA: | C8: =IF('1ERPA'!AD5="","",'1ERPA'!AD5) -> SEGURIDAD INFORMÁTICA Y DE REDES
B9: ='1ERPA'!J7 -> CUATRIMESTRE: | C9: =IF('1ERPA'!K7="","",'1ERPA'!K7) -> QUINTO
B10: GRUPO: | C10: =IF('1ERPA'!Q7="","",'1ERPA'!Q7) -> A
B11: PERIODO: | C11: =IF('1ERPA'!V7="","",'1ERPA'!V7) -> A | P11: =IF('1ERPA'!X10="","",'1ERPA'!X10) -> ALDO ORTEGA PACHECO
B12: COMPETENCIA: | C12: Instalar, configurar y administrar un servidor web mail poniéndolo a prueba como servicio de correo electrónico dentro de la universidad. | P12: NOMBRE Y FIRMA DEL CATEDRÁTICO
A14: No. | B14: Alumnos | C14: Indicadores de desempeño | I14: =IF(H15>S14,"POR ENCIMA DEL PORCENTAJE",IF(H15<S14,"POR DEBAJO DEL PORCENTAJE"," Evaluación de evidencias de aprendizaje")) -> POR DEBAJO DEL PORCENTAJE | S14: 0.5 | U14: Fines Formativos | W14: SUMA TOTAL
C15: =SUM(C19:H19) -> 0.03 | D15: =IF(C15>G15,"POR ENCIMA DEL PORCENTAJE",IF(C15<G15,"POR DEBAJO DEL PORCENTAJE","(Niveles de dominio)")) -> POR DEBAJO DEL PORCENTAJE | G15: 0.5 | H15: =SUM(J19,L19,N19,P19,R19,T19) -> 0.28
C16: ID1 Sin nivel Ni lo intenta, no participa, no cumple, no es competente Pre-formal Define Mantenimiento preventivo y correctivo de una red Receptivo Identifica los Elementos Mantenimiento preventivo y correctivo de una red Resolutivo Analiza el tipo de Mantenimiento preventivo y correctivo de una red Autónomo Valora cual Mantenimiento aplicar de una red Estratégico Explica y aplica el Mantenimiento preventivo y correctivo de una red | D16: d | I16: d | K16: EA2. Intercambio de opiniones acerca del Mantenimiento preventivo y correctivo de una red. | U16: Autoevaluación | V16: Coevaluación
I18: C | J18: P | K18: C | L18: P | M18: C | N18: P | O18: C | P18: P | Q18: C | R18: P | S18: C | T18: P
C19: 0.03 | I19: 2 | J19: 0.03 | K19: 1 | L19: 0.25
A20: =IF(B20="","",1) -> 1 | B20: =IF('1ERPA'!F17="","",'1ERPA'!F17) -> GUZMAN SANTOS ALAN | C20: Resolutivo | I20: 1 | J20: =IF(I20="","",($J$19/$I$19)*I20) -> 0.015 | K20: 1 | L20: =IF(K20="","",($L$19/$K$19)*K20) -> 0.25 | N20: =IF(M20="","",($N$19/$M$19)*M20) ->  | P20: =IF(O20="","",($P$19/$O$19)*O20) ->  | R20: =IF(Q20="","",($R$19/$Q$19)*Q20) ->  | T20: =IF(S20="","",($T$19/$S$19)*S20) ->  | W20: =IF(B20="","",(IF(B20="",0,IF(C20="Sin Nivel",($C$19)*0,IF(C20="Pre-Formal",($C$19)*60%,IF(C20="Receptivo",($C$19)*70%,IF(C20="Resolutivo",($C$19)*80%,IF(C20="Autónomo",($C$19)*90%,IF(C20="Estratégico",($C$19)*100%,0)))))))+IF(D20="",0,IF(D20="Sin Nivel",($D$19)*0,IF(D20="Pre-Formal",($D$19)*60%,IF(D20="Receptivo",($D$19)*70%,IF(D20="Resolutivo",($D$19)*80%,IF(D20="Autónomo",($D$19)*90%,IF(D20="Estratégico",($D$19)*100%,0)))))))+IF(E20="",0,IF(E20="Sin Nivel",($E$19)*0,IF(E20="Pre-Formal",($E$19)*60%,IF(E20="Receptivo",($E$19)*70%,IF(E20="Resolutivo",($E$19)*80%,IF(E20="Autónomo",($E$19)*90%,IF(E20="Estratégico",($E$19)*100%,0)))))))+IF(F20="",0,IF(F20="Sin Nivel",($F$19)*0,IF(F20="Pre-Formal",($F$19)*60%,IF(F20="Receptivo",($F$19)*70%,IF(F20="Resolutivo",($F$19)*80%,IF(F20="Autónomo",($F$19)*90%,IF(F20="Estratégico",($F$19)*100%,0)))))))+IF(G20="",0,IF(G20="Sin Nivel",($G$19)*0,IF(G20="Pre-Formal",($G$19)*60%,IF(G20="Receptivo",($G$19)*70%,IF(G20="Resolutivo",($G$19)*80%,IF(G20="Autónomo",($G$19)*90%,IF(G20="Estratégico",($G$19)*100%,0)))))))+IF(H20="",0,IF(H20="Sin Nivel",($H$19)*0,IF(H20="Pre-Formal",($H$19)*60%,IF(H20="Receptivo",($H$19)*70%,IF(H20="Resolutivo",($H$19)*80%,IF(H20="Autónomo",($H$19)*90%,IF(H20="Estratégico",($H$19)*100%,0))))))))+SUM(J20,L20,N20,P20,R20,T20)) -> 0.289 | X20: =IF(C20="","",(IF(C20="",0,IF(C20="Sin Nivel",($C$19/5)*0,IF(C20="Pre-Formal",($C$19/5)*1,IF(C20="Receptivo",($C$19/5)*2,IF(C20="Resolutivo",($C$19/5)*3,IF(C20="Autónomo",($C$19/5)*4,IF(C20="Estratégico",($C$19/5)*5,0)))))))+IF(D20="",0,IF(D20="Sin Nivel",($D$19/5)*0,IF(D20="Pre-Formal",($D$19/5)*1,IF(D20="Receptivo",($D$19/5)*2,IF(D20="Resolutivo",($D$19/5)*3,IF(D20="Autónomo",($D$19/5)*4,IF(D20="Estratégico",($D$19/5)*5,0)))))))+IF(E20="",0,IF(E20="Sin Nivel",($E$19/5)*0,IF(E20="Pre-Formal",($E$19/5)*1,IF(E20="Receptivo",($E$19/5)*2,IF(E20="Resolutivo",($E$19/5)*3,IF(E20="Autónomo",($E$19/5)*4,IF(E20="Estratégico",($E$19/5)*5,0)))))))+IF(F20="",0,IF(F20="Sin Nivel",($F$19/5)*0,IF(F20="Pre-Formal",($F$19/5)*1,IF(F20="Receptivo",($F$19/5)*2,IF(F20="Resolutivo",($F$19/5)*3,IF(F20="Autónomo",($F$19/5)*4,IF(F20="Estratégico",($F$19/5)*5,0)))))))+IF(G20="",0,IF(G20="Sin Nivel",($G$19/5)*0,IF(G20="Pre-Formal",($G$19/5)*1,IF(G20="Receptivo",($G$19/5)*2,IF(G20="Resolutivo",($G$19/5)*3,IF(G20="Autónomo",($G$19/5)*4,IF(G20="Estratégico",($G$19/5)*5,0)))))))+IF(H20="",0,IF(H20="Sin Nivel",($H$19/5)*0,IF(H20="Pre-Formal",($H$19/5)*1,IF(H20="Receptivo",($H$19/5)*2,IF(H20="Resolutivo",($H$19/5)*3,IF(H20="Autónomo",($H$19/5)*4,IF(H20="Estratégico",($H$19/5)*5,0))))))))) -> 0.018 | Y20: =SUM(J20,L20,N20,P20,R20,T20) -> 0.265
A21: =IF(B21="","",A20+1) -> 2 | B21: =IF('1ERPA'!F18="","",'1ERPA'!F18) -> ILLAN MONJARDIN JOSE LUIS | C21: Estratégico | I21: 1 | J21: =IF(I21="","",($J$19/$I$19)*I21) -> 0.015 | K21: 1 | L21: =IF(K21="","",($L$19/$K$19)*K21) -> 0.25 | N21: =IF(M21="","",($N$19/$M$19)*M21) ->  | P21: =IF(O21="","",($P$19/$O$19)*O21) ->  | R21: =IF(Q21="","",($R$19/$Q$19)*Q21) ->  | T21: =IF(S21="","",($T$19/$S$19)*S21) ->  | W21: =IF(B21="","",(IF(B21="",0,IF(C21="Sin Nivel",($C$19)*0,IF(C21="Pre-Formal",($C$19)*60%,IF(C21="Receptivo",($C$19)*70%,IF(C21="Resolutivo",($C$19)*80%,IF(C21="Autónomo",($C$19)*90%,IF(C21="Estratégico",($C$19)*100%,0)))))))+IF(D21="",0,IF(D21="Sin Nivel",($D$19)*0,IF(D21="Pre-Formal",($D$19)*60%,IF(D21="Receptivo",($D$19)*70%,IF(D21="Resolutivo",($D$19)*80%,IF(D21="Autónomo",($D$19)*90%,IF(D21="Estratégico",($D$19)*100%,0)))))))+IF(E21="",0,IF(E21="Sin Nivel",($E$19)*0,IF(E21="Pre-Formal",($E$19)*60%,IF(E21="Receptivo",($E$19)*70%,IF(E21="Resolutivo",($E$19)*80%,IF(E21="Autónomo",($E$19)*90%,IF(E21="Estratégico",($E$19)*100%,0)))))))+IF(F21="",0,IF(F21="Sin Nivel",($F$19)*0,IF(F21="Pre-Formal",($F$19)*60%,IF(F21="Receptivo",($F$19)*70%,IF(F21="Resolutivo",($F$19)*80%,IF(F21="Autónomo",($F$19)*90%,IF(F21="Estratégico",($F$19)*100%,0)))))))+IF(G21="",0,IF(G21="Sin Nivel",($G$19)*0,IF(G21="Pre-Formal",($G$19)*60%,IF(G21="Receptivo",($G$19)*70%,IF(G21="Resolutivo",($G$19)*80%,IF(G21="Autónomo",($G$19)*90%,IF(G21="Estratégico",($G$19)*100%,0)))))))+IF(H21="",0,IF(H21="Sin Nivel",($H$19)*0,IF(H21="Pre-Formal",($H$19)*60%,IF(H21="Receptivo",($H$19)*70%,IF(H21="Resolutivo",($H$19)*80%,IF(H21="Autónomo",($H$19)*90%,IF(H21="Estratégico",($H$19)*100%,0))))))))+SUM(J21,L21,N21,P21,R21,T21)) -> 0.295 | X21: =IF(C21="","",(IF(C21="",0,IF(C21="Sin Nivel",($C$19/5)*0,IF(C21="Pre-Formal",($C$19/5)*1,IF(C21="Receptivo",($C$19/5)*2,IF(C21="Resolutivo",($C$19/5)*3,IF(C21="Autónomo",($C$19/5)*4,IF(C21="Estratégico",($C$19/5)*5,0)))))))+IF(D21="",0,IF(D21="Sin Nivel",($D$19/5)*0,IF(D21="Pre-Formal",($D$19/5)*1,IF(D21="Receptivo",($D$19/5)*2,IF(D21="Resolutivo",($D$19/5)*3,IF(D21="Autónomo",($D$19/5)*4,IF(D21="Estratégico",($D$19/5)*5,0)))))))+IF(E21="",0,IF(E21="Sin Nivel",($E$19/5)*0,IF(E21="Pre-Formal",($E$19/5)*1,IF(E21="Receptivo",($E$19/5)*2,IF(E21="Resolutivo",($E$19/5)*3,IF(E21="Autónomo",($E$19/5)*4,IF(E21="Estratégico",($E$19/5)*5,0)))))))+IF(F21="",0,IF(F21="Sin Nivel",($F$19/5)*0,IF(F21="Pre-Formal",($F$19/5)*1,IF(F21="Receptivo",($F$19/5)*2,IF(F21="Resolutivo",($F$19/5)*3,IF(F21="Autónomo",($F$19/5)*4,IF(F21="Estratégico",($F$19/5)*5,0)))))))+IF(G21="",0,IF(G21="Sin Nivel",($G$19/5)*0,IF(G21="Pre-Formal",($G$19/5)*1,IF(G21="Receptivo",($G$19/5)*2,IF(G21="Resolutivo",($G$19/5)*3,IF(G21="Autónomo",($G$19/5)*4,IF(G21="Estratégico",($G$19/5)*5,0)))))))+IF(H21="",0,IF(H21="Sin Nivel",($H$19/5)*0,IF(H21="Pre-Formal",($H$19/5)*1,IF(H21="Receptivo",($H$19/5)*2,IF(H21="Resolutivo",($H$19/5)*3,IF(H21="Autónomo",($H$19/5)*4,IF(H21="Estratégico",($H$19/5)*5,0))))))))) -> 0.03 | Y21: =SUM(J21,L21,N21,P21,R21,T21) -> 0.265
A22: =IF(B22="","",A21+1) -> 3 | B22: =IF('1ERPA'!F19="","",'1ERPA'!F19) -> LA MADRID GONZALEZ FERNANDA ISABEL | C22: Estratégico | I22: 1 | J22: 0.015 | K22: 1 | L22: 0.25 | W22: 0.295 | X22: 0.03 | Y22: 0.265
A23: =IF(B23="","",A22+1) -> 4 | B23: =IF('1ERPA'!F20="","",'1ERPA'!F20) -> LOPEZ CASTRO GLORIA KARINA | C23: Estratégico | I23: 1 | J23: =IF(I23="","",($J$19/$I$19)*I23) -> 0.015 | K23: 1 | L23: =IF(K23="","",($L$19/$K$19)*K23) -> 0.25 | N23: =IF(M23="","",($N$19/$M$19)*M23) ->  | P23: =IF(O23="","",($P$19/$O$19)*O23) ->  | R23: =IF(Q23="","",($R$19/$Q$19)*Q23) ->  | T23: =IF(S23="","",($T$19/$S$19)*S23) ->  | W23: 0.295
A24: =IF(B24="","",A23+1) -> 5 | B24: =IF('1ERPA'!F21="","",'1ERPA'!F21) -> GUZMAN SANTOS ALAN | C24: Estratégico | I24: 1 | J24: =IF(I24="","",($J$19/$I$19)*I24) -> 0.015 | K24: 1 | L24: =IF(K24="","",($L$19/$K$19)*K24) -> 0.25 | N24: =IF(M24="","",($N$19/$M$19)*M24) ->  | P24: =IF(O24="","",($P$19/$O$19)*O24) ->  | R24: =IF(Q24="","",($R$19/$Q$19)*Q24) ->  | T24: =IF(S24="","",($T$19/$S$19)*S24) ->  | W24: 0.295 | X24: 0.03 | Y24: 0.265
A25: =IF(B25="","",A24+1) -> 6 | B25: =IF('1ERPA'!F22="","",'1ERPA'!F22) -> Y | C25: Estratégico | I25: 1 | J25: =IF(I25="","",($J$19/$I$19)*I25) -> 0.015 | K25: 1 | L25: =IF(K25="","",($L$19/$K$19)*K25) -> 0.25 | N25: =IF(M25="","",($N$19/$M$19)*M25) ->  | P25: =IF(O25="","",($P$19/$O$19)*O25) ->  | R25: =IF(Q25="","",($R$19/$Q$19)*Q25) ->  | T25: =IF(S25="","",($T$19/$S$19)*S25) ->  | W25: 0.295 | X25: 0.03 | Y25: 0.265
A26: 7 | B26: =IF('1ERPA'!F23="","",'1ERPA'!F23) -> U | C26: Estratégico | I26: 1 | J26: 0.015 | K26: 1 | L26: 0.25 | W26: 0.295 | X26: 0.03 | Y26: 0.265
A27: 8 | B27: =IF('1ERPA'!F24="","",'1ERPA'!F24) -> ILLAN MONJARDIN JOSE LUIS | C27: Estratégico | I27: 1 | J27: 0.015 | K27: 1 | L27: 0.25 | W27: 0.295 | X27: 0.03 | Y27: 0.265
A28: =IF(B28="","",A27+1) -> 9 | B28: =IF('1ERPA'!F25="","",'1ERPA'!F25) -> e | C28: Estratégico | I28: 2 | J28: =IF(I28="","",($J$19/$I$19)*I28) -> 0.03 | K28: 2 | L28: =IF(K28="","",($L$19/$K$19)*K28) -> 0.5 | N28: =IF(M28="","",($N$19/$M$19)*M28) ->  | P28: =IF(O28="","",($P$19/$O$19)*O28) ->  | R28: =IF(Q28="","",($R$19/$Q$19)*Q28) ->  | T28: =IF(S28="","",($T$19/$S$19)*S28) ->  | W28: =IF(B28="","",(IF(B28="",0,IF(C28="Sin Nivel",($C$19)*0,IF(C28="Pre-Formal",($C$19)*60%,IF(C28="Receptivo",($C$19)*70%,IF(C28="Resolutivo",($C$19)*80%,IF(C28="Autónomo",($C$19)*90%,IF(C28="Estratégico",($C$19)*100%,0)))))))+IF(D28="",0,IF(D28="Sin Nivel",($D$19)*0,IF(D28="Pre-Formal",($D$19)*60%,IF(D28="Receptivo",($D$19)*70%,IF(D28="Resolutivo",($D$19)*80%,IF(D28="Autónomo",($D$19)*90%,IF(D28="Estratégico",($D$19)*100%,0)))))))+IF(E28="",0,IF(E28="Sin Nivel",($E$19)*0,IF(E28="Pre-Formal",($E$19)*60%,IF(E28="Receptivo",($E$19)*70%,IF(E28="Resolutivo",($E$19)*80%,IF(E28="Autónomo",($E$19)*90%,IF(E28="Estratégico",($E$19)*100%,0)))))))+IF(F28="",0,IF(F28="Sin Nivel",($F$19)*0,IF(F28="Pre-Formal",($F$19)*60%,IF(F28="Receptivo",($F$19)*70%,IF(F28="Resolutivo",($F$19)*80%,IF(F28="Autónomo",($F$19)*90%,IF(F28="Estratégico",($F$19)*100%,0)))))))+IF(G28="",0,IF(G28="Sin Nivel",($G$19)*0,IF(G28="Pre-Formal",($G$19)*60%,IF(G28="Receptivo",($G$19)*70%,IF(G28="Resolutivo",($G$19)*80%,IF(G28="Autónomo",($G$19)*90%,IF(G28="Estratégico",($G$19)*100%,0)))))))+IF(H28="",0,IF(H28="Sin Nivel",($H$19)*0,IF(H28="Pre-Formal",($H$19)*60%,IF(H28="Receptivo",($H$19)*70%,IF(H28="Resolutivo",($H$19)*80%,IF(H28="Autónomo",($H$19)*90%,IF(H28="Estratégico",($H$19)*100%,0))))))))+SUM(J28,L28,N28,P28,R28,T28)) -> 0.56
A29: 10 | B29: =IF('1ERPA'!F26="","",'1ERPA'!F26) -> f | C29: Estratégico | I29: 3 | J29: 0.045 | K29: 3 | L29: 0.75 | W29: 0.825
A30: 11 | B30: =IF('1ERPA'!F27="","",'1ERPA'!F27) -> GUZMAN SANTOS ALAN | C30: Estratégico | I30: 4 | J30: 0.06 | K30: 4 | L30: 1 | W30: 1.09
A31: 12 | B31: =IF('1ERPA'!F28="","",'1ERPA'!F28) -> h | C31: Estratégico | I31: 5 | J31: 0.075 | K31: 5 | L31: 1.25 | W31: 1.355
A32: 13 | B32: =IF('1ERPA'!F29="","",'1ERPA'!F29) -> ILLAN MONJARDIN JOSE LUIS | C32: Estratégico | I32: 6 | J32: 0.09 | K32: 6 | L32: 1.5 | W32: 1.62
A33: 14 | B33: =IF('1ERPA'!F30="","",'1ERPA'!F30) -> T | W33: 0
B34: =IF('1ERPA'!F31="","",'1ERPA'!F31) -> 
B35: =IF('1ERPA'!F32="","",'1ERPA'!F32) -> 
B36: =IF('1ERPA'!F33="","",'1ERPA'!F33) -> 
B37: =IF('1ERPA'!F34="","",'1ERPA'!F34) -> 
B38: =IF('1ERPA'!F35="","",'1ERPA'!F35) -> 
B39: =IF('1ERPA'!F36="","",'1ERPA'!F36) -> 
B40: =IF('1ERPA'!F37="","",'1ERPA'!F37) -> 
B41: =IF('1ERPA'!F38="","",'1ERPA'!F38) -> 
B42: =IF('1ERPA'!F39="","",'1ERPA'!F39) -> 
B43: =IF('1ERPA'!F40="","",'1ERPA'!F40) -> 
B44: =IF('1ERPA'!F41="","",'1ERPA'!F41) -> 
B45: =IF('1ERPA'!F42="","",'1ERPA'!F42) -> 
B46: =IF('1ERPA'!F43="","",'1ERPA'!F43) -> 
B47: =IF('1ERPA'!F44="","",'1ERPA'!F44) ->  | Y47: 0
B48: =IF('1ERPA'!F45="","",'1ERPA'!F45) ->  | J48: =IF(I48="","",($J$19/$I$19)*I48) ->  | L48: =IF(K48="","",($L$19/$K$19)*K48) ->  | Y48: 0
B49: =IF('1ERPA'!F46="","",'1ERPA'!F46) ->  | Y49: 0
B50: =IF('1ERPA'!F47="","",'1ERPA'!F47) ->  | J50: =IF(I50="","",($J$19/$I$19)*I50) ->  | L50: =IF(K50="","",($L$19/$K$19)*K50) ->  | Y50: 0
B51: =IF('1ERPA'!F48="","",'1ERPA'!F48) ->  | Y51: 0
B52: =IF('1ERPA'!F49="","",'1ERPA'!F49) ->  | Y52: 0
B53: =IF('1ERPA'!F50="","",'1ERPA'!F50) ->  | Y53: 0
B54: =IF('1ERPA'!F51="","",'1ERPA'!F51) ->  | Y54: 0
B55: =IF('1ERPA'!F52="","",'1ERPA'!F52) ->  | Y55: 0
B56: =IF('1ERPA'!F53="","",'1ERPA'!F53) ->  | Y56: 0
A57: =IF(B57="","",A56+1) ->  | B57: =IF('1ERPA'!F54="","",'1ERPA'!F54) ->  | Y57: 0
B58: =IF('1ERPA'!F55="","",'1ERPA'!F55) ->  | Y58: 0
B59: =IF('1ERPA'!F56="","",'1ERPA'!F56) ->  | Y59: 0
B60: =IF('1ERPA'!F57="","",'1ERPA'!F57) ->  | Y60: 0
B61: =IF('1ERPA'!F58="","",'1ERPA'!F58) ->  | Y61: 0
B62: =IF('1ERPA'!F59="","",'1ERPA'!F59) ->  | Y62: 0
B63: =IF('1ERPA'!F60="","",'1ERPA'!F60) ->  | Y63: 0
B64: =IF('1ERPA'!F61="","",'1ERPA'!F61) ->  | Y64: 0
B65: =IF('1ERPA'!F62="","",'1ERPA'!F62) ->  | Y65: 0
B66: =IF('1ERPA'!F63="","",'1ERPA'!F63) ->  | Y66: 0
B67: =IF('1ERPA'!F64="","",'1ERPA'!F64) ->  | Y67: 0
B68: =IF('1ERPA'!F65="","",'1ERPA'!F65) ->  | Y68: 0
B69: =IF('1ERPA'!F66="","",'1ERPA'!F66) ->  | Y69: 0

Sheet CIERRE
A1: CONTROL DE ESTADISTICA SEMESTRAL
N2: CICLO ESCOLAR | Q2: =IF('1ERPA'!W2="","",'1ERPA'!W2) -> 2018-2019
A5: No. | B5: NOMBRE DEL ALUMNO | C5: PRIMER PARCIAL | F5: SEGUNDO PARCIAL | I5: ORDINARIO | L5: PROMEDIO % ASISTENCIA | M5: PROMEDIO DE CALIFICACIONES | N5: CALIF. CON LETRA | O5: SUMA DEL % PARCIALES | P5: CALIFICACIÓN | Q5: CALIF. CON LETRA | X5: PROMEDIO MENSUAL ASISTENCIA | Y5: PORCENTAJE DE APROBACIÓN | Z5: PROMEDIO DE EFICIENCIA | AA5: PORCENTAJE DE AVANCE PROGRAMÁTICO | AB5: % ASISTENCIA | AC5: CALIFICACIÓN | AD5: % PARCIAL | AF5: PROMEDIO % ASISTENCIA | AG5: PROMEDIO DE CALIFICACIONES | AH5: SUMA DEL % PARCIALES | AI5: CALIFICACIÓN
C7: % ASISTENCIA | D7: CALIFICACIÓN | E7: % PARCIAL | F7: % ASISTENCIA | G7: CALIFICACIÓN | H7: % PARCIAL | I7: % ASISTENCIA | J7: CALIFICACIÓN | K7: % PARCIAL
A13: =IF(B13="","",1) -> 1 | B13: =IF('1ERPA'!F17="","",'1ERPA'!F17) -> GUZMAN SANTOS ALAN | C13: ='1ERPA'!AM17 -> 100 | D13: ='1ERPA'!AO17 -> 9 | E13: ='1ERPA'!AQ17 -> 22.5 | F13: ='2DOPA'!AM17 -> 100 | G13: ='2DOPA'!AO17 -> 10 | H13: ='2DOPA'!AQ17 -> 25 | I13: ='3ERPA'!AM17 -> 100 | J13: ='3ERPA'!AO17 -> 3 | K13: ='3ERPA'!AQ17 -> 15 | L13: =IF(A13="","",AVERAGE(C13,F13,I13)) -> 100 | M13: =IF(A13="","",AVERAGE(D13,G13,J13)) -> 7.333333333 | N13: =IF(A13="","",IF(M13>=9.6,"DIEZ",IF(M13>=8.6,"NUEVE",IF(M13>=7.6,"OCHO",IF(M13>=6.6,"SIETE",IF(M13>=6,"SEIS",IF(M13<=5.9,"CINCO",""))))))) -> SIETE | O13: =IF(A13="","",SUM(E13,H13,K13)) -> 62.5 | P13: =IF(A13="","",O13/10) -> 6.25 | Q13: =IF(A13="","",IF(P13>=9.6,"DIEZ",IF(P13>=8.6,"NUEVE",IF(P13>=7.6,"OCHO",IF(P13>=6.6,"SIETE",IF(P13>=6,"SEIS",IF(P13<=5.9,"CINCO",""))))))) -> SEIS | S13: PRIMER PARCIAL | X13: ='1ERPRE'!T14 -> 13.9375 | Y13: ='1ERPRE'!AM14 -> 100 | Z13: ='1ERPRE'!R22 -> 9.280952381 | AA13: ='1ERPRE'!AM22 -> 83.33333333 | AB13: =IF(C13="",0,AVERAGE(C13:C62)) -> 96.42857143 | AC13: =IF(D13="",0,AVERAGE(D13:D62)) -> 8.928571429 | AD13: =IF(E13="",0,AVERAGE(E13:E62)) -> 22.32142857 | AF13: =IF(L13="",0,AVERAGE(L13:L62)) -> 98.57142857 | AG13: =IF(M13="",0,AVERAGE(M13:M62)) -> 8.083333333 | AH13: =IF(O13="",0,AVERAGE(O13:O62)) -> 71.07142857 | AI13: =IF(P13="",0,AVERAGE(P13:P62)) -> 7.107142857 | AJ13: PROMEDIO GENERAL
A14: =IF(B14="","",A13+1) -> 2 | B14: =IF('1ERPA'!F18="","",'1ERPA'!F18) -> ILLAN MONJARDIN JOSE LUIS | C14: ='1ERPA'!AM18 -> 100 | D14: ='1ERPA'!AO18 -> 9 | E14: ='1ERPA'!AQ18 -> 22.5 | F14: ='2DOPA'!AM18 -> 100 | G14: ='2DOPA'!AO18 -> 10 | H14: ='2DOPA'!AQ18 -> 25 | I14: ='3ERPA'!AM18 -> 100 | J14: ='3ERPA'!AO18 -> 3 | K14: ='3ERPA'!AQ18 -> 15 | L14: =IF(A14="","",AVERAGE(C14,F14,I14)) -> 100 | M14: =IF(A14="","",AVERAGE(D14,G14,J14)) -> 7.333333333 | N14: =IF(A14="","",IF(M14>=9.6,"DIEZ",IF(M14>=8.6,"NUEVE",IF(M14>=7.6,"OCHO",IF(M14>=6.6,"SIETE",IF(M14>=6,"SEIS",IF(M14<=5.9,"CINCO",""))))))) -> SIETE | O14: =IF(A14="","",SUM(E14,H14,K14)) -> 62.5 | P14: =IF(A14="","",O14/10) -> 6.25 | Q14: =IF(A14="","",IF(P14>=9.6,"DIEZ",IF(P14>=8.6,"NUEVE",IF(P14>=7.6,"OCHO",IF(P14>=6.6,"SIETE",IF(P14>=6,"SEIS",IF(P14<=5.9,"CINCO",""))))))) -> SEIS | S14: SEGUNDO PARCIAL | X14: ='2DOPRE'!T14 -> 13.9 | Y14: ='2DOPRE'!AM14 -> 100 | Z14: ='2DOPRE'!R22 -> 11.99603175 | AA14: ='2DOPRE'!AM22 -> 100 | AB14: =IF(F13="",0,AVERAGE(F13:F62)) -> 99.23076923 | AC14: =IF(G13="",0,AVERAGE(G13:G62)) -> 9.785714286 | AD14: =IF(H13="",0,AVERAGE(H13:H62)) -> 24.46428571
A15: =IF(B15="","",A14+1) -> 3 | B15: =IF('1ERPA'!F19="","",'1ERPA'!F19) -> LA MADRID GONZALEZ FERNANDA ISABEL | C15: ='1ERPA'!AM19 -> 100 | D15: ='1ERPA'!AO19 -> 8 | E15: ='1ERPA'!AQ19 -> 20 | F15: ='2DOPA'!AM19 -> 90 | G15: ='2DOPA'!AO19 -> 7 | H15: ='2DOPA'!AQ19 -> 17.5 | I15: ='3ERPA'!AM19 -> 100 | J15: ='3ERPA'!AO19 -> 3 | K15: ='3ERPA'!AQ19 -> 15 | L15: 96.66666667 | M15: 6 | N15: SEIS | O15: 52.5 | P15: 5.25 | Q15: CINCO | S15: TERCER PARCIAL | X15: ='3ERPRE'!T14 -> 14 | Y15: ='3ERPRE'!AM14 -> 35.71428571 | Z15: ='3ERPRE'!R22 -> 5.574285714 | AA15: ='3ERPRE'!AM22 -> 100 | AB15: =IF(I13="",0,AVERAGE(I13:I62)) -> 100 | AC15: =IF(J13="",0,AVERAGE(J13:J62)) -> 5.230769231 | AD15: =IF(K13="",0,AVERAGE(K13:K62)) -> 26.15384615
A16: =IF(B16="","",A15+1) -> 4 | B16: =IF('1ERPA'!F20="","",'1ERPA'!F20) -> LOPEZ CASTRO GLORIA KARINA | C16: ='1ERPA'!AM20 -> 100 | D16: ='1ERPA'!AO20 -> 9 | E16: ='1ERPA'!AQ20 -> 22.5 | F16: ='2DOPA'!AM20 -> 100 | G16: ='2DOPA'!AO20 -> 10 | H16: ='2DOPA'!AQ20 -> 25 | I16: ='3ERPA'!AM20 -> 100 | J16: ='3ERPA'!AO20 -> 3 | K16: ='3ERPA'!AQ20 -> 15 | L16: 100 | M16: 7.333333333 | N16: SIETE | O16: 62.5 | P16: 6.25 | Q16: SEIS
A17: =IF(B17="","",A16+1) -> 5 | B17: =IF('1ERPA'!F21="","",'1ERPA'!F21) -> GUZMAN SANTOS ALAN | C17: ='1ERPA'!AM21 -> 100 | D17: ='1ERPA'!AO21 -> 9 | E17: ='1ERPA'!AQ21 -> 22.5 | F17: ='2DOPA'!AM21 -> 100 | G17: ='2DOPA'!AO21 -> 10 | H17: ='2DOPA'!AQ21 -> 25 | I17: ='3ERPA'!AM21 -> 100 | J17: ='3ERPA'!AO21 -> 3 | K17: ='3ERPA'!AQ21 -> 15 | L17: 100 | M17: 7.333333333 | N17: SIETE | O17: 62.5 | P17: 6.25 | Q17: SEIS | S17: PROMEDIO | X17: =AVERAGE(X13:X15) -> 13.94583333 | Y17: 78.57142857 | Z17: 8.95042328 | AA17: 94.44444444 | AB17: 98.55311355 | AC17: 7.981684982 | AD17: 24.31318681
A18: 6 | B18: =IF('1ERPA'!F22="","",'1ERPA'!F22) -> Y | C18: ='1ERPA'!AM22 -> 100 | D18: ='1ERPA'!AO22 -> 9 | E18: ='1ERPA'!AQ22 -> 22.5 | F18: ='2DOPA'!AM22 -> 100 | G18: ='2DOPA'!AO22 -> 10 | H18: ='2DOPA'!AQ22 -> 25 | I18: ='3ERPA'!AM22 -> 100 | J18: ='3ERPA'!AO22 -> 3 | K18: ='3ERPA'!AQ22 -> 15 | L18: 100 | M18: 7.333333333 | N18: SIETE | O18: 62.5 | P18: 6.25 | Q18: SEIS
A19: 7 | B19: =IF('1ERPA'!F23="","",'1ERPA'!F23) -> U | C19: ='1ERPA'!AM23 -> 100 | D19: ='1ERPA'!AO23 -> 9 | E19: ='1ERPA'!AQ23 -> 22.5 | F19: ='2DOPA'!AM23 -> 100 | G19: ='2DOPA'!AO23 -> 10 | H19: ='2DOPA'!AQ23 -> 25 | I19: ='3ERPA'!AM23 -> 100 | J19: ='3ERPA'!AO23 -> 3 | K19: ='3ERPA'!AQ23 -> 15 | L19: 100 | M19: 7.333333333 | N19: SIETE | O19: 62.5 | P19: 6.25 | Q19: SEIS | S19: LICENCIATURA EN: | X19: =IF('1ERPA'!M5="","",'1ERPA'!M5) -> Ingeniería en Sistemas Computacionales
A20: 8 | B20: =IF('1ERPA'!F24="","",'1ERPA'!F24) -> ILLAN MONJARDIN JOSE LUIS | C20: ='1ERPA'!AM24 -> 93.75 | D20: ='1ERPA'!AO24 -> 9 | E20: ='1ERPA'!AQ24 -> 22.5 | F20: ='2DOPA'!AM24 -> 100 | G20: ='2DOPA'!AO24 -> 10 | H20: ='2DOPA'!AQ24 -> 25 | I20: ='3ERPA'!AM24 -> 100 | J20: ='3ERPA'!AO24 -> 3 | K20: ='3ERPA'!AQ24 -> 15 | L20: 97.91666667 | M20: 7.333333333 | N20: SIETE | O20: 62.5 | P20: 6.25 | Q20: SEIS
A21: =IF(B21="","",A20+1) -> 9 | B21: =IF('1ERPA'!F25="","",'1ERPA'!F25) -> e | C21: ='1ERPA'!AM25 -> 93.75 | D21: ='1ERPA'!AO25 -> 9 | E21: ='1ERPA'!AQ25 -> 22.5 | F21: ='2DOPA'!AM25 -> 100 | G21: ='2DOPA'!AO25 -> 10 | H21: ='2DOPA'!AQ25 -> 25 | I21: ='3ERPA'!AM25 -> 100 | J21: ='3ERPA'!AO25 -> 6 | K21: ='3ERPA'!AQ25 -> 30 | L21: =IF(A21="","",AVERAGE(C21,F21,I21)) -> 97.91666667 | M21: =IF(A21="","",AVERAGE(D21,G21,J21)) -> 8.333333333 | N21: =IF(A21="","",IF(M21>=9.6,"DIEZ",IF(M21>=8.6,"NUEVE",IF(M21>=7.6,"OCHO",IF(M21>=6.6,"SIETE",IF(M21>=6,"SEIS",IF(M21<=5.9,"CINCO",""))))))) -> OCHO | O21: =IF(A21="","",SUM(E21,H21,K21)) -> 77.5 | P21: =IF(A21="","",O21/10) -> 7.75 | Q21: =IF(A21="","",IF(P21>=9.6,"DIEZ",IF(P21>=8.6,"NUEVE",IF(P21>=7.6,"OCHO",IF(P21>=6.6,"SIETE",IF(P21>=6,"SEIS",IF(P21<=5.9,"CINCO",""))))))) -> OCHO | S21: ASIGNATURA: | X21: =IF('1ERPA'!AD5="","",'1ERPA'!AD5) -> SEGURIDAD INFORMÁTICA Y DE REDES
A22: 10 | B22: =IF('1ERPA'!F26="","",'1ERPA'!F26) -> f | C22: ='1ERPA'!AM26 -> 93.75 | D22: ='1ERPA'!AO26 -> 9 | E22: ='1ERPA'!AQ26 -> 22.5 | F22: ='2DOPA'!AM26 -> 100 | G22: ='2DOPA'!AO26 -> 10 | H22: ='2DOPA'!AQ26 -> 25 | I22: ='3ERPA'!AM26 -> 100 | J22: ='3ERPA'!AO26 -> 8 | K22: ='3ERPA'!AQ26 -> 40 | L22: 97.91666667 | M22: 9 | N22: NUEVE | O22: 87.5 | P22: 8.75 | Q22: NUEVE
A23: 11 | B23: =IF('1ERPA'!F27="","",'1ERPA'!F27) -> GUZMAN SANTOS ALAN | C23: ='1ERPA'!AM27 -> 93.75 | D23: ='1ERPA'!AO27 -> 9 | E23: ='1ERPA'!AQ27 -> 22.5 | F23: ='2DOPA'!AM27 -> 100 | G23: ='2DOPA'!AO27 -> 10 | H23: ='2DOPA'!AQ27 -> 25 | I23: ='3ERPA'!AM27 -> 100 | J23: ='3ERPA'!AO27 -> 10 | K23: ='3ERPA'!AQ27 -> 50 | L23: 97.91666667 | M23: 9.666666667 | N23: DIEZ | O23: 97.5 | P23: 9.75 | Q23: DIEZ | S23: ='1ERPA'!J7 -> CUATRIMESTRE: | X23: =IF('1ERPA'!K7="","",'1ERPA'!K7) -> QUINTO | AC23: GRUPO: | AE23: =IF('1ERPA'!Q7="","",'1ERPA'!Q7) -> A | AK23: PERIODO: | AN23: =IF('1ERPA'!V7="","",'1ERPA'!V7) -> A
A24: 12 | B24: =IF('1ERPA'!F28="","",'1ERPA'!F28) -> h | C24: ='1ERPA'!AM28 -> 93.75 | D24: ='1ERPA'!AO28 -> 9 | E24: ='1ERPA'!AQ28 -> 22.5 | F24: ='2DOPA'!AM28 -> 100 | G24: ='2DOPA'!AO28 -> 10 | H24: ='2DOPA'!AQ28 -> 25 | I24: ='3ERPA'!AM28 -> 100 | J24: ='3ERPA'!AO28 -> 10 | K24: ='3ERPA'!AQ28 -> 50 | L24: 97.91666667 | M24: 9.666666667 | N24: DIEZ | O24: 97.5 | P24: 9.75 | Q24: DIEZ
A25: 13 | B25: =IF('1ERPA'!F29="","",'1ERPA'!F29) -> ILLAN MONJARDIN JOSE LUIS | C25: ='1ERPA'!AM29 -> 81.25 | D25: ='1ERPA'!AO29 -> 9 | E25: ='1ERPA'!AQ29 -> 22.5 | F25: ='2DOPA'!AM29 -> 100 | G25: ='2DOPA'!AO29 -> 10 | H25: ='2DOPA'!AQ29 -> 25 | I25: ='3ERPA'!AM29 -> 100 | J25: ='3ERPA'!AO29 -> 10 | K25: ='3ERPA'!AQ29 -> 50 | L25: 93.75 | M25: 9.666666667 | N25: DIEZ | O25: 97.5 | P25: 9.75 | Q25: DIEZ
A26: 14 | B26: =IF('1ERPA'!F30="","",'1ERPA'!F30) -> T | C26: ='1ERPA'!AM30 -> 100 | D26: ='1ERPA'!AO30 -> 9 | E26: ='1ERPA'!AQ30 -> 22.5 | F26: ='2DOPA'!AM30 ->  | G26: ='2DOPA'!AO30 -> 10 | H26: ='2DOPA'!AQ30 -> 25 | I26: ='3ERPA'!AM30 ->  | J26: ='3ERPA'!AO30 ->  | K26: ='3ERPA'!AQ30 ->  | L26: 100 | M26: 9.5 | N26: NUEVE | O26: 47.5 | P26: 4.75 | Q26: CINCO
B27: =IF('1ERPA'!F31="","",'1ERPA'!F31) ->  | C27: ='1ERPA'!AM31 ->  | D27: ='1ERPA'!AO31 ->  | E27: ='1ERPA'!AQ31 ->  | F27: ='2DOPA'!AM31 ->  | G27: ='2DOPA'!AO31 ->  | H27: ='2DOPA'!AQ31 ->  | I27: ='3ERPA'!AM31 ->  | J27: ='3ERPA'!AO31 ->  | K27: ='3ERPA'!AQ31 -> 
B28: =IF('1ERPA'!F32="","",'1ERPA'!F32) ->  | C28: ='1ERPA'!AM32 ->  | D28: ='1ERPA'!AO32 ->  | E28: ='1ERPA'!AQ32 ->  | F28: ='2DOPA'!AM32 ->  | G28: ='2DOPA'!AO32 ->  | H28: ='2DOPA'!AQ32 ->  | I28: ='3ERPA'!AM32 ->  | J28: ='3ERPA'!AO32 ->  | K28: ='3ERPA'!AQ32 -> 
B29: =IF('1ERPA'!F33="","",'1ERPA'!F33) ->  | C29: ='1ERPA'!AM33 ->  | D29: ='1ERPA'!AO33 ->  | E29: ='1ERPA'!AQ33 ->  | F29: ='2DOPA'!AM33 ->  | G29: ='2DOPA'!AO33 ->  | H29: ='2DOPA'!AQ33 ->  | I29: ='3ERPA'!AM33 ->  | J29: ='3ERPA'!AO33 ->  | K29: ='3ERPA'!AQ33 -> 
B30: =IF('1ERPA'!F34="","",'1ERPA'!F34) ->  | C30: ='1ERPA'!AM34 ->  | D30: ='1ERPA'!AO34 ->  | E30: ='1ERPA'!AQ34 ->  | F30: ='2DOPA'!AM34 ->  | G30: ='2DOPA'!AO34 ->  | H30: ='2DOPA'!AQ34 ->  | I30: ='3ERPA'!AM34 ->  | J30: ='3ERPA'!AO34 ->  | K30: ='3ERPA'!AQ34 -> 
B31: =IF('1ERPA'!F35="","",'1ERPA'!F35) ->  | C31: ='1ERPA'!AM35 ->  | D31: ='1ERPA'!AO35 ->  | E31: ='1ERPA'!AQ35 ->  | F31: ='2DOPA'!AM35 ->  | G31: ='2DOPA'!AO35 ->  | H31: ='2DOPA'!AQ35 ->  | I31: ='3ERPA'!AM35 ->  | J31: ='3ERPA'!AO35 ->  | K31: ='3ERPA'!AQ35 -> 
B32: =IF('1ERPA'!F36="","",'1ERPA'!F36) ->  | C32: ='1ERPA'!AM36 ->  | D32: ='1ERPA'!AO36 ->  | E32: ='1ERPA'!AQ36 ->  | F32: ='2DOPA'!AM36 ->  | G32: ='2DOPA'!AO36 ->  | H32: ='2DOPA'!AQ36 ->  | I32: ='3ERPA'!AM36 ->  | J32: ='3ERPA'!AO36 ->  | K32: ='3ERPA'!AQ36 -> 
B33: =IF('1ERPA'!F37="","",'1ERPA'!F37) ->  | C33: ='1ERPA'!AM37 ->  | D33: ='1ERPA'!AO37 ->  | E33: ='1ERPA'!AQ37 ->  | F33: ='2DOPA'!AM37 ->  | G33: ='2DOPA'!AO37 ->  | H33: ='2DOPA'!AQ37 ->  | I33: ='3ERPA'!AM37 ->  | J33: ='3ERPA'!AO37 ->  | K33: ='3ERPA'!AQ37 -> 
B34: =IF('1ERPA'!F38="","",'1ERPA'!F38) ->  | C34: ='1ERPA'!AM38 ->  | D34: ='1ERPA'!AO38 ->  | E34: ='1ERPA'!AQ38 ->  | F34: ='2DOPA'!AM38 ->  | G34: ='2DOPA'!AO38 ->  | H34: ='2DOPA'!AQ38 ->  | I34: ='3ERPA'!AM38 ->  | J34: ='3ERPA'!AO38 ->  | K34: ='3ERPA'!AQ38 -> 
B35: =IF('1ERPA'!F39="","",'1ERPA'!F39) ->  | C35: ='1ERPA'!AM39 ->  | D35: ='1ERPA'!AO39 ->  | E35: ='1ERPA'!AQ39 ->  | F35: ='2DOPA'!AM39 ->  | G35: ='2DOPA'!AO39 ->  | H35: ='2DOPA'!AQ39 ->  | I35: ='3ERPA'!AM39 ->  | J35: ='3ERPA'!AO39 ->  | K35: ='3ERPA'!AQ39 -> 
B36: =IF('1ERPA'!F40="","",'1ERPA'!F40) ->  | C36: ='1ERPA'!AM40 ->  | D36: ='1ERPA'!AO40 ->  | E36: ='1ERPA'!AQ40 ->  | F36: ='2DOPA'!AM40 ->  | G36: ='2DOPA'!AO40 ->  | H36: ='2DOPA'!AQ40 ->  | I36: ='3ERPA'!AM40 ->  | J36: ='3ERPA'!AO40 ->  | K36: ='3ERPA'!AQ40 -> 
B37: =IF('1ERPA'!F41="","",'1ERPA'!F41) ->  | C37: ='1ERPA'!AM41 ->  | D37: ='1ERPA'!AO41 ->  | E37: ='1ERPA'!AQ41 ->  | F37: ='2DOPA'!AM41 ->  | G37: ='2DOPA'!AO41 ->  | H37: ='2DOPA'!AQ41 ->  | I37: ='3ERPA'!AM41 ->  | J37: ='3ERPA'!AO41 ->  | K37: ='3ERPA'!AQ41 -> 
B38: =IF('1ERPA'!F42="","",'1ERPA'!F42) ->  | C38: ='1ERPA'!AM42 ->  | D38: ='1ERPA'!AO42 ->  | E38: ='1ERPA'!AQ42 ->  | F38: ='2DOPA'!AM42 ->  | G38: ='2DOPA'!AO42 ->  | H38: ='2DOPA'!AQ42 ->  | I38: ='3ERPA'!AM42 ->  | J38: ='3ERPA'!AO42 ->  | K38: ='3ERPA'!AQ42 -> 
B39: =IF('1ERPA'!F43="","",'1ERPA'!F43) ->  | C39: ='1ERPA'!AM43 ->  | D39: ='1ERPA'!AO43 ->  | E39: ='1ERPA'!AQ43 ->  | F39: ='2DOPA'!AM43 ->  | G39: ='2DOPA'!AO43 ->  | H39: ='2DOPA'!AQ43 ->  | I39: ='3ERPA'!AM43 ->  | J39: ='3ERPA'!AO43 ->  | K39: ='3ERPA'!AQ43 -> 
B40: =IF('1ERPA'!F44="","",'1ERPA'!F44) ->  | C40: ='1ERPA'!AM44 ->  | D40: ='1ERPA'!AO44 ->  | E40: ='1ERPA'!AQ44 ->  | F40: ='2DOPA'!AM44 ->  | G40: ='2DOPA'!AO44 ->  | H40: ='2DOPA'!AQ44 ->  | I40: ='3ERPA'!AM44 ->  | J40: ='3ERPA'!AO44 ->  | K40: ='3ERPA'!AQ44 -> 
B41: =IF('1ERPA'!F45="","",'1ERPA'!F45) ->  | C41: ='1ERPA'!AM45 ->  | D41: ='1ERPA'!AO45 ->  | E41: ='1ERPA'!AQ45 ->  | F41: ='2DOPA'!AM45 ->  | G41: ='2DOPA'!AO45 ->  | H41: ='2DOPA'!AQ45 ->  | I41: ='3ERPA'!AM45 ->  | J41: ='3ERPA'!AO45 ->  | K41: ='3ERPA'!AQ45 -> 
B42: =IF('1ERPA'!F46="","",'1ERPA'!F46) ->  | C42: ='1ERPA'!AM46 ->  | D42: ='1ERPA'!AO46 ->  | E42: ='1ERPA'!AQ46 ->  | F42: ='2DOPA'!AM46 ->  | G42: ='2DOPA'!AO46 ->  | H42: ='2DOPA'!AQ46 ->  | I42: ='3ERPA'!AM46 ->  | J42: ='3ERPA'!AO46 ->  | K42: ='3ERPA'!AQ46 -> 
B43: =IF('1ERPA'!F47="","",'1ERPA'!F47) ->  | C43: ='1ERPA'!AM47 ->  | D43: ='1ERPA'!AO47 ->  | E43: ='1ERPA'!AQ47 ->  | F43: ='2DOPA'!AM47 ->  | G43: ='2DOPA'!AO47 ->  | H43: ='2DOPA'!AQ47 ->  | I43: ='3ERPA'!AM47 ->  | J43: ='3ERPA'!AO47 ->  | K43: ='3ERPA'!AQ47 -> 
B44: =IF('1ERPA'!F48="","",'1ERPA'!F48) ->  | C44: ='1ERPA'!AM48 ->  | D44: ='1ERPA'!AO48 ->  | E44: ='1ERPA'!AQ48 ->  | F44: ='2DOPA'!AM48 ->  | G44: ='2DOPA'!AO48 ->  | H44: ='2DOPA'!AQ48 ->  | I44: ='3ERPA'!AM48 ->  | J44: ='3ERPA'!AO48 ->  | K44: ='3ERPA'!AQ48 -> 
B45: =IF('1ERPA'!F49="","",'1ERPA'!F49) ->  | C45: ='1ERPA'!AM49 ->  | D45: ='1ERPA'!AO49 ->  | E45: ='1ERPA'!AQ49 ->  | F45: ='2DOPA'!AM49 ->  | G45: ='2DOPA'!AO49 ->  | H45: ='2DOPA'!AQ49 ->  | I45: ='3ERPA'!AM49 ->  | J45: ='3ERPA'!AO49 ->  | K45: ='3ERPA'!AQ49 -> 
B46: =IF('1ERPA'!F50="","",'1ERPA'!F50) ->  | C46: ='1ERPA'!AM50 ->  | D46: ='1ERPA'!AO50 ->  | E46: ='1ERPA'!AQ50 ->  | F46: ='2DOPA'!AM50 ->  | G46: ='2DOPA'!AO50 ->  | H46: ='2DOPA'!AQ50 ->  | I46: ='3ERPA'!AM50 ->  | J46: ='3ERPA'!AO50 ->  | K46: ='3ERPA'!AQ50 -> 
B47: =IF('1ERPA'!F51="","",'1ERPA'!F51) ->  | C47: ='1ERPA'!AM51 ->  | D47: ='1ERPA'!AO51 ->  | E47: ='1ERPA'!AQ51 ->  | F47: ='2DOPA'!AM51 ->  | G47: ='2DOPA'!AO51 ->  | H47: ='2DOPA'!AQ51 ->  | I47: ='3ERPA'!AM51 ->  | J47: ='3ERPA'!AO51 ->  | K47: ='3ERPA'!AQ51 -> 
B48: =IF('1ERPA'!F52="","",'1ERPA'!F52) ->  | C48: ='1ERPA'!AM52 ->  | D48: ='1ERPA'!AO52 ->  | E48: ='1ERPA'!AQ52 ->  | F48: ='2DOPA'!AM52 ->  | G48: ='2DOPA'!AO52 ->  | H48: ='2DOPA'!AQ52 ->  | I48: ='3ERPA'!AM52 ->  | J48: ='3ERPA'!AO52 ->  | K48: ='3ERPA'!AQ52 -> 
B49: =IF('1ERPA'!F53="","",'1ERPA'!F53) ->  | C49: ='1ERPA'!AM53 ->  | D49: ='1ERPA'!AO53 ->  | E49: ='1ERPA'!AQ53 ->  | F49: ='2DOPA'!AM53 ->  | G49: ='2DOPA'!AO53 ->  | H49: ='2DOPA'!AQ53 ->  | I49: ='3ERPA'!AM53 ->  | J49: ='3ERPA'!AO53 ->  | K49: ='3ERPA'!AQ53 -> 
B50: =IF('1ERPA'!F54="","",'1ERPA'!F54) ->  | C50: ='1ERPA'!AM54 ->  | D50: ='1ERPA'!AO54 ->  | E50: ='1ERPA'!AQ54 ->  | F50: ='2DOPA'!AM54 ->  | G50: ='2DOPA'!AO54 ->  | H50: ='2DOPA'!AQ54 ->  | I50: ='3ERPA'!AM54 ->  | J50: ='3ERPA'!AO54 ->  | K50: ='3ERPA'!AQ54 -> 
B51: =IF('1ERPA'!F55="","",'1ERPA'!F55) ->  | C51: ='1ERPA'!AM55 ->  | D51: ='1ERPA'!AO55 ->  | E51: ='1ERPA'!AQ55 ->  | F51: ='2DOPA'!AM55 ->  | G51: ='2DOPA'!AO55 ->  | H51: ='2DOPA'!AQ55 ->  | I51: ='3ERPA'!AM55 ->  | J51: ='3ERPA'!AO55 ->  | K51: ='3ERPA'!AQ55 -> 
B52: =IF('1ERPA'!F56="","",'1ERPA'!F56) ->  | C52: ='1ERPA'!AM56 ->  | D52: ='1ERPA'!AO56 ->  | E52: ='1ERPA'!AQ56 ->  | F52: ='2DOPA'!AM56 ->  | G52: ='2DOPA'!AO56 ->  | H52: ='2DOPA'!AQ56 ->  | I52: ='3ERPA'!AM56 ->  | J52: ='3ERPA'!AO56 ->  | K52: ='3ERPA'!AQ56 -> 
B53: =IF('1ERPA'!F57="","",'1ERPA'!F57) ->  | C53: ='1ERPA'!AM57 ->  | D53: ='1ERPA'!AO57 ->  | E53: ='1ERPA'!AQ57 ->  | F53: ='2DOPA'!AM57 ->  | G53: ='2DOPA'!AO57 ->  | H53: ='2DOPA'!AQ57 ->  | I53: ='3ERPA'!AM57 ->  | J53: ='3ERPA'!AO57 ->  | K53: ='3ERPA'!AQ57 -> 
B54: =IF('1ERPA'!F58="","",'1ERPA'!F58) ->  | C54: ='1ERPA'!AM58 ->  | D54: ='1ERPA'!AO58 ->  | E54: ='1ERPA'!AQ58 ->  | F54: ='2DOPA'!AM58 ->  | G54: ='2DOPA'!AO58 ->  | H54: ='2DOPA'!AQ58 ->  | I54: ='3ERPA'!AM58 ->  | J54: ='3ERPA'!AO58 ->  | K54: ='3ERPA'!AQ58 -> 
B55: =IF('1ERPA'!F59="","",'1ERPA'!F59) ->  | C55: ='1ERPA'!AM59 ->  | D55: ='1ERPA'!AO59 ->  | E55: ='1ERPA'!AQ59 ->  | F55: ='2DOPA'!AM59 ->  | G55: ='2DOPA'!AO59 ->  | H55: ='2DOPA'!AQ59 ->  | I55: ='3ERPA'!AM59 ->  | J55: ='3ERPA'!AO59 ->  | K55: ='3ERPA'!AQ59 -> 
B56: =IF('1ERPA'!F60="","",'1ERPA'!F60) ->  | C56: ='1ERPA'!AM60 ->  | D56: ='1ERPA'!AO60 ->  | E56: ='1ERPA'!AQ60 ->  | F56: ='2DOPA'!AM60 ->  | G56: ='2DOPA'!AO60 ->  | H56: ='2DOPA'!AQ60 ->  | I56: ='3ERPA'!AM60 ->  | J56: ='3ERPA'!AO60 ->  | K56: ='3ERPA'!AQ60 -> 
B57: =IF('1ERPA'!F61="","",'1ERPA'!F61) ->  | C57: ='1ERPA'!AM61 ->  | D57: ='1ERPA'!AO61 ->  | E57: ='1ERPA'!AQ61 ->  | F57: ='2DOPA'!AM61 ->  | G57: ='2DOPA'!AO61 ->  | H57: ='2DOPA'!AQ61 ->  | I57: ='3ERPA'!AM61 ->  | J57: ='3ERPA'!AO61 ->  | K57: ='3ERPA'!AQ61 -> 
B58: =IF('1ERPA'!F62="","",'1ERPA'!F62) ->  | C58: ='1ERPA'!AM62 ->  | D58: ='1ERPA'!AO62 ->  | E58: ='1ERPA'!AQ62 ->  | F58: ='2DOPA'!AM62 ->  | G58: ='2DOPA'!AO62 ->  | H58: ='2DOPA'!AQ62 ->  | I58: ='3ERPA'!AM62 ->  | J58: ='3ERPA'!AO62 ->  | K58: ='3ERPA'!AQ62 -> 
B59: =IF('1ERPA'!F63="","",'1ERPA'!F63) ->  | C59: ='1ERPA'!AM63 ->  | D59: ='1ERPA'!AO63 ->  | E59: ='1ERPA'!AQ63 ->  | F59: ='2DOPA'!AM63 ->  | G59: ='2DOPA'!AO63 ->  | H59: ='2DOPA'!AQ63 ->  | I59: ='3ERPA'!AM63 ->  | J59: ='3ERPA'!AO63 ->  | K59: ='3ERPA'!AQ63 -> 
B60: =IF('1ERPA'!F64="","",'1ERPA'!F64) ->  | C60: ='1ERPA'!AM64 ->  | D60: ='1ERPA'!AO64 ->  | E60: ='1ERPA'!AQ64 ->  | F60: ='2DOPA'!AM64 ->  | G60: ='2DOPA'!AO64 ->  | H60: ='2DOPA'!AQ64 ->  | I60: ='3ERPA'!AM64 ->  | J60: ='3ERPA'!AO64 ->  | K60: ='3ERPA'!AQ64 -> 
B61: =IF('1ERPA'!F65="","",'1ERPA'!F65) ->  | C61: ='1ERPA'!AM65 ->  | D61: ='1ERPA'!AO65 ->  | E61: ='1ERPA'!AQ65 ->  | F61: ='2DOPA'!AM65 ->  | G61: ='2DOPA'!AO65 ->  | H61: ='2DOPA'!AQ65 ->  | I61: ='3ERPA'!AM65 ->  | J61: ='3ERPA'!AO65 ->  | K61: ='3ERPA'!AQ65 ->  | X61: ='1ERPA'!X10:AI10 -> ALDO ORTEGA PACHECO
B62: =IF('1ERPA'!F66="","",'1ERPA'!F66) ->  | C62: ='1ERPA'!AM66 ->  | D62: ='1ERPA'!AO66 ->  | E62: ='1ERPA'!AQ66 ->  | F62: ='2DOPA'!AM66 ->  | G62: ='2DOPA'!AO66 ->  | H62: ='2DOPA'!AQ66 ->  | I62: ='3ERPA'!AM66 ->  | J62: ='3ERPA'!AO66 ->  | K62: ='3ERPA'!AQ66 ->  | X62: NOMBRE Y FIRMA DEL CATEDRÁTICO

Sheet RUBRICA
A1: 0.5 | B1: 0 | C1: =($A$1/5)*1 -> 0.1 | D1: =($A$1/5)*2 -> 0.2 | E1: =($A$1/5)*3 -> 0.3 | F1: =($A$1/5)*4 -> 0.4 | G1: =($A$1/5)*5 -> 0.5 | H1: =COUNTA(H3:H50)*A1 -> 0.5 | I1: =(100%/H1)*SUM(I3:I50) -> 0.6
A2: ITEM | B2: Sin Nivel | C2: Pre-Formal | D2: Receptivo | E2: Resolutivo | F2: Autónomo | G2: Estratégico | I2: =(I1/1)*10 -> 6
A3: ID | B3: 1 | C3: 2 | D3: 3 | E3: 4 | F3: 5 | G3: 6 | H3: Resolutivo | I3: =IF(A3="","",(IF(H3="",0,IF(H3="Sin Nivel",$B$1,IF(H3="Pre-Formal",($C$1),IF(H3="Receptivo",($D$1),IF(H3="Resolutivo",($E$1),IF(H3="Autónomo",($F$1)*90%,IF(H3="Estratégico",($G$1),0))))))))) -> 0.3
I4: =IF(A4="","",(IF(H4="",0,IF(H4="Sin Nivel",$B$1,IF(H4="Pre-Formal",($C$1),IF(H4="Receptivo",($D$1),IF(H4="Resolutivo",($E$1),IF(H4="Autónomo",($F$1)*90%,IF(H4="Estratégico",($G$1),0))))))))) -> 
I5: =IF(A5="","",(IF(H5="",0,IF(H5="Sin Nivel",$B$1,IF(H5="Pre-Formal",($C$1),IF(H5="Receptivo",($D$1),IF(H5="Resolutivo",($E$1),IF(H5="Autónomo",($F$1)*90%,IF(H5="Estratégico",($G$1),0))))))))) -> 

Sheet Hoja1 (hidden)
A12: 0.65 | B12: =(100%/65%)*A12 -> 1 | D12: 0.65
A13: 0.585 | B13: 0.9 | D13: =D12*90% -> 0.585
A14: 0.52 | B14: 0.8 | D14: =D12*80% -> 0.52
A15: 0.455 | B15: 0.7
A16: 0.39 | B16: 0.6
A17: 0 | B17: 0
C19: 0.1 | D19: 0.1 | E19: 0.1 | F19: 0.1 | G19: 0.1 | H19: 0.15
A20: =(0.65/5)*0 -> 0 | B20: 0 | C20: Sin Nivel | D20: Sin Nivel | E20: Sin Nivel | F20: Sin Nivel | G20: Sin Nivel | H20: Sin Nivel | I20: =IF(C20="","",(IF(C20="",0,IF(C20="Sin Nivel",($C$19)*0,IF(C20="Pre-Formal",($C$19)*60%,IF(C20="Receptivo",($C$19)*70%,IF(C20="Resolutivo",($C$19)*80%,IF(C20="Autónomo",($C$19)*90%,IF(C20="Estratégico",($C$19)*100%,0)))))))+IF(D20="",0,IF(D20="Sin Nivel",($D$19)*0,IF(D20="Pre-Formal",($D$19)*60%,IF(D20="Receptivo",($D$19)*70%,IF(D20="Resolutivo",($D$19)*80%,IF(D20="Autónomo",($D$19)*90%,IF(D20="Estratégico",($D$19)*100%,0)))))))+IF(E20="",0,IF(E20="Sin Nivel",($E$19)*0,IF(E20="Pre-Formal",($E$19)*60%,IF(E20="Receptivo",($E$19)*70%,IF(E20="Resolutivo",($E$19)*80%,IF(E20="Autónomo",($E$19)*90%,IF(E20="Estratégico",($E$19)*100%,0)))))))+IF(F20="",0,IF(F20="Sin Nivel",($F$19)*0,IF(F20="Pre-Formal",($F$19)*60%,IF(F20="Receptivo",($F$19)*70%,IF(F20="Resolutivo",($F$19)*80%,IF(F20="Autónomo",($F$19)*90%,IF(F20="Estratégico",($F$19)*100%,0)))))))+IF(G20="",0,IF(G20="Sin Nivel",($G$19)*0,IF(G20="Pre-Formal",($G$19)*60%,IF(G20="Receptivo",($G$19)*70%,IF(G20="Resolutivo",($G$19)*80%,IF(G20="Autónomo",($G$19)*90%,IF(G20="Estratégico",($G$19)*100%,0)))))))+IF(H20="",0,IF(H20="Sin Nivel",($H$19)*0,IF(H20="Pre-Formal",($H$19)*60%,IF(H20="Receptivo",($H$19)*70%,IF(H20="Resolutivo",($H$19)*80%,IF(H20="Autónomo",($H$19)*90%,IF(H20="Estratégico",($H$19)*100%,0))))))))) -> 0
A21: =(0.65/5)*0 -> 0 | B21: 0.39 | C21: Pre-Formal | D21: Pre-Formal | E21: Pre-Formal | F21: Pre-Formal | G21: Pre-Formal | H21: Pre-Formal | I21: 0.39
A22: =(0.65/5)*0 -> 0 | B22: 0.455 | C22: Receptivo | D22: Receptivo | E22: Receptivo | F22: Receptivo | G22: Receptivo | H22: Receptivo | I22: 0.455
A23: =(0.65/5)*0 -> 0 | B23: 0.52 | C23: Resolutivo | D23: Resolutivo | E23: Resolutivo | F23: Resolutivo | G23: Resolutivo | H23: Resolutivo | I23: 0.52
A24: =(0.65/5)*5 -> 0.65 | B24: 0.585 | C24: Autónomo | D24: Autónomo | E24: Autónomo | F24: Autónomo | G24: Autónomo | H24: Autónomo | I24: 0.585
A25: =(0.65/5)*5 -> 0.65 | B25: 0.65 | C25: Estratégico | D25: Estratégico | E25: Estratégico | F25: Estratégico | G25: Estratégico | H25: Estratégico | I25: 0.65
